{"text_format":"1","workbook":"xlsx","n_sheets":14,"sheets":["Übersicht","Förderangebote","Kinderliste","Kind 1","Kind 2","Kind 3","Kind 4","Kind 5","Kind 6","Kind 7","Kind 8","Kind 9","Kind 10","Intern"],"not_rendered":{"charts":11,"images":2,"macros":1,"external_links":1,"defined_names":2,"comments":0,"pivot_tables":0},"unopened":[],"bounds":{"document_bytes":16777216,"sheet_cells":100000,"rows_first":2000,"rows_last":500,"rows_between":2000,"halvings":0,"cell_chars":16384,"cell_head_chars":4096},"cells_cut":0,"cells_raw":0,"read":"whole","date_system":"1900"}

{"sheet":"Übersicht","index":0,"n_rows":107,"n_cols":17,"rows_kept":107,"cut":false,"hidden":false,"merged":[[66,14,68,20],[66,13,68,13],[15,6,15,7],[18,0,18,1],[23,3,23,4],[24,3,24,4],[25,3,25,4],[26,3,26,4],[23,6,23,7],[23,0,23,1],[24,0,24,1],[19,6,19,7],[20,6,20,7],[16,3,17,4],[16,6,16,7],[17,6,17,7],[18,6,18,7],[22,6,22,7],[22,3,22,4],[53,9,53,10],[55,0,55,2],[56,0,56,2],[57,0,57,2],[43,14,46,20],[102,0,102,2],[103,0,103,2],[104,0,104,2],[105,0,105,2],[106,0,106,2],[96,0,96,2],[97,0,97,2],[98,0,98,2],[100,0,100,3],[101,0,101,2],[90,0,90,2],[92,0,92,3],[93,0,93,2],[94,0,94,2],[95,0,95,2],[85,0,85,2],[86,0,86,2],[87,0,87,2],[88,0,88,2],[89,0,89,2],[79,0,79,2],[80,0,80,2],[81,0,81,2],[82,0,82,2],[84,0,84,3],[73,0,73,2],[74,0,74,2],[76,0,76,3],[77,0,77,2],[78,0,78,2],[0,0,3,10],[5,0,12,10],[3,13,3,14],[60,9,60,10],[36,9,36,10],[37,9,37,10],[28,9,28,10],[29,9,29,10],[48,0,48,2],[49,0,49,2],[50,0,50,2],[52,0,52,3],[53,0,53,2],[37,0,37,2],[44,0,44,3],[54,0,54,2],[52,9,52,10],[29,0,29,2],[58,0,58,2],[60,0,60,3],[47,0,47,2],[39,14,42,20],[39,13,42,13],[43,13,46,13],[46,0,46,2],[36,13,38,13],[36,14,38,20],[29,13,31,13],[28,13,28,20],[19,16,26,19],[32,0,32,2],[27,3,27,5],[28,0,28,3],[30,0,30,2],[31,0,31,2],[33,0,33,2],[34,0,34,2],[35,0,35,2],[36,0,36,3],[38,0,38,2],[39,0,39,2],[40,0,40,2],[41,0,41,2],[42,0,42,2],[44,9,44,10],[45,9,45,10],[45,0,45,2],[3,16,3,19],[4,16,5,19],[6,16,7,19],[9,13,9,14],[4,13,5,14],[8,16,9,19],[12,16,13,19],[14,16,15,19],[63,13,65,13],[48,13,50,13],[59,13,62,13],[59,14,62,20],[63,14,65,20],[10,16,11,19],[48,14,50,20],[51,13,52,13],[51,14,52,20],[53,13,55,13],[56,13,58,13],[56,14,58,20],[53,14,55,20],[29,14,31,20],[32,13,35,13],[32,14,35,20],[16,0,16,1],[17,0,17,1],[101,9,101,10],[68,9,68,10],[69,9,69,10],[76,9,76,10],[77,9,77,10],[84,9,84,10],[85,9,85,10],[92,9,92,10],[93,9,93,10],[100,9,100,10],[68,0,68,3],[69,0,69,2],[70,0,70,2],[71,0,71,2],[72,0,72,2],[61,9,61,10],[66,0,66,2],[61,0,61,2],[62,0,62,2],[63,0,63,2],[64,0,64,2],[65,0,65,2]]}
["FÖRDERPLAN - ÜBERSICHT \nzur Beobachtung, Planung und Reflexion"]
[]
[]
[null,null,null,null,null,null,null,null,null,null,null,null,null,"Anzahl durchgeführter Förderangebote ",null,null,"Links und Arbeitsmaterialien "]
[null,null,null,null,null,null,null,null,null,null,null,null,null,{"$f":"COUNTA(Förderangebote!H13:H24,Förderangebote!H26:H43,Förderangebote!H47:H64,Förderangebote!H68:H85,Förderangebote!H89:H106,Förderangebote!H110:H127,Förderangebote!H131:H148,Förderangebote!H152:H169,Förderangebote!H173:H190,Förderangebote!H194:H211)","v":0},null,null,"Informationen für Sprachförderkräfte - Moodle-Kurs"]
["Die Sprachförderung hat zum Ziel, allen Kindern den Gebrauch der Bildungssprache Deutsch zu ermöglichen. Dies kann durch eine Vielfalt an sprachfördernden Methoden erreicht werden. Dabei wird auf unterschiedliche sprachliche Kompetenzen und sprachliche Vielfalt, auf individuelle Lernerfahrungen und - voraussetzungen sowie die spezifischen Persönlichkeiten der Kinder eingegangen. Eine gute Balance zwischen alltagsintegrierter Sprachförderung und Förderung in Gruppen, Kleingruppen und Einzelsettings wird angestrebt, um für die Kinder unterschiedliche sprachliche Angebote zu schaffen. Die Sprachförderung wird dabei so gestaltet, dass es allen Kindern möglich ist, daran zu partizipieren. Alltagsintegrierte Sprachförderung nimmt in diesem Zusammenhang einen Großteil des Sprachförderalltags ein und ermöglicht ein kommunikativ-ganzheitliches Arbeiten. Den Interessen und Bedürfnissen des Kindes entsprechend werden im Spiel anregende Situationen geschaffen, die sich an den jeweiligen sprachlichen Kompetenzen des Kindes orientieren und dessen sprachliche Entwicklung vorantreiben. Die sprachliche Förderung in Gruppen und Kleingruppen nimmt ebenfalls einen großen Teil in der Sprachförderung ein. Die Gruppensettings werden dabei u.a. auch so gewählt, dass sich Kinder in der Interaktion wechselseitig stimulieren und voneinander lernen. Entwicklungsunterschiede werden dadurch zur Bereicherung für die Arbeit in der Gruppe. (Sprachförderkraft, und nun?, 2023, S. 4)"]
[null,null,null,null,null,null,null,null,null,null,null,null,null,null,null,null,"BESK KOMPAKT/BESK-DaZ KOMPAKT Sammlung - Moodle-Kurs"]
[]
[null,null,null,null,null,null,null,null,null,null,null,null,null,null,null,null,"Pädagogische Grundlagendokumente - Land Steiermark"]
[null,null,null,null,null,null,null,null,null,null,null,null,null,"Anzahl der Förderangebote pro Bildungsbereich"]
[null,null,null,null,null,null,null,null,null,null,null,null,null,null,null,null,"10 Schritte zur alltagsintegrierten sprachlichen Bildung - UNI Graz"]
[null,null,null,null,null,null,null,null,null,null,null,null,null,"Emotionen & soziale Beziehungen",{"$f":"COUNTIF(Förderangebote!G6:G210,\"Emotionen & soziale Beziehungen\")","v":0}]
[null,null,null,null,null,null,null,null,null,null,null,null,null,"Ethik & Gesellschaft",{"$f":"COUNTIF(Förderangebote!G6:G210,\"Ethik & Gesellschaft\")","v":0},null,"PEP-UNI Graz - Materialien"]
[null,null,null,null,null,null,null,null,null,null,null,null,null,"Sprache & Kommunikation ",{"$f":"COUNTIF(Förderangebote!G6:G210,\"Sprache & Kommunikation \")","v":0}]
[null,null,null,null,null,null,null,null,null,null,null,null,null,"Bewegung & Gesundheit",{"$f":"COUNTIF(Förderangebote!G6:G210,\"Bewegung & Gesundheit\")","v":0}]
["Name der Sprachförderkraft ",null,null,"Förderzeitraum",null,null,"Einsatztage/ Einsatzzeiten",null,null,null,null,null,null,"Ästhetik & Gestaltung ",{"$f":"COUNTIF(Förderangebote!G6:G210,\"Ästhetik & Gestaltung \")","v":0}]
[null,null,null,null,null,null,null,null,null,null,null,null,null,"Natur & Technik",{"$f":"COUNTIF(Förderangebote!G6:G210,\"Natur & Technik\")","v":0}]
[]
[]
[null,null,null,null,null,null,null,null,null,null,null,null,null,null,null,null,"Die statistischen Daten auf dieser Seite befüllen sich automatisch anhand der eingegebenen Daten im Registerblatt \"Förderangebote\""]
[]
[]
["Name der Bildungseinrichtung ",null,null,"Name der Gruppe(n)",null,null,"Leitung vor Ort "]
[]
[]
[]
[]
[]
["Kind 1: Anzahl der Förderangebote pro Bildungsbereich",null,null,null,null,null,null,null,null,"Anzahl durchgeführter Förderangebote ",null,null,null,"Prinzipien für Bildungsprozesse in elementaren Bildungseinrichtungen                                                                                 (nach dem Bundesländerübergreifenden BildungsRahmenPlan für elementare Bildungseinrichtungen in Österreich, 2009)"]
["Emotionen & soziale Beziehungen",null,null,{"$f":"Intern!B199","v":0},null,null,null,null,null,{"$f":"COUNT('Kind 1'!M8:M36)","v":1},null,null,null,"Ganzheitlichkeit und Lernen mit allen Sinnen ","\"Lernen ist ein ganzheitlicher Prozess, \nan dem Körper und Psyche beteiligt sind. Ganzheitliche Bildungsprozesse orientieren sich an der Gesamtpersönlichkeit der Kinder, indem sie ihre Sinne sowie ihre sozial-emotionalen, kognitiven und motorischen Fähigkeiten ansprechen.\""]
["Ethik & Gesellschaft",null,null,{"$f":"Intern!B200","v":0}]
["Sprache & Kommunikation",null,null,{"$f":"Intern!B201","v":0}]
["Bewegung & Gesundheit",null,null,{"$f":"Intern!B202","v":0},null,null,null,null,null,null,null,null,null,"Individualisierung ","\"Jedes Kind ist einzigartig in seiner Persönlichkeit, seiner \nsozialen und kulturellen Herkunft, seinen Bedürfnissen und Lernpotenzialen sowie \nseinem Entwicklungstempo. Im Sinne der Individualisierung wird das Recht jedes \nKindes ernst genommen, auf seine spezielle Art und in seinem Rhythmus zu \nlernen.\""]
["Ästhetik & Gestaltung ",null,null,{"$f":"Intern!B203","v":0}]
["Natur  & Technik ",null,null,{"$f":"Intern!B204","v":0}]
[]
["Kind 2: Anzahl der Förderangebote pro Bildungsbereich",null,null,null,null,null,null,null,null,"Anzahl durchgeführter Förderangebote ",null,null,null,"Differenzierung ","\"Das Prinzip der Differenzierung bezieht sich auf die Gestaltung \nder Bildungsangebote, die Anregung verschiedener Lernformen sowie eine breit \ngefächerte Austattung an Bildungsmitteln. Differenzierte Bildungsarbeit berücksichtigt die individuellen Begabungen, Fähigkeiten und Interessen jedes Kindes.\""]
["Emotionen & soziale Beziehungen",null,null,{"$f":"Intern!C199","v":0},null,null,null,null,null,{"$f":"COUNT('Kind 2'!M8:M36)","v":1}]
["Ethik & Gesellschaft",null,null,{"$f":"Intern!C200","v":0}]
["Sprache & Kommunikation",null,null,{"$f":"Intern!C201","v":0},null,null,null,null,null,null,null,null,null,"Empowerment ","\"Empowerment heißt „Ermächtigung“ und stellt ein Handlungskonzept dar, das sich an den Stärken und Potenzialen von Menschen orientiert. Diese \nHaltung unterstützt Kinder und Erwachsene, ihre Gestaltungsspielräume und \nRessourcen besser wahrzunehmen und zu nutzen. Dadurch wird ihr autonomes \nund selbstverantwortliches Handeln gestärkt.\""]
["Bewegung & Gesundheit",null,null,{"$f":"Intern!C202","v":0}]
["Ästhetik & Gestaltung ",null,null,{"$f":"Intern!C203","v":0}]
["Natur  & Technik ",null,null,{"$f":"Intern!C204","v":0}]
[null,null,null,null,null,null,null,null,null,null,null,null,null,"Lebensweltorientierung","\"Kinder verfügen über vielfältige, individuell unterschiedliche Lebens- und Lernerfahrungen. Bildungsprozesse, die an diese Erlebnisse und \nErfahrungen anknüpfen, betreffen Kinder unmittelbar und motivieren zur selbsttätigen Auseinandersetzung. Neues kann mit bereits Bekanntem und Vertrautem in \nVerbindung gesetzt werden, wodurch neuronale Netzwerke im Gehirn aufgebaut, \nverstärkt und differenziert werden.\""]
["Kind 3: Anzahl der Förderangebote pro Bildungsbereich",null,null,null,null,null,null,null,null,"Anzahl durchgeführter Förderangebote "]
["Emotionen & soziale Beziehungen",null,null,{"$f":"Intern!D199","v":0},null,null,null,null,null,{"$f":"COUNT('Kind 3'!M8:M36)","v":1}]
["Ethik & Gesellschaft",null,null,{"$f":"Intern!D200","v":0}]
["Sprache & Kommunikation",null,null,{"$f":"Intern!D201","v":0}]
["Bewegung & Gesundheit",null,null,{"$f":"Intern!D202","v":0},null,null,null,null,null,null,null,null,null,"Inklusion","\"Inklusion ist als grundsätzliche Haltung zu verstehen, die über Integrationsbestrebungen hinausgeht: Alle Menschen in einer Gesellschaft werden \nals Menschen mit unterschiedlichen Bedürfnissen angesehen, auf die individuell \nreagiert wird.\""]
["Ästhetik & Gestaltung ",null,null,{"$f":"Intern!D203","v":0}]
["Natur  & Technik ",null,null,{"$f":"Intern!D204","v":0}]
[null,null,null,null,null,null,null,null,null,null,null,null,null,"Sachrichtigkeit","\"Bei der Vermittlung von Wissen sind inhaltliche und begriffliche \nSachrichtigkeit sowie entwicklungsgemäße Aufbereitung grundlegend. Dies \nermöglicht es Kindern, Zusammenhänge zu verstehen sowie ihre Handlungsspielräume und ihr Repertoire an Begriffen zu erweitern.\""]
["Kind 4: Anzahl der Förderangebote pro Bildungsbereich",null,null,null,null,null,null,null,null,"Anzahl durchgeführter Förderangebote "]
["Emotionen & soziale Beziehungen",null,null,{"$f":"Intern!E199","v":0},null,null,null,null,null,{"$f":"COUNT('Kind 4'!M8:M36)","v":1},null,null,null,"Diversität","\"Diversität bezieht sich auf individuelle Unterschiede, wie z. B. \nGeschlecht, Hautfarbe, physische Fähigkeiten, ethnische Zugehörigkeit und \nsoziale Herkunft. Diese Vielfalt wird als Ressource für Lernerfahrungen berücksichtigt. Die Begegnung mit Verschiedenartigkeit ist eine Voraussetzung für die \nAufgeschlossenheit, sich mit Vorurteilen kritisch auseinanderzusetzen.\""]
["Ethik & Gesellschaft",null,null,{"$f":"Intern!E200","v":0}]
["Sprache & Kommunikation",null,null,{"$f":"Intern!E201","v":0}]
["Bewegung & Gesundheit",null,null,{"$f":"Intern!E202","v":0},null,null,null,null,null,null,null,null,null,"Geschlechtssensibilität","\"Abhängig von ihrer individuellen Sozialisation verfügen \nKinder über unterschiedliche Erfahrungen und Vorstellungen zu Geschlechterrollen. Ziel einer geschlechtssensiblen Pädagogik ist es, Mädchen und Buben unabhängig von ihrem Geschlecht darin zu unterstützen, unterschiedliche Potenziale ihrer Persönlichkeit zu entfalten.\""]
["Ästhetik & Gestaltung ",null,null,{"$f":"Intern!E203","v":0}]
["Natur  & Technik ",null,null,{"$f":"Intern!E204","v":0}]
[null,null,null,null,null,null,null,null,null,null,null,null,null,"Partizipation","\"Partizipationsfähigkeit ist eine wichtige Voraussetzung zur aktiven \nTeilhabe an gesellschaftlichen Prozessen. Elementare Bildungseinrichtungen \nleisten einen Beitrag zur frühen politischen Bildung, indem sie Kindern vielfältige \nkindgemäße Möglichkeiten zur Beteiligung, Gestaltung und Mitbestimmung \nbieten. Dadurch können Kinder lernen, zunehmend mehr Verantwortung für sich und für andere zu übernehmen. Das Prinzip der Partizipation bezieht sich auch auf \ndie Mitgestaltung des Bildungsgeschehens durch die Familien der Kinder.\""]
["Kind 5: Anzahl der Förderangebote pro Bildungsbereich",null,null,null,null,null,null,null,null,"Anzahl durchgeführter Förderangebote "]
["Emotionen & soziale Beziehungen",null,null,{"$f":"Intern!G199","v":0},null,null,null,null,null,{"$f":"COUNT('Kind 5'!M8:M36)","v":1}]
["Ethik & Gesellschaft",null,null,{"$f":"Intern!G200","v":0}]
["Sprache & Kommunikation",null,null,{"$f":"Intern!G201","v":0},null,null,null,null,null,null,null,null,null,"Transparenz","\"Die transparente Gestaltung des Bildungsgeschehens zielt darauf ab, \ndie Komplexität pädagogischer Praxis für Eltern und Öffentlichkeit nachvollziehbar \nzu machen. In der Arbeit mit den Kindern bedeutet Transparenz, dass Intentionen \nund Zusammenhänge durchschaubar werden.\""]
["Bewegung & Gesundheit",null,null,{"$f":"Intern!G202","v":0}]
["Ästhetik & Gestaltung ",null,null,{"$f":"Intern!G203","v":0}]
["Natur  & Technik ",null,null,{"$f":"Intern!G204","v":0},null,null,null,null,null,null,null,null,null,"Bildungspartnerschaft","\"Bildungspartnerschaften sind Kooperationsbeziehungen \nzwischen elementaren Bildungseinrichtungen und den Familien der Kinder bzw. \ngegebenenfalls externen Fachkräften. Vorrangiges Ziel ist der gemeinsame \nAufbau einer lern- und entwicklungsförderlichen Umgebung für Kinder. Die \nZusammenarbeit zeichnet sich primär durch gegenseitiges Interesse aus und verdeutlicht die gemeinsame Verantwortung für das Kind.\""]
[]
["Kind 6: Anzahl der Förderangebote pro Bildungsbereich",null,null,null,null,null,null,null,null,"Anzahl durchgeführter Förderangebote "]
["Emotionen & soziale Beziehungen",null,null,{"$f":"Intern!H199","v":0},null,null,null,null,null,{"$f":"COUNT('Kind 6'!M8:M36)","v":1}]
["Ethik & Gesellschaft",null,null,{"$f":"Intern!H200","v":0}]
["Sprache & Kommunikation",null,null,{"$f":"Intern!H201","v":0}]
["Bewegung & Gesundheit",null,null,{"$f":"Intern!H202","v":0}]
["Ästhetik & Gestaltung ",null,null,{"$f":"Intern!H203","v":0}]
["Natur  & Technik ",null,null,{"$f":"Intern!H204","v":0}]
[]
["Kind 7: Anzahl der Förderangebote pro Bildungsbereich",null,null,null,null,null,null,null,null,"Anzahl durchgeführter Förderangebote "]
["Emotionen & soziale Beziehungen",null,null,{"$f":"Intern!I199","v":0},null,null,null,null,null,{"$f":"COUNT('Kind 7'!M8:M36)","v":1}]
["Ethik & Gesellschaft",null,null,{"$f":"Intern!I200","v":0}]
["Sprache & Kommunikation",null,null,{"$f":"Intern!I201","v":0}]
["Bewegung & Gesundheit",null,null,{"$f":"Intern!I202","v":0}]
["Ästhetik & Gestaltung ",null,null,{"$f":"Intern!I203","v":0}]
["Natur  & Technik ",null,null,{"$f":"Intern!I204","v":0}]
[]
["Kind 8: Anzahl der Förderangebote pro Bildungsbereich",null,null,null,null,null,null,null,null,"Anzahl durchgeführter Förderangebote "]
["Emotionen & soziale Beziehungen",null,null,{"$f":"Intern!J199","v":0},null,null,null,null,null,{"$f":"COUNT('Kind 8'!M8:M36)","v":1}]
["Ethik & Gesellschaft",null,null,{"$f":"Intern!J200","v":0}]
["Sprache & Kommunikation",null,null,{"$f":"Intern!J201","v":0}]
["Bewegung & Gesundheit",null,null,{"$f":"Intern!J202","v":0}]
["Ästhetik & Gestaltung ",null,null,{"$f":"Intern!J203","v":0}]
["Natur  & Technik ",null,null,{"$f":"Intern!J204","v":0}]
[]
["Kind 9: Anzahl der Förderangebote pro Bildungsbereich",null,null,null,null,null,null,null,null,"Anzahl durchgeführter Förderangebote "]
["Emotionen & soziale Beziehungen",null,null,{"$f":"Intern!K199","v":0},null,null,null,null,null,{"$f":"COUNT('Kind 9'!M8:M36)","v":1}]
["Ethik & Gesellschaft",null,null,{"$f":"Intern!K200","v":0}]
["Sprache & Kommunikation",null,null,{"$f":"Intern!K201","v":0}]
["Bewegung & Gesundheit",null,null,{"$f":"Intern!K202","v":0}]
["Ästhetik & Gestaltung ",null,null,{"$f":"Intern!K203","v":0}]
["Natur  & Technik ",null,null,{"$f":"Intern!K204","v":0}]
[]
["Kind 10: Anzahl der Förderangebote pro Bildungsbereich",null,null,null,null,null,null,null,null,"Anzahl durchgeführter Förderangebote "]
["Emotionen & soziale Beziehungen",null,null,{"$f":"Intern!L199","v":0},null,null,null,null,null,{"$f":"COUNT('Kind 10'!M8:M36)","v":1}]
["Ethik & Gesellschaft",null,null,{"$f":"Intern!L200","v":0}]
["Sprache & Kommunikation",null,null,{"$f":"Intern!L201","v":0}]
["Bewegung & Gesundheit",null,null,{"$f":"Intern!L202","v":0}]
["Ästhetik & Gestaltung ",null,null,{"$f":"Intern!L203","v":0}]
["Natur  & Technik ",null,null,{"$f":"Intern!L204","v":0}]

{"sheet":"Förderangebote","index":1,"n_rows":206,"n_cols":12,"rows_kept":206,"cut":false,"hidden":false,"merged":[[205,7,210,7],[207,5,208,5],[207,6,208,6],[209,5,210,5],[209,6,210,6],[157,6,158,6],[157,7,162,7],[159,5,160,5],[159,6,160,6],[161,5,162,5],[161,6,162,6],[193,7,198,7],[176,5,177,5],[176,6,177,6],[178,5,179,5],[178,6,179,6],[180,5,181,5],[180,6,181,6],[199,7,204,7],[201,5,202,5],[201,6,202,6],[203,5,204,5],[203,6,204,6],[163,0,168,0],[163,1,168,1],[163,2,168,2],[163,5,164,5],[163,6,164,6],[163,7,168,7],[165,5,166,5],[165,6,166,6],[167,5,168,5],[167,6,168,6],[205,0,210,0],[205,1,210,1],[205,2,210,2],[205,5,206,5],[193,0,198,0],[193,1,198,1],[193,2,198,2],[193,5,194,5],[193,6,194,6],[195,5,196,5],[195,6,196,6],[197,5,198,5],[197,6,198,6],[199,0,204,0],[199,1,204,1],[199,2,204,2],[199,5,200,5],[199,6,200,6],[205,6,206,6],[184,0,189,0],[184,1,189,1],[184,2,189,2],[184,5,185,5],[184,6,185,6],[184,7,189,7],[186,5,187,5],[186,6,187,6],[188,5,189,5],[188,6,189,6],[172,0,177,0],[172,1,177,1],[172,2,177,2],[172,7,177,7],[178,0,183,0],[178,1,183,1],[178,2,183,2],[178,7,183,7],[182,5,183,5],[182,6,183,6],[172,5,173,5],[172,6,173,6],[174,5,175,5],[174,6,175,6],[151,0,156,0],[151,1,156,1],[151,2,156,2],[151,5,152,5],[151,6,152,6],[151,7,156,7],[153,5,154,5],[153,6,154,6],[155,5,156,5],[155,6,156,6],[157,0,162,0],[157,1,162,1],[157,2,162,2],[157,5,158,5],[5,3,5,4],[144,5,145,5],[144,6,145,6],[146,5,147,5],[146,6,147,6],[142,0,147,0],[142,1,147,1],[142,2,147,2],[142,5,143,5],[142,6,143,6],[100,1,105,1],[130,2,135,2],[25,2,30,2],[25,5,26,5],[25,6,26,6],[31,2,36,2],[37,2,42,2],[46,2,51,2],[104,5,105,5],[104,6,105,6],[142,7,147,7],[25,0,30,0],[115,1,120,1],[121,1,126,1],[31,0,36,0],[37,1,42,1],[37,0,42,0],[46,1,51,1],[52,1,57,1],[58,1,63,1],[67,1,72,1],[67,0,72,0],[73,1,78,1],[46,0,51,0],[121,0,126,0],[79,0,84,0],[88,1,93,1],[88,0,93,0],[94,1,99,1],[52,0,57,0],[58,0,63,0],[115,0,120,0],[73,0,78,0],[94,0,99,0],[0,1,4,7],[121,6,122,6],[121,7,126,7],[123,6,124,6],[125,6,126,6],[88,2,93,2],[88,7,93,7],[94,2,99,2],[94,7,99,7],[100,2,105,2],[100,7,105,7],[92,5,93,5],[92,6,93,6],[94,5,95,5],[94,6,95,6],[88,5,89,5],[88,6,89,6],[102,5,103,5],[102,6,103,6],[6,1,11,1],[12,1,17,1],[18,1,23,1],[25,1,30,1],[31,1,36,1],[130,7,135,7],[136,2,141,2],[136,7,141,7],[109,6,110,6],[109,7,114,7],[111,6,112,6],[113,6,114,6],[115,7,120,7],[117,6,118,6],[119,6,120,6],[109,5,110,5],[111,5,112,5],[121,5,122,5],[123,5,124,5],[125,5,126,5],[109,2,114,2],[129,3,129,4],[121,2,126,2],[115,2,120,2],[115,6,116,6],[134,5,135,5],[134,6,135,6],[136,5,137,5],[136,6,137,6],[52,7,57,7],[31,5,32,5],[37,5,38,5],[37,6,38,6],[37,7,42,7],[54,5,55,5],[54,6,55,6],[58,7,63,7],[56,5,57,5],[56,6,57,6],[60,6,61,6],[58,6,59,6],[62,5,63,5],[62,6,63,6],[31,6,32,6],[31,7,36,7],[35,6,36,6],[79,7,84,7],[81,5,82,5],[81,6,82,6],[83,5,84,5],[83,6,84,6],[69,6,70,6],[71,5,72,5],[71,6,72,6],[73,5,74,5],[73,6,74,6],[67,7,72,7],[73,7,78,7],[75,5,76,5],[75,6,76,6],[77,5,78,5],[77,6,78,6],[79,6,80,6],[6,0,11,0],[12,0,17,0],[18,0,23,0],[100,0,105,0],[33,5,34,5],[33,6,34,6],[18,2,23,2],[18,5,19,5],[18,6,19,6],[52,5,53,5],[52,6,53,6],[60,5,61,5],[52,2,57,2],[58,2,63,2],[73,2,78,2],[67,2,72,2],[66,3,66,4],[27,6,28,6],[29,5,30,5],[29,6,30,6],[58,5,59,5],[27,5,28,5],[90,6,91,6],[96,5,97,5],[6,7,11,7],[6,2,11,2],[12,2,17,2],[12,5,13,5],[12,6,13,6],[12,7,17,7],[14,5,15,5],[14,6,15,6],[16,5,17,5],[6,5,7,5],[8,5,9,5],[10,5,11,5],[6,6,7,6],[8,6,9,6],[10,6,11,6],[16,6,17,6],[113,5,114,5],[90,5,91,5],[130,1,135,1],[130,0,135,0],[136,1,141,1],[136,0,141,0],[132,5,133,5],[132,6,133,6],[140,5,141,5],[140,6,141,6],[109,1,114,1],[109,0,114,0],[108,3,108,4],[138,5,139,5],[138,6,139,6],[115,5,116,5],[117,5,118,5],[119,5,120,5],[130,5,131,5],[130,6,131,6],[96,6,97,6],[79,1,84,1],[98,5,99,5],[98,6,99,6],[100,5,101,5],[100,6,101,6],[67,5,68,5],[67,6,68,6],[69,5,70,5],[87,3,87,4],[25,7,30,7],[45,3,45,4],[79,2,84,2],[79,5,80,5],[150,3,150,4],[171,3,171,4],[192,3,192,4],[18,7,23,7],[20,5,21,5],[20,6,21,6],[22,5,23,5],[22,6,23,6],[46,5,47,5],[46,6,47,6],[39,5,40,5],[39,6,40,6],[41,5,42,5],[41,6,42,6],[46,7,51,7],[48,5,49,5],[48,6,49,6],[50,5,51,5],[50,6,51,6],[35,5,36,5]]}
[null,"FÖRDERPLAN - ANGEBOTE\nzur Beobachtung, Planung und Reflexion"]
[]
[]
[]
[]
[null,"Zeitraum","Förderangebot","Beteiligte Kinder",null,"Förderziel","Bildungsbereich","Reflexion des Förderangebots"]
[1,"2024-09-01","Beispielhaftes Förderangebot: Hier haben Sie Platz für die Beschreibung Ihres Förderangebots. Dieses wird nach Betätigen des Buttons \"Förderangebote übertragen\" (rechts neben der Tabelle) in die Registerblätter der teilnehmenden Kinder übertragen. ","Kind 1","Kind 6","Hier können Sie für das Förderangebot bis zu drei Förderziele auswählen","Hier können Sie die Bildungsbereiche wählen","Hier ist Platz für Ihre Reflexion zu dem jeweiligen Förderangebot. Diese wird nicht in die Registerblätter übertragen. In den einzelnen Registerblättern können Sie die Reflexion speziell für das jeweilige Kind ergänzen. "]
[null,null,null,"Kind 2","Kind 7",null,null,null,null,null,null,"Förderziele "]
[null,null,null,"Kind 3","Kind 8",null,null,null,null,null,"1.","Das Kind formuliert Aussagesätze mit einteiligem Prädikat"]
[null,null,null,"Kind 4","Kind 9",null,null,null,null,null,"2.","Das Kind formuliert Aussagesätze mit zweiteiligem Prädikat"]
[null,null,null,"Kind 5","Kind 10",null,null,null,null,null,"3.","Das Kind beugt Verben richtig"]
[null,null,null,null,null,null,null,null,null,null,"4.","Das Kind verwendet flexible Satzstrukturen"]
[2,null,"Hier ist Platz für Ihr 1. Förderangebot ",null,null,null,null,null,null,null,"5.","Das Kind formuliert Fragesätze"]
[null,null,null,null,null,null,null,null,null,null,"6.","Das Kind kann Einzahl und Mehrzahl von Nomen korrekt bilden"]
[null,null,null,null,null,null,null,null,null,null,"7.","Das Kind verwendet Nebensatzeinleiter"]
[null,null,null,null,null,null,null,null,null,null,"8.","Das Kind verwendet Artikel in Begleitung von Nomen"]
[null,null,null,null,null,null,null,null,null,null,"9.","Das Kind verwendet komplexe und differenzierte Strukturen mit Satzgefügen"]
[null,null,null,null,null,null,null,null,null,null,"10.","Das Kind versteht Alltagsbegriffe aus dem unmittelbaren Lebensumfeld"]
[3,null,null,null,null,null,null,null,null,null,"11.","Das Kind versteht Präpositionen"]
[null,null,null,null,null,null,null,null,null,null,"12.","Das Kind versteht W-Fragen "]
[null,null,null,null,null,null,null,null,null,null,"13.","Das Kind versteht einfache Aufträge ohne nonverbale Hinweise"]
[null,null,null,null,null,null,null,null,null,null,"14.","Das Kind versteht zwei- oder dreiteilige Aufträge ohne nonverbale Hinweise"]
[null,null,null,null,null,null,null,null,null,null,"15.","Das Kind hat einen Basiswortschatz an Verben "]
[null,null,null,null,null,null,null,null,null,null,"16.","Das Kind hat einen Basiswortschatz an Nomen"]
[null,null,null,null,null,null,null,null,null,null,"17.","Das Kind hat einen Basiswortschatz an Adjektiven"]
[4,null,null,null,null,null,null,null,null,null,"18.","Das Kind hat einen erweiterten Basiswortschatz an Verben"]
[null,null,null,null,null,null,null,null,null,null,"19.","Das Kind hat einen erweiterten Basiswortschatz an Nomen"]
[null,null,null,null,null,null,null,null,null,null,"20.","Das Kind hat einen erweiterten Basiswortschatz an Adjektiven"]
[null,null,null,null,null,null,null,null,null,null,"21.","Das Kind produziert abstrakte, zeitliche und psychisch-mentale Verben & Nomen"]
[null,null,null,null,null,null,null,null,null,null,"22.","Das Kind beteiligt sich aktiv am Gespräch"]
[null,null,null,null,null,null,null,null,null,null,"23.","Das Kind äußert Wünsche und Bedürfnisse"]
[5,null,null,null,null,null,null,null,null,null,"24.","Das Kind erzählt eine Geschichte sprachlich zusammenhängend nach "]
[null,null,null,null,null,null,null,null,null,null,"25.","Das Kind erzählt von eigenen Erlebnissen inhaltlich nachvollziehbar"]
[null,null,null,null,null,null,null,null,null,null,"26.","Das Kind äußert Ideen und entwickelt gemeinsame Pläne "]
[null,null,null,null,null,null,null,null,null,null,"27.","Das Kind verbalisiert seine Gefühle"]
[null,null,null,null,null,null,null,null,null,null,"28.","Das Kind äußert seine Meinung"]
[null,null,null,null,null,null,null,null,null,null,"29.","Das Kind begründet, erklärt und argumentiert"]
[6,null,null,null,null,null,null,null,null,null,"30.","Das Kind verwendet seine Erstsprache "]
[null,null,null,null,null,null,null,null,null,null,"31.","Das Kind zeigt Interesse an der deutschen Sprache "]
[null,null,null,null,null,null,null,null,null,null,"32.","Das Kind nimmt mit unterschiedlichen Sinnen  wahr"]
[]
[]
[]
[]
[]
[null,"Zeitraum","Förderangebot","Beteiligte Kinder",null,"Förderziel","Bildungsbereich","Beobachtung/Reflexion"]
[7]
[]
[]
[]
[]
[]
[8]
[]
[]
[]
[]
[]
[9]
[]
[]
[]
[]
[]
[]
[]
[null,"Zeitraum","Förderangebot","Beteiligte Kinder",null,"Förderziel","Bildungsbereich","Beobachtung/Reflexion"]
[10]
[]
[]
[]
[]
[]
[11]
[]
[]
[]
[]
[]
[12]
[]
[]
[]
[]
[]
[]
[]
[null,"Zeitraum","Förderangebot","Beteiligte Kinder",null,"Förderziel","Bildungsbereich","Beobachtung/Reflexion"]
[13]
[]
[]
[]
[]
[]
[14]
[]
[]
[]
[]
[]
[15]
[]
[]
[]
[]
[]
[]
[]
[null,"Zeitraum","Förderangebot","Beteiligte Kinder",null,"Förderziel","Bildungsbereich","Beobachtung/Reflexion"]
[16]
[]
[]
[]
[]
[]
[17]
[]
[]
[]
[]
[]
[18]
[]
[]
[]
[]
[]
[]
[]
[null,"Zeitraum","Förderangebot","Beteiligte Kinder",null,"Förderziel","Bildungsbereich","Beobachtung/Reflexion"]
[19]
[]
[]
[]
[]
[]
[20]
[]
[]
[]
[]
[]
[21]
[]
[]
[]
[]
[]
[]
[]
[null,"Zeitraum","Förderangebot","Beteiligte Kinder",null,"Förderziel","Bildungsbereich","Beobachtung/Reflexion"]
[22]
[]
[]
[]
[]
[]
[23]
[]
[]
[]
[]
[]
[24]
[]
[]
[]
[]
[]
[]
[]
[null,"Zeitraum","Förderangebot","Beteiligte Kinder",null,"Förderziel","Bildungsbereich","Beobachtung/Reflexion"]
[25]
[]
[]
[]
[]
[]
[26]
[]
[]
[]
[]
[]
[27]
[]
[]
[]
[]
[]
[]
[]
[null,"Zeitraum","Förderangebot","Beteiligte Kinder",null,"Förderziel","Bildungsbereich","Beobachtung/Reflexion"]
[28]
[]
[]
[]
[]
[]
[29]
[]
[]
[]
[]
[]
[30]

{"sheet":"Kinderliste","index":2,"n_rows":17,"n_cols":6,"rows_kept":17,"cut":false,"hidden":false,"merged":[[0,0,3,10],[6,2,6,3],[8,5,14,10]]}
["FÖRDERPLAN - Kinderliste \nzur Beobachtung, Planung und Reflexion"]
[]
[]
[]
[]
[]
[null,"Registerblatt","Name des Kindes"]
[null,"Kind 1",{"$f":"'Kind 1'!A9","v":0},{"$f":"'Kind 1'!A10","v":0}]
[null,"Kind 2",{"$f":"'Kind 2'!A9","v":0},{"$f":"'Kind 2'!A10","v":0},null,"Auf diesem und den nachfolgenden Registerblättern (Kind 1-Kind 10) befinden sich sensible Daten, die besonderen Schutz bedürfen. Diese Registerblätter und Daten sind ausschließlich für Ihre pädagogische Arbeit in der elementaren Bildungseinrichtung und nicht zur Weitergabe vorgesehen. Für weitere Fragen zur Datensicherheit sowie Datenschutz kontaktieren Sie die datenschutzbeauftragte Person Ihrer Arbeitgeberin/Ihres Arbeitgebers."]
[null,"Kind 3",{"$f":"'Kind 3'!A9","v":0},{"$f":"'Kind 3'!A10","v":0}]
[null,"Kind 4",{"$f":"'Kind 4'!A9","v":0},{"$f":"'Kind 4'!A10","v":0}]
[null,"Kind 5",{"$f":"'Kind 5'!A9","v":0},{"$f":"'Kind 5'!A10","v":0}]
[null,"Kind 6",{"$f":"'Kind 6'!A9","v":0},{"$f":"'Kind 6'!A10","v":0}]
[null,"Kind 7",{"$f":"'Kind 7'!A9","v":0},{"$f":"'Kind 7'!A10","v":0}]
[null,"Kind 8",{"$f":"'Kind 8'!A9","v":0},{"$f":"'Kind 8'!A10","v":0}]
[null,"Kind 9",{"$f":"'Kind 9'!A9","v":0},{"$f":"'Kind 9'!A10","v":0}]
[null,"Kind 10",{"$f":"'Kind 10'!A9","v":0},{"$f":"'Kind 10'!A10","v":0}]

{"sheet":"Kind 1","index":3,"n_rows":65,"n_cols":15,"rows_kept":65,"cut":false,"hidden":false,"merged":[[40,7,45,10],[46,7,46,10],[55,7,55,10],[24,0,24,2],[25,0,25,2],[26,0,26,2],[27,0,27,2],[41,0,41,2],[42,0,42,2],[43,0,43,2],[44,0,44,2],[45,0,45,2],[46,0,46,5],[49,0,49,2],[51,0,51,2],[52,0,52,2],[56,7,57,10],[47,7,54,10],[58,0,58,5],[58,7,58,10],[59,7,64,10],[59,0,59,2],[60,0,60,2],[61,0,61,2],[62,0,62,2],[63,0,63,2],[64,0,64,2],[55,0,55,5],[56,0,56,2],[48,0,48,2],[54,0,54,2],[50,0,50,2],[0,0,4,10],[23,7,23,10],[24,7,32,10],[28,0,28,2],[29,0,29,2],[30,0,30,2],[31,0,31,2],[32,0,32,2],[6,2,12,5],[13,2,13,5],[33,7,33,10],[34,7,38,10],[39,7,39,10],[6,7,6,9],[15,7,19,9],[7,7,12,9],[13,7,13,9],[53,0,53,2],[14,2,19,5],[21,0,22,2],[57,0,57,2],[47,0,47,2],[34,0,34,2],[35,0,35,2],[36,0,36,2],[37,0,37,2],[38,0,38,2],[40,0,40,2],[21,3,21,5],[23,0,23,5],[33,0,33,5],[39,0,39,5],[1,11,65,11],[37,12,37,13],[38,12,40,13],[41,12,43,13],[44,12,46,13],[4,12,4,13],[5,12,5,13],[62,12,64,13],[47,12,49,13],[50,12,52,13],[53,12,55,13],[56,12,58,13],[59,12,61,13]]}
["FÖRDERPLAN - KIND 1\nzur Beobachtung, Planung und Reflexion"]
[]
[]
[]
[null,null,null,null,null,null,null,null,null,null,null,null,"Übersicht Förderangebote ",null,"Übersicht Förderangebote "]
["ID-Nummer",null,"Erklärung aktuelle Lernstufe (DaZ):",null,null,null,null,"Zone der nächsten Entwicklung: ",null,null,null,null,"Förderangebot",null,"Beobachtung/Reflexion"]
["Kind 1",null,{"$f":"VLOOKUP(A13,[1]Intern!A1:B7,2)","v":"Stufe 0 - Bruchstückhafte Äußerungen, Floskeln. Äußerungen ohne Verb; Verb nur in festen floskelhaften Wendungen. Rezeption: Starke Orientierung an Mimik und Gestik, Sprachmelodie und -betronung der Kommunikationspartner:innen."},null,null,null,null,{"$f":"A13+1","v":1},null,null,null,null,1,"Beispielhaftes Förderangebot: Hier haben Sie Platz für die Beschreibung Ihres Förderangebots. Dieses wird nach Betätigen des Buttons \"Förderangebote übertragen\" (rechts neben der Tabelle) in die Registerblätter der teilnehmenden Kinder übertragen. "]
["Name des Kindes: ",null,null,null,null,null,null,{"$f":"VLOOKUP(H7,[1]Intern!A1:B7,2)","v":"Stufe 1 - Verbindungen mit Verben (noch ohne Übereinstimmung mit dem Subjekt). Wortschatz: erste Wörter. Satzbau: noch keine satzwertigen Strukturen; Verb in der Nennform oder Partizip Perfekt ohne Hilfszeitwort am Ende der Äußerung. Artikel: Auslassung bzw. zufällige Verwendung. "},null,null,null,null,2,"Hier ist Platz für Ihr 1. Förderangebot "]
[]
[]
["DaZ:"]
["Lernstufe (DaZ):"]
[0]
[null,null,"Erklärung aktuelle Altersstufe (DaE):",null,null,null,null,"Zone der nächsten Entwicklung: "]
[null,null,{"$f":"VLOOKUP(A18,[1]Intern!I1:J4,2)","v":"ab dem 3. Lebensjahr - \"Wortschatzexplosion\"; einfache Sätze in Gegenwart und Vergangenheit; Verbbeugung; erste Fragen und Dialoge entwickeln sich; Pluralbildungen entstehen; einfache Sprachhandlungen."},null,null,null,null,{"$f":"A18+1","v":4},". Lebensjahr"]
["DaE: ",null,null,null,null,null,null,{"$f":"VLOOKUP(H15,[1]Intern!I1:J4,2)","v":"ab dem 4. Lebensjahr - Festigung der Satzbaustruktur (Aussagesatz mit ein- und zweiteiligem Prädikat, Fragesätze, einfache Nebensätze); Satzverbindungen; Warum-Fragen; Äußerung von Wünschen; Verwendung einfacher Oberbegriffe; Lautbildung weitgehend abgeschlossen."}]
["Altersstufe (DaE): "]
[3,". Lebensjahr"]
[]
[]
[]
["Beobachtungen ",null,null,"Beobachtungszeitraum"]
[null,null,null,"OKT","JÄN","APR",null,"Notizen zu den Beobachtungen (optional)"]
["Syntax/Satzbau - Produktion"]
["Das Kind formuliert Aussagesätze mit einteiligem Prädikat"]
["Das Kind formuliert Aussagesätze mit zweiteiligem Prädikat"]
["Das Kind beugt Verben richtig"]
["Das Kind verwendet flexible Satzstrukturen"]
["Das Kind formuliert Fragesätze"]
["Das Kind kann Einzahl und Mehrzahl von Nomen korrekt bilden"]
["Das Kind verwendet Nebensatzeinleiter"]
["Das Kind verwendet Artikel in Begleitung von Nomen"]
["Das Kind verwendet komplexe und differenzierte Strukturen mit Satzgefügen"]
["Wortschatz - Rezeption"]
["Das Kind versteht Alltagsbegriffe aus dem unmittelbaren Lebensumfeld"]
["Das Kind versteht Präpositionen"]
["Das Kind versteht W-Fragen "]
["Das Kind versteht einfache Aufträge ohne nonverbale Hinweise",null,null,null,null,null,null,null,null,null,null,null,"weitere Notizoptionen "]
["Das Kind versteht zwei- oder dreiteilige Aufträge ohne nonverbale Hinweise"]
["Wortschatz - Produktion"]
["Das Kind hat einen Basiswortschatz an Verben "]
["Das Kind hat einen Basiswortschatz an Nomen"]
["Das Kind hat einen erweiterten Basiswortschatz an Verben"]
["Das Kind hat einen erweiterten Basiswortschatz an Nomen"]
["Das Kind hat einen (erweiterten) Basiswortschatz an Adjektiven"]
["Das Kind produziert abstrakte, zeitliche und psychisch-mentale Verben & Nomen"]
["Erzählen/Sprachhandlungen"]
["Das Kind beteiligt sich aktiv am Gespräch"]
["Das Kind äußert Wünsche und Bedürfnisse"]
["Das Kind erzählt eine Geschichte sprachlich zusammenhängend nach "]
["Das Kind erzählt von eigenen Erlebnissen inhaltlich nachvollziehbar"]
["Das Kind äußert Ideen und entwickelt gemeinsame Pläne "]
["Das Kind verbalisiert seine Gefühle"]
["Das Kind äußert seine Meinung"]
["Das Kind begründet, erklärt und argumentiert"]
["Interkulturalität/Werte"]
["Das Kind verwendet seine Erstsprache "]
["Das Kind zeigt Interesse an der deutschen Sprache "]
["Wahrnehmungsbereiche"]
["Das Kind nimmt akustische Signale wahr"]
["Das Kind nimmt visuelle Signale wahr"]
["Das Kind nimmt taktile Signale wahr "]
["Das Kind nimmt kinästhetische Signale wahr"]
["Das Kind nimmt olfaktorische Signale wahr"]
["Das Kind nimmt gustatorische Signale wahr "]

{"sheet":"Kind 2","index":4,"n_rows":65,"n_cols":15,"rows_kept":65,"cut":false,"hidden":false,"merged":[[13,2,13,5],[13,7,13,9],[4,12,4,13],[5,12,5,13],[0,0,4,10],[6,7,6,9],[6,2,12,5],[7,7,12,9],[21,0,22,2],[21,3,21,5],[23,0,23,5],[23,7,23,10],[15,7,19,9],[14,2,19,5],[24,0,24,2],[24,7,32,10],[25,0,25,2],[26,0,26,2],[27,0,27,2],[28,0,28,2],[29,0,29,2],[30,0,30,2],[31,0,31,2],[32,0,32,2],[33,0,33,5],[33,7,33,10],[34,0,34,2],[34,7,38,10],[35,0,35,2],[36,0,36,2],[37,0,37,2],[38,0,38,2],[39,0,39,5],[39,7,39,10],[40,0,40,2],[40,7,45,10],[41,0,41,2],[42,0,42,2],[43,0,43,2],[44,0,44,2],[45,0,45,2],[46,0,46,5],[46,7,46,10],[47,0,47,2],[47,7,54,10],[48,0,48,2],[49,0,49,2],[50,0,50,2],[51,0,51,2],[52,0,52,2],[53,0,53,2],[54,0,54,2],[58,0,58,5],[58,7,58,10],[59,0,59,2],[59,7,64,10],[60,0,60,2],[61,0,61,2],[62,0,62,2],[63,0,63,2],[64,0,64,2],[55,0,55,5],[55,7,55,10],[56,0,56,2],[56,7,57,10],[57,0,57,2],[50,12,52,13],[53,12,55,13],[56,12,58,13],[59,12,61,13],[62,12,64,13],[37,12,37,13],[38,12,40,13],[41,12,43,13],[44,12,46,13],[47,12,49,13]]}
["FÖRDERPLAN - KIND 2\nzur Beobachtung, Planung und Reflexion"]
[]
[]
[]
[null,null,null,null,null,null,null,null,null,null,null,null,"Übersicht Förderangebote ",null,"Übersicht Förderangebote "]
["ID-Nummer",null,"Erklärung aktuelle Lernstufe (DaZ):",null,null,null,null,"Zone der nächsten Entwicklung: ",null,null,null,null,"Förderangebot",null,"Beobachtung/Reflexion"]
["Kind 2",null,{"$f":"VLOOKUP(A13,[1]Intern!A1:B7,2)","v":"Stufe 1 - Verbindungen mit Verben (noch ohne Übereinstimmung mit dem Subjekt). Wortschatz: erste Wörter. Satzbau: noch keine satzwertigen Strukturen; Verb in der Nennform oder Partizip Perfekt ohne Hilfszeitwort am Ende der Äußerung. Artikel: Auslassung bzw. zufällige Verwendung. "},null,null,null,null,{"$f":"A13+1","v":2},null,null,null,null,1,"Beispielhaftes Förderangebot: Hier haben Sie Platz für die Beschreibung Ihres Förderangebots. Dieses wird nach Betätigen des Buttons \"Förderangebote übertragen\" (rechts neben der Tabelle) in die Registerblätter der teilnehmenden Kinder übertragen. "]
["Name des Kindes: ",null,null,null,null,null,null,{"$f":"VLOOKUP(H7,[1]Intern!A1:B7,2)","v":"Stufe 2 - Aussagesätze mit einteiligem Prädikat (Prädikat an der 2. Stelle, übereingestimmt mit Subjekt). Wortschatz: basaler Alltagswortschatz betreffend das nächste Lebensumfeld; Präpositionen: meist ausgelassen oder ersetzt; Artikel: grammatisches Geschlecht unsicher; Sprachhandlungen: Mitteilungen, Aufforderungen, Vorschläge, Beschreibungen."},null,null,null,null,2,"Hier ist Platz für Ihr 1. Förderangebot "]
[]
[]
["DaZ:"]
["Lernstufe (DaZ):"]
[1]
[null,null,"Erklärung aktuelle Altersstufe (DaE):",null,null,null,null,"Zone der nächsten Entwicklung: "]
[null,null,{"$f":"VLOOKUP(A18,[1]Intern!I1:J4,2)","v":"ab dem 3. Lebensjahr - \"Wortschatzexplosion\"; einfache Sätze in Gegenwart und Vergangenheit; Verbbeugung; erste Fragen und Dialoge entwickeln sich; Pluralbildungen entstehen; einfache Sprachhandlungen."},null,null,null,null,{"$f":"A18+1","v":4},". Lebensjahr"]
["DaE: ",null,null,null,null,null,null,{"$f":"VLOOKUP(H15,[1]Intern!I1:J4,2)","v":"ab dem 4. Lebensjahr - Festigung der Satzbaustruktur (Aussagesatz mit ein- und zweiteiligem Prädikat, Fragesätze, einfache Nebensätze); Satzverbindungen; Warum-Fragen; Äußerung von Wünschen; Verwendung einfacher Oberbegriffe; Lautbildung weitgehend abgeschlossen."}]
["Altersstufe (DaE): "]
[3,". Lebensjahr"]
[]
[]
[]
["Beobachtungen ",null,null,"Beobachtungszeitraum"]
[null,null,null,"OKT","JÄN","APR",null,"Notizen zu den Beobachtungen (optional)"]
["Syntax/Satzbau - Produktion"]
["Das Kind formuliert Aussagesätze mit einteiligem Prädikat"]
["Das Kind formuliert Aussagesätze mit zweiteiligem Prädikat"]
["Das Kind beugt Verben richtig "]
["Das Kind verwendet flexible Satzstrukturen"]
["Das Kind formuliert Fragesätze"]
["Das Kind kann Einzahl und Mehrzahl von Nomen korrekt bilden"]
["Das Kind verwendet Nebensatzeinleiter"]
["Das Kind verwendet Artikel in Begleitung von Nomen"]
["Das Kind verwendet komplexe und differenzierte Strukturen mit Satzgefügen"]
["Wortschatz - Rezeption"]
["Das Kind versteht Alltagsbegriffe aus dem unmittelbaren Lebensumfeld"]
["Das Kind versteht Präpositionen"]
["Das Kind versteht W-Fragen "]
["Das Kind versteht einfache Aufträge ohne nonverbale Hinweise",null,null,null,null,null,null,null,null,null,null,null,"weitere Notizoptionen "]
["Das Kind versteht zwei- oder dreiteilige Aufträge ohne nonverbale Hinweise"]
["Wortschatz - Produktion"]
["Das Kind hat einen Basiswortschatz an Verben "]
["Das Kind hat einen Basiswortschatz an Nomen"]
["Das Kind hat einen erweiterten Basiswortschatz an Verben"]
["Das Kind hat einen erweiterten Basiswortschatz an Nomen"]
["Das Kind hat einen (erweiterten) Basiswortschatz an Adjektiven"]
["Das Kind produziert abstrakte, zeitliche und psychisch-mentale Verben & Nomen"]
["Erzählen/Sprachhandlungen"]
["Das Kind beteiligt sich aktiv am Gespräch"]
["Das Kind äußert Wünsche und Bedürfnisse"]
["Das Kind erzählt eine Geschichte sprachlich zusammenhängend nach "]
["Das Kind erzählt von eigenen Erlebnissen inhaltlich nachvollziehbar"]
["Das Kind äußert Ideen und entwickelt gemeinsame Pläne "]
["Das Kind verbalisiert seine Gefühle"]
["Das Kind äußert seine Meinung"]
["Das Kind begründet, erklärt und argumentiert"]
["Interkulturalität/Werte"]
["Das Kind verwendet seine Erstsprache "]
["Das Kind zeigt Interesse an der deutschen Sprache "]
["Wahrnehmungsbereiche"]
["Das Kind nimmt akustische Signale wahr"]
["Das Kind nimmt visuelle Signale wahr"]
["Das Kind nimmt taktile Signale wahr "]
["Das Kind nimmt kinästhetische Signale wahr"]
["Das Kind nimmt olfaktorische Signale wahr"]
["Das Kind nimmt gustatorische Signale wahr "]

{"sheet":"Kind 3","index":5,"n_rows":65,"n_cols":15,"rows_kept":65,"cut":false,"hidden":false,"merged":[[13,2,13,5],[13,7,13,9],[4,12,4,13],[5,12,5,13],[0,0,4,10],[6,7,6,9],[6,2,12,5],[7,7,12,9],[21,0,22,2],[21,3,21,5],[23,0,23,5],[23,7,23,10],[15,7,19,9],[14,2,19,5],[24,0,24,2],[24,7,32,10],[25,0,25,2],[26,0,26,2],[27,0,27,2],[28,0,28,2],[29,0,29,2],[30,0,30,2],[31,0,31,2],[32,0,32,2],[33,0,33,5],[33,7,33,10],[34,0,34,2],[34,7,38,10],[35,0,35,2],[36,0,36,2],[37,0,37,2],[38,0,38,2],[39,0,39,5],[39,7,39,10],[40,0,40,2],[40,7,45,10],[41,0,41,2],[42,0,42,2],[43,0,43,2],[44,0,44,2],[45,0,45,2],[46,0,46,5],[46,7,46,10],[47,0,47,2],[47,7,54,10],[48,0,48,2],[49,0,49,2],[50,0,50,2],[51,0,51,2],[52,0,52,2],[53,0,53,2],[54,0,54,2],[58,0,58,5],[58,7,58,10],[59,0,59,2],[59,7,64,10],[60,0,60,2],[61,0,61,2],[62,0,62,2],[63,0,63,2],[64,0,64,2],[55,0,55,5],[55,7,55,10],[56,0,56,2],[56,7,57,10],[57,0,57,2],[50,12,52,13],[53,12,55,13],[56,12,58,13],[59,12,61,13],[62,12,64,13],[37,12,37,13],[38,12,40,13],[41,12,43,13],[44,12,46,13],[47,12,49,13]]}
["FÖRDERPLAN - KIND 3\nzur Beobachtung, Planung und Reflexion"]
[]
[]
[]
[null,null,null,null,null,null,null,null,null,null,null,null,"Übersicht Förderangebote ",null,"Übersicht Förderangebote "]
["ID-Nummer",null,"Erklärung aktuelle Lernstufe (DaZ):",null,null,null,null,"Zone der nächsten Entwicklung: ",null,null,null,null,"Förderangebot",null,"Beobachtung/Reflexion"]
["Kind 3",null,{"$f":"VLOOKUP(A13,[1]Intern!A1:B7,2)","v":"Stufe 1 - Verbindungen mit Verben (noch ohne Übereinstimmung mit dem Subjekt). Wortschatz: erste Wörter. Satzbau: noch keine satzwertigen Strukturen; Verb in der Nennform oder Partizip Perfekt ohne Hilfszeitwort am Ende der Äußerung. Artikel: Auslassung bzw. zufällige Verwendung. "},null,null,null,null,{"$f":"A13+1","v":2},null,null,null,null,1,"Beispielhaftes Förderangebot: Hier haben Sie Platz für die Beschreibung Ihres Förderangebots. Dieses wird nach Betätigen des Buttons \"Förderangebote übertragen\" (rechts neben der Tabelle) in die Registerblätter der teilnehmenden Kinder übertragen. "]
["Name des Kindes: ",null,null,null,null,null,null,{"$f":"VLOOKUP(H7,[1]Intern!A1:B7,2)","v":"Stufe 2 - Aussagesätze mit einteiligem Prädikat (Prädikat an der 2. Stelle, übereingestimmt mit Subjekt). Wortschatz: basaler Alltagswortschatz betreffend das nächste Lebensumfeld; Präpositionen: meist ausgelassen oder ersetzt; Artikel: grammatisches Geschlecht unsicher; Sprachhandlungen: Mitteilungen, Aufforderungen, Vorschläge, Beschreibungen."},null,null,null,null,2,"Hier ist Platz für Ihr 1. Förderangebot "]
[]
[]
[]
["Lernstufe (DaZ):"]
[1]
[null,null,"Erklärung aktuelle Altersstufe (DaE):",null,null,null,null,"Zone der nächsten Entwicklung: "]
[null,null,{"$f":"VLOOKUP(A18,[1]Intern!I1:J4,2)","v":"ab dem 3. Lebensjahr - \"Wortschatzexplosion\"; einfache Sätze in Gegenwart und Vergangenheit; Verbbeugung; erste Fragen und Dialoge entwickeln sich; Pluralbildungen entstehen; einfache Sprachhandlungen."},null,null,null,null,{"$f":"A18+1","v":4},". Lebensjahr"]
["DaE: ",null,null,null,null,null,null,{"$f":"VLOOKUP(H15,[1]Intern!I1:J4,2)","v":"ab dem 4. Lebensjahr - Festigung der Satzbaustruktur (Aussagesatz mit ein- und zweiteiligem Prädikat, Fragesätze, einfache Nebensätze); Satzverbindungen; Warum-Fragen; Äußerung von Wünschen; Verwendung einfacher Oberbegriffe; Lautbildung weitgehend abgeschlossen."}]
["Altersstufe (DaE): "]
[3,". Lebensjahr"]
[]
[]
[]
["Beobachtungen ",null,null,"Beobachtungszeitraum"]
[null,null,null,"OKT","JÄN","APR",null,"Notizen zu den Beobachtungen (optional)"]
["Syntax/Satzbau - Produktion"]
["Das Kind formuliert Aussagesätze mit einteiligem Prädikat"]
["Das Kind formuliert Aussagesätze mit zweiteiligem Prädikat"]
["Das Kind beugt Verben richtig"]
["Das Kind verwendet flexible Satzstrukturen"]
["Das Kind formuliert Fragesätze"]
["Das Kind kann Einzahl und Mehrzahl von Nomen korrekt bilden"]
["Das Kind verwendet Nebensatzeinleiter"]
["Das Kind verwendet Artikel in Begleitung von Nomen"]
["Das Kind verwendet komplexe und differenzierte Strukturen mit Satzgefügen"]
["Wortschatz - Rezeption"]
["Das Kind versteht Alltagsbegriffe aus dem unmittelbaren Lebensumfeld"]
["Das Kind versteht Präpositionen"]
["Das Kind versteht W-Fragen "]
["Das Kind versteht einfache Aufträge ohne nonverbale Hinweise",null,null,null,null,null,null,null,null,null,null,null,"weitere Notizoptionen "]
["Das Kind versteht zwei- oder dreiteilige Aufträge ohne nonverbale Hinweise"]
["Wortschatz - Produktion"]
["Das Kind hat einen Basiswortschatz an Verben "]
["Das Kind hat einen Basiswortschatz an Nomen"]
["Das Kind hat einen erweiterten Basiswortschatz an Verben"]
["Das Kind hat einen erweiterten Basiswortschatz an Nomen"]
["Das Kind hat einen (erweiterten) Basiswortschatz an Adjektiven"]
["Das Kind produziert abstrakte, zeitliche und psychisch-mentale Verben & Nomen"]
["Erzählen/Sprachhandlungen"]
["Das Kind beteiligt sich aktiv am Gespräch"]
["Das Kind äußert Wünsche und Bedürfnisse"]
["Das Kind erzählt eine Geschichte sprachlich zusammenhängend nach "]
["Das Kind erzählt von eigenen Erlebnissen inhaltlich nachvollziehbar"]
["Das Kind äußert Ideen und entwickelt gemeinsame Pläne "]
["Das Kind verbalisiert seine Gefühle"]
["Das Kind äußert seine Meinung"]
["Das Kind begründet, erklärt und argumentiert"]
["Interkulturalität/Werte"]
["Das Kind verwendet seine Erstsprache "]
["Das Kind zeigt Interesse an der deutschen Sprache "]
["Wahrnehmungsbereiche"]
["Das Kind nimmt akustische Signale wahr"]
["Das Kind nimmt visuelle Signale wahr"]
["Das Kind nimmt taktile Signale wahr "]
["Das Kind nimmt kinästhetische Signale wahr"]
["Das Kind nimmt olfaktorische Signale wahr"]
["Das Kind nimmt gustatorische Signale wahr "]

{"sheet":"Kind 4","index":6,"n_rows":65,"n_cols":15,"rows_kept":65,"cut":false,"hidden":false,"merged":[[13,2,13,5],[13,7,13,9],[4,12,4,13],[5,12,5,13],[0,0,4,10],[6,7,6,9],[6,2,12,5],[7,7,12,9],[21,0,22,2],[21,3,21,5],[23,0,23,5],[23,7,23,10],[15,7,19,9],[14,2,19,5],[24,0,24,2],[24,7,32,10],[25,0,25,2],[26,0,26,2],[27,0,27,2],[28,0,28,2],[29,0,29,2],[30,0,30,2],[31,0,31,2],[32,0,32,2],[33,0,33,5],[33,7,33,10],[34,0,34,2],[34,7,38,10],[35,0,35,2],[36,0,36,2],[37,0,37,2],[38,0,38,2],[39,0,39,5],[39,7,39,10],[40,0,40,2],[40,7,45,10],[41,0,41,2],[42,0,42,2],[43,0,43,2],[44,0,44,2],[45,0,45,2],[46,0,46,5],[46,7,46,10],[47,0,47,2],[47,7,54,10],[48,0,48,2],[49,0,49,2],[50,0,50,2],[51,0,51,2],[52,0,52,2],[53,0,53,2],[54,0,54,2],[58,0,58,5],[58,7,58,10],[59,0,59,2],[59,7,64,10],[60,0,60,2],[61,0,61,2],[62,0,62,2],[63,0,63,2],[64,0,64,2],[55,0,55,5],[55,7,55,10],[56,0,56,2],[56,7,57,10],[57,0,57,2],[50,12,52,13],[53,12,55,13],[56,12,58,13],[59,12,61,13],[62,12,64,13],[37,12,37,13],[38,12,40,13],[41,12,43,13],[44,12,46,13],[47,12,49,13]]}
["FÖRDERPLAN - KIND 4\nzur Beobachtung, Planung und Reflexion"]
[]
[]
[]
[null,null,null,null,null,null,null,null,null,null,null,null,"Übersicht Förderangebote ",null,"Übersicht Förderangebote "]
["ID-Nummer",null,"Erklärung aktuelle Lernstufe (DaZ):",null,null,null,null,"Zone der nächsten Entwicklung: ",null,null,null,null,"Förderangebot",null,"Beobachtung/Reflexion"]
["Kind 4",null,{"$f":"VLOOKUP(A13,[1]Intern!A1:B7,2)","v":"Stufe 1 - Verbindungen mit Verben (noch ohne Übereinstimmung mit dem Subjekt). Wortschatz: erste Wörter. Satzbau: noch keine satzwertigen Strukturen; Verb in der Nennform oder Partizip Perfekt ohne Hilfszeitwort am Ende der Äußerung. Artikel: Auslassung bzw. zufällige Verwendung. "},null,null,null,null,{"$f":"A13+1","v":2},null,null,null,null,1,"Beispielhaftes Förderangebot: Hier haben Sie Platz für die Beschreibung Ihres Förderangebots. Dieses wird nach Betätigen des Buttons \"Förderangebote übertragen\" (rechts neben der Tabelle) in die Registerblätter der teilnehmenden Kinder übertragen. "]
["Name des Kindes: ",null,null,null,null,null,null,{"$f":"VLOOKUP(H7,[1]Intern!A1:B7,2)","v":"Stufe 2 - Aussagesätze mit einteiligem Prädikat (Prädikat an der 2. Stelle, übereingestimmt mit Subjekt). Wortschatz: basaler Alltagswortschatz betreffend das nächste Lebensumfeld; Präpositionen: meist ausgelassen oder ersetzt; Artikel: grammatisches Geschlecht unsicher; Sprachhandlungen: Mitteilungen, Aufforderungen, Vorschläge, Beschreibungen."},null,null,null,null,2,"Hier ist Platz für Ihr 1. Förderangebot "]
[]
[]
["DaZ:"]
["Lernstufe (DaZ):"]
[1]
[null,null,"Erklärung aktuelle Altersstufe (DaE):",null,null,null,null,"Zone der nächsten Entwicklung: "]
[null,null,{"$f":"VLOOKUP(A18,[1]Intern!I1:J4,2)","v":"ab dem 3. Lebensjahr - \"Wortschatzexplosion\"; einfache Sätze in Gegenwart und Vergangenheit; Verbbeugung; erste Fragen und Dialoge entwickeln sich; Pluralbildungen entstehen; einfache Sprachhandlungen."},null,null,null,null,{"$f":"A18+1","v":4},". Lebensjahr"]
["DaE: ",null,null,null,null,null,null,{"$f":"VLOOKUP(H15,[1]Intern!I1:J4,2)","v":"ab dem 4. Lebensjahr - Festigung der Satzbaustruktur (Aussagesatz mit ein- und zweiteiligem Prädikat, Fragesätze, einfache Nebensätze); Satzverbindungen; Warum-Fragen; Äußerung von Wünschen; Verwendung einfacher Oberbegriffe; Lautbildung weitgehend abgeschlossen."}]
["Altersstufe (DaE): "]
[3,". Lebensjahr"]
[]
[]
[]
["Beobachtungen ",null,null,"Beobachtungszeitraum"]
[null,null,null,"OKT","JÄN","APR",null,"Notizen zu den Beobachtungen (optional)"]
["Syntax/Satzbau - Produktion"]
["Das Kind formuliert Aussagesätze mit einteiligem Prädikat"]
["Das Kind formuliert Aussagesätze mit zweiteiligem Prädikat"]
["Das Kind beugt Verben richtig"]
["Das Kind verwendet flexible Satzstrukturen"]
["Das Kind formuliert Fragesätze"]
["Das Kind kann Einzahl und Mehrzahl von Nomen korrekt bilden"]
["Das Kind verwendet Nebensatzeinleiter"]
["Das Kind verwendet Artikel in Begleitung von Nomen"]
["Das Kind verwendet komplexe und differenzierte Strukturen mit Satzgefügen"]
["Wortschatz - Rezeption"]
["Das Kind versteht Alltagsbegriffe aus dem unmittelbaren Lebensumfeld"]
["Das Kind versteht Präpositionen"]
["Das Kind versteht W-Fragen "]
["Das Kind versteht einfache Aufträge ohne nonverbale Hinweise",null,null,null,null,null,null,null,null,null,null,null,"weitere Notizoptionen "]
["Das Kind versteht zwei- oder dreiteilige Aufträge ohne nonverbale Hinweise"]
["Wortschatz - Produktion"]
["Das Kind hat einen Basiswortschatz an Verben "]
["Das Kind hat einen Basiswortschatz an Nomen"]
["Das Kind hat einen erweiterten Basiswortschatz an Verben"]
["Das Kind hat einen erweiterten Basiswortschatz an Nomen"]
["Das Kind hat einen (erweiterten) Basiswortschatz an Adjektiven"]
["Das Kind produziert abstrakte, zeitliche und psychisch-mentale Verben & Nomen"]
["Erzählen/Sprachhandlungen"]
["Das Kind beteiligt sich aktiv am Gespräch"]
["Das Kind äußert Wünsche und Bedürfnisse"]
["Das Kind erzählt eine Geschichte sprachlich zusammenhängend nach "]
["Das Kind erzählt von eigenen Erlebnissen inhaltlich nachvollziehbar"]
["Das Kind äußert Ideen und entwickelt gemeinsame Pläne "]
["Das Kind verbalisiert seine Gefühle"]
["Das Kind äußert seine Meinung"]
["Das Kind begründet, erklärt und argumentiert"]
["Interkulturalität/Werte"]
["Das Kind verwendet seine Erstsprache "]
["Das Kind zeigt Interesse an der deutschen Sprache "]
["Wahrnehmungsbereiche"]
["Das Kind nimmt akustische Signale wahr"]
["Das Kind nimmt visuelle Signale wahr"]
["Das Kind nimmt taktile Signale wahr "]
["Das Kind nimmt kinästhetische Signale wahr"]
["Das Kind nimmt olfaktorische Signale wahr"]
["Das Kind nimmt gustatorische Signale wahr "]

{"sheet":"Kind 5","index":7,"n_rows":65,"n_cols":15,"rows_kept":65,"cut":false,"hidden":false,"merged":[[13,2,13,5],[13,7,13,9],[4,12,4,13],[5,12,5,13],[0,0,4,10],[6,7,6,9],[6,2,12,5],[7,7,12,9],[21,0,22,2],[21,3,21,5],[23,0,23,5],[23,7,23,10],[15,7,19,9],[14,2,19,5],[24,0,24,2],[24,7,32,10],[25,0,25,2],[26,0,26,2],[27,0,27,2],[28,0,28,2],[29,0,29,2],[30,0,30,2],[31,0,31,2],[32,0,32,2],[33,0,33,5],[33,7,33,10],[34,0,34,2],[34,7,38,10],[35,0,35,2],[36,0,36,2],[37,0,37,2],[38,0,38,2],[39,0,39,5],[39,7,39,10],[40,0,40,2],[40,7,45,10],[41,0,41,2],[42,0,42,2],[43,0,43,2],[44,0,44,2],[45,0,45,2],[46,0,46,5],[46,7,46,10],[47,0,47,2],[47,7,54,10],[48,0,48,2],[49,0,49,2],[50,0,50,2],[51,0,51,2],[52,0,52,2],[53,0,53,2],[54,0,54,2],[58,0,58,5],[58,7,58,10],[59,0,59,2],[59,7,64,10],[60,0,60,2],[61,0,61,2],[62,0,62,2],[63,0,63,2],[64,0,64,2],[55,0,55,5],[55,7,55,10],[56,0,56,2],[56,7,57,10],[57,0,57,2],[50,12,52,13],[53,12,55,13],[56,12,58,13],[59,12,61,13],[62,12,64,13],[37,12,37,13],[38,12,40,13],[41,12,43,13],[44,12,46,13],[47,12,49,13]]}
["FÖRDERPLAN - KIND 5\nzur Beobachtung, Planung und Reflexion"]
[]
[]
[]
[null,null,null,null,null,null,null,null,null,null,null,null,"Übersicht Förderangebote ",null,"Übersicht Förderangebote "]
["ID-Nummer",null,"Erklärung aktuelle Lernstufe (DaZ):",null,null,null,null,"Zone der nächsten Entwicklung: ",null,null,null,null,"Förderangebot",null,"Beobachtung/Reflexion"]
["Kind 5",null,{"$f":"VLOOKUP(A13,[1]Intern!A1:B7,2)","v":"Stufe 1 - Verbindungen mit Verben (noch ohne Übereinstimmung mit dem Subjekt). Wortschatz: erste Wörter. Satzbau: noch keine satzwertigen Strukturen; Verb in der Nennform oder Partizip Perfekt ohne Hilfszeitwort am Ende der Äußerung. Artikel: Auslassung bzw. zufällige Verwendung. "},null,null,null,null,{"$f":"A13+1","v":2},null,null,null,null,1,"Beispielhaftes Förderangebot: Hier haben Sie Platz für die Beschreibung Ihres Förderangebots. Dieses wird nach Betätigen des Buttons \"Förderangebote übertragen\" (rechts neben der Tabelle) in die Registerblätter der teilnehmenden Kinder übertragen. "]
["Name des Kindes: ",null,null,null,null,null,null,{"$f":"VLOOKUP(H7,[1]Intern!A1:B7,2)","v":"Stufe 2 - Aussagesätze mit einteiligem Prädikat (Prädikat an der 2. Stelle, übereingestimmt mit Subjekt). Wortschatz: basaler Alltagswortschatz betreffend das nächste Lebensumfeld; Präpositionen: meist ausgelassen oder ersetzt; Artikel: grammatisches Geschlecht unsicher; Sprachhandlungen: Mitteilungen, Aufforderungen, Vorschläge, Beschreibungen."},null,null,null,null,2,"Hier ist Platz für Ihr 1. Förderangebot "]
[]
[]
["DaZ:"]
["Lernstufe (DaZ):"]
[1]
[null,null,"Erklärung aktuelle Altersstufe (DaE):",null,null,null,null,"Zone der nächsten Entwicklung: "]
[null,null,{"$f":"VLOOKUP(A18,[1]Intern!I1:J4,2)","v":"ab dem 3. Lebensjahr - \"Wortschatzexplosion\"; einfache Sätze in Gegenwart und Vergangenheit; Verbbeugung; erste Fragen und Dialoge entwickeln sich; Pluralbildungen entstehen; einfache Sprachhandlungen."},null,null,null,null,{"$f":"A18+1","v":4},". Lebensjahr"]
["DaE: ",null,null,null,null,null,null,{"$f":"VLOOKUP(H15,[1]Intern!I1:J4,2)","v":"ab dem 4. Lebensjahr - Festigung der Satzbaustruktur (Aussagesatz mit ein- und zweiteiligem Prädikat, Fragesätze, einfache Nebensätze); Satzverbindungen; Warum-Fragen; Äußerung von Wünschen; Verwendung einfacher Oberbegriffe; Lautbildung weitgehend abgeschlossen."}]
["Altersstufe (DaE): "]
[3,". Lebensjahr"]
[]
[]
[]
["Beobachtungen ",null,null,"Beobachtungszeitraum"]
[null,null,null,"OKT","JÄN","APR",null,"Notizen zu den Beobachtungen (optional)"]
["Syntax/Satzbau - Produktion"]
["Das Kind formuliert Aussagesätze mit einteiligem Prädikat"]
["Das Kind formuliert Aussagesätze mit zweiteiligem Prädikat"]
["Das Kind beugt Verben richtig"]
["Das Kind verwendet flexible Satzstrukturen"]
["Das Kind formuliert Fragesätze"]
["Das Kind kann Einzahl und Mehrzahl von Nomen korrekt bilden"]
["Das Kind verwendet Nebensatzeinleiter"]
["Das Kind verwendet Artikel in Begleitung von Nomen"]
["Das Kind verwendet komplexe und differenzierte Strukturen mit Satzgefügen"]
["Wortschatz - Rezeption"]
["Das Kind versteht Alltagsbegriffe aus dem unmittelbaren Lebensumfeld"]
["Das Kind versteht Präpositionen"]
["Das Kind versteht W-Fragen "]
["Das Kind versteht einfache Aufträge ohne nonverbale Hinweise",null,null,null,null,null,null,null,null,null,null,null,"weitere Notizoptionen "]
["Das Kind versteht zwei- oder dreiteilige Aufträge ohne nonverbale Hinweise"]
["Wortschatz - Produktion"]
["Das Kind hat einen Basiswortschatz an Verben "]
["Das Kind hat einen Basiswortschatz an Nomen"]
["Das Kind hat einen erweiterten Basiswortschatz an Verben"]
["Das Kind hat einen erweiterten Basiswortschatz an Nomen"]
["Das Kind hat einen (erweiterten) Basiswortschatz an Adjektiven"]
["Das Kind produziert abstrakte, zeitliche und psychisch-mentale Verben & Nomen"]
["Erzählen/Sprachhandlungen"]
["Das Kind beteiligt sich aktiv am Gespräch"]
["Das Kind äußert Wünsche und Bedürfnisse"]
["Das Kind erzählt eine Geschichte sprachlich zusammenhängend nach "]
["Das Kind erzählt von eigenen Erlebnissen inhaltlich nachvollziehbar"]
["Das Kind äußert Ideen und entwickelt gemeinsame Pläne "]
["Das Kind verbalisiert seine Gefühle"]
["Das Kind äußert seine Meinung"]
["Das Kind begründet, erklärt und argumentiert"]
["Interkulturalität/Werte"]
["Das Kind verwendet seine Erstsprache "]
["Das Kind zeigt Interesse an der deutschen Sprache "]
["Wahrnehmungsbereiche"]
["Das Kind nimmt akustische Signale wahr"]
["Das Kind nimmt visuelle Signale wahr"]
["Das Kind nimmt taktile Signale wahr "]
["Das Kind nimmt kinästhetische Signale wahr"]
["Das Kind nimmt olfaktorische Signale wahr"]
["Das Kind nimmt gustatorische Signale wahr "]

{"sheet":"Kind 6","index":8,"n_rows":65,"n_cols":15,"rows_kept":65,"cut":false,"hidden":false,"merged":[[21,0,22,2],[21,3,21,5],[0,0,4,10],[4,12,4,13],[5,12,5,13],[6,2,12,5],[6,7,6,9],[7,7,12,9],[13,2,13,5],[13,7,13,9],[14,2,19,5],[15,7,19,9],[23,0,23,5],[23,7,23,10],[24,0,24,2],[24,7,32,10],[25,0,25,2],[26,0,26,2],[27,0,27,2],[28,0,28,2],[29,0,29,2],[30,0,30,2],[31,0,31,2],[32,0,32,2],[33,0,33,5],[33,7,33,10],[34,0,34,2],[34,7,38,10],[35,0,35,2],[36,0,36,2],[37,0,37,2],[38,0,38,2],[39,0,39,5],[39,7,39,10],[40,0,40,2],[40,7,45,10],[41,0,41,2],[42,0,42,2],[43,0,43,2],[44,0,44,2],[45,0,45,2],[46,0,46,5],[46,7,46,10],[47,0,47,2],[47,7,54,10],[48,0,48,2],[49,0,49,2],[50,0,50,2],[51,0,51,2],[52,0,52,2],[53,0,53,2],[54,0,54,2],[55,0,55,5],[55,7,55,10],[56,0,56,2],[56,7,57,10],[57,0,57,2],[58,0,58,5],[58,7,58,10],[59,0,59,2],[59,7,64,10],[60,0,60,2],[61,0,61,2],[62,0,62,2],[63,0,63,2],[64,0,64,2],[37,12,37,13],[38,12,40,13],[41,12,43,13],[44,12,46,13],[47,12,49,13],[50,12,52,13],[53,12,55,13],[56,12,58,13],[59,12,61,13],[62,12,64,13]]}
["FÖRDERPLAN - KIND 6\nzur Beobachtung, Planung und Reflexion"]
[]
[]
[]
[null,null,null,null,null,null,null,null,null,null,null,null,"Übersicht Förderangebote ",null,"Übersicht Förderangebote "]
["ID-Nummer",null,"Erklärung aktuelle Lernstufe (DaZ):",null,null,null,null,"Zone der nächsten Entwicklung: ",null,null,null,null,"Förderangebot",null,"Beobachtung/Reflexion"]
["Kind 6",null,{"$f":"VLOOKUP(A13,[1]Intern!A1:B7,2)","v":"Stufe 1 - Verbindungen mit Verben (noch ohne Übereinstimmung mit dem Subjekt). Wortschatz: erste Wörter. Satzbau: noch keine satzwertigen Strukturen; Verb in der Nennform oder Partizip Perfekt ohne Hilfszeitwort am Ende der Äußerung. Artikel: Auslassung bzw. zufällige Verwendung. "},null,null,null,null,{"$f":"A13+1","v":2},null,null,null,null,1,"Beispielhaftes Förderangebot: Hier haben Sie Platz für die Beschreibung Ihres Förderangebots. Dieses wird nach Betätigen des Buttons \"Förderangebote übertragen\" (rechts neben der Tabelle) in die Registerblätter der teilnehmenden Kinder übertragen. "]
["Name des Kindes: ",null,null,null,null,null,null,{"$f":"VLOOKUP(H7,[1]Intern!A1:B7,2)","v":"Stufe 2 - Aussagesätze mit einteiligem Prädikat (Prädikat an der 2. Stelle, übereingestimmt mit Subjekt). Wortschatz: basaler Alltagswortschatz betreffend das nächste Lebensumfeld; Präpositionen: meist ausgelassen oder ersetzt; Artikel: grammatisches Geschlecht unsicher; Sprachhandlungen: Mitteilungen, Aufforderungen, Vorschläge, Beschreibungen."},null,null,null,null,2,"Hier ist Platz für Ihr 1. Förderangebot "]
[]
[]
["DaZ:"]
["Lernstufe (DaZ):"]
[1]
[null,null,"Erklärung aktuelle Altersstufe (DaE):",null,null,null,null,"Zone der nächsten Entwicklung: "]
[null,null,{"$f":"VLOOKUP(A18,[1]Intern!I1:J4,2)","v":"ab dem 3. Lebensjahr - \"Wortschatzexplosion\"; einfache Sätze in Gegenwart und Vergangenheit; Verbbeugung; erste Fragen und Dialoge entwickeln sich; Pluralbildungen entstehen; einfache Sprachhandlungen."},null,null,null,null,{"$f":"A18+1","v":4},". Lebensjahr"]
["DaE: ",null,null,null,null,null,null,{"$f":"VLOOKUP(H15,[1]Intern!I1:J4,2)","v":"ab dem 4. Lebensjahr - Festigung der Satzbaustruktur (Aussagesatz mit ein- und zweiteiligem Prädikat, Fragesätze, einfache Nebensätze); Satzverbindungen; Warum-Fragen; Äußerung von Wünschen; Verwendung einfacher Oberbegriffe; Lautbildung weitgehend abgeschlossen."}]
["Altersstufe (DaE): "]
[3,". Lebensjahr"]
[]
[]
[]
["Beobachtungen ",null,null,"Beobachtungszeitraum"]
[null,null,null,"OKT","JÄN","APR",null,"Notizen zu den Beobachtungen (optional)"]
["Syntax/Satzbau - Produktion"]
["Das Kind formuliert Aussagesätze mit einteiligem Prädikat"]
["Das Kind formuliert Aussagesätze mit zweiteiligem Prädikat"]
["Das Kind beugt Verben richtig"]
["Das Kind verwendet flexible Satzstrukturen"]
["Das Kind formuliert Fragesätze"]
["Das Kind kann Einzahl und Mehrzahl von Nomen korrekt bilden"]
["Das Kind verwendet Nebensatzeinleiter"]
["Das Kind verwendet Artikel in Begleitung von Nomen"]
["Das Kind verwendet komplexe und differenzierte Strukturen mit Satzgefügen"]
["Wortschatz - Rezeption"]
["Das Kind versteht Alltagsbegriffe aus dem unmittelbaren Lebensumfeld"]
["Das Kind versteht Präpositionen"]
["Das Kind versteht W-Fragen "]
["Das Kind versteht einfache Aufträge ohne nonverbale Hinweise",null,null,null,null,null,null,null,null,null,null,null,"weitere Notizoptionen "]
["Das Kind versteht zwei- oder dreiteilige Aufträge ohne nonverbale Hinweise"]
["Wortschatz - Produktion"]
["Das Kind hat einen Basiswortschatz an Verben "]
["Das Kind hat einen Basiswortschatz an Nomen"]
["Das Kind hat einen erweiterten Basiswortschatz an Verben"]
["Das Kind hat einen erweiterten Basiswortschatz an Nomen"]
["Das Kind hat einen (erweiterten) Basiswortschatz an Adjektiven"]
["Das Kind produziert abstrakte, zeitliche und psychisch-mentale Verben & Nomen"]
["Erzählen/Sprachhandlungen"]
["Das Kind beteiligt sich aktiv am Gespräch"]
["Das Kind äußert Wünsche und Bedürfnisse"]
["Das Kind erzählt eine Geschichte sprachlich zusammenhängend nach "]
["Das Kind erzählt von eigenen Erlebnissen inhaltlich nachvollziehbar"]
["Das Kind äußert Ideen und entwickelt gemeinsame Pläne "]
["Das Kind verbalisiert seine Gefühle"]
["Das Kind äußert seine Meinung"]
["Das Kind begründet, erklärt und argumentiert"]
["Interkulturalität/Werte"]
["Das Kind verwendet seine Erstsprache "]
["Das Kind zeigt Interesse an der deutschen Sprache "]
["Wahrnehmungsbereiche"]
["Das Kind nimmt akustische Signale wahr"]
["Das Kind nimmt visuelle Signale wahr"]
["Das Kind nimmt taktile Signale wahr "]
["Das Kind nimmt kinästhetische Signale wahr"]
["Das Kind nimmt olfaktorische Signale wahr"]
["Das Kind nimmt gustatorische Signale wahr "]

{"sheet":"Kind 7","index":9,"n_rows":65,"n_cols":15,"rows_kept":65,"cut":false,"hidden":false,"merged":[[21,0,22,2],[21,3,21,5],[0,0,4,10],[4,12,4,13],[5,12,5,13],[6,2,12,5],[6,7,6,9],[7,7,12,9],[13,2,13,5],[13,7,13,9],[14,2,19,5],[15,7,19,9],[23,0,23,5],[23,7,23,10],[24,0,24,2],[24,7,32,10],[25,0,25,2],[26,0,26,2],[27,0,27,2],[28,0,28,2],[29,0,29,2],[30,0,30,2],[31,0,31,2],[32,0,32,2],[33,0,33,5],[33,7,33,10],[34,0,34,2],[34,7,38,10],[35,0,35,2],[36,0,36,2],[37,0,37,2],[38,0,38,2],[39,0,39,5],[39,7,39,10],[40,0,40,2],[40,7,45,10],[41,0,41,2],[42,0,42,2],[43,0,43,2],[44,0,44,2],[45,0,45,2],[46,0,46,5],[46,7,46,10],[47,0,47,2],[47,7,54,10],[48,0,48,2],[49,0,49,2],[50,0,50,2],[51,0,51,2],[52,0,52,2],[53,0,53,2],[54,0,54,2],[55,0,55,5],[55,7,55,10],[56,0,56,2],[56,7,57,10],[57,0,57,2],[58,0,58,5],[58,7,58,10],[59,0,59,2],[59,7,64,10],[60,0,60,2],[61,0,61,2],[62,0,62,2],[63,0,63,2],[64,0,64,2],[37,12,37,13],[38,12,40,13],[41,12,43,13],[44,12,46,13],[47,12,49,13],[50,12,52,13],[53,12,55,13],[56,12,58,13],[59,12,61,13],[62,12,64,13]]}
["FÖRDERPLAN - KIND 7\nzur Beobachtung, Planung und Reflexion"]
[]
[]
[]
[null,null,null,null,null,null,null,null,null,null,null,null,"Übersicht Förderangebote ",null,"Übersicht Förderangebote "]
["ID-Nummer",null,"Erklärung aktuelle Lernstufe (DaZ):",null,null,null,null,"Zone der nächsten Entwicklung: ",null,null,null,null,"Förderangebot",null,"Beobachtung/Reflexion"]
["Kind 7",null,{"$f":"VLOOKUP(A13,[1]Intern!A1:B7,2)","v":"Stufe 1 - Verbindungen mit Verben (noch ohne Übereinstimmung mit dem Subjekt). Wortschatz: erste Wörter. Satzbau: noch keine satzwertigen Strukturen; Verb in der Nennform oder Partizip Perfekt ohne Hilfszeitwort am Ende der Äußerung. Artikel: Auslassung bzw. zufällige Verwendung. "},null,null,null,null,{"$f":"A13+1","v":2},null,null,null,null,1,"Beispielhaftes Förderangebot: Hier haben Sie Platz für die Beschreibung Ihres Förderangebots. Dieses wird nach Betätigen des Buttons \"Förderangebote übertragen\" (rechts neben der Tabelle) in die Registerblätter der teilnehmenden Kinder übertragen. "]
["Name des Kindes: ",null,null,null,null,null,null,{"$f":"VLOOKUP(H7,[1]Intern!A1:B7,2)","v":"Stufe 2 - Aussagesätze mit einteiligem Prädikat (Prädikat an der 2. Stelle, übereingestimmt mit Subjekt). Wortschatz: basaler Alltagswortschatz betreffend das nächste Lebensumfeld; Präpositionen: meist ausgelassen oder ersetzt; Artikel: grammatisches Geschlecht unsicher; Sprachhandlungen: Mitteilungen, Aufforderungen, Vorschläge, Beschreibungen."},null,null,null,null,2,"Hier ist Platz für Ihr 1. Förderangebot "]
[]
[]
["DaZ:"]
["Lernstufe (DaZ):"]
[1]
[null,null,"Erklärung aktuelle Altersstufe (DaE):",null,null,null,null,"Zone der nächsten Entwicklung: "]
[null,null,{"$f":"VLOOKUP(A18,[1]Intern!I1:J4,2)","v":"ab dem 3. Lebensjahr - \"Wortschatzexplosion\"; einfache Sätze in Gegenwart und Vergangenheit; Verbbeugung; erste Fragen und Dialoge entwickeln sich; Pluralbildungen entstehen; einfache Sprachhandlungen."},null,null,null,null,{"$f":"A18+1","v":4},". Lebensjahr"]
["DaE: ",null,null,null,null,null,null,{"$f":"VLOOKUP(H15,[1]Intern!I1:J4,2)","v":"ab dem 4. Lebensjahr - Festigung der Satzbaustruktur (Aussagesatz mit ein- und zweiteiligem Prädikat, Fragesätze, einfache Nebensätze); Satzverbindungen; Warum-Fragen; Äußerung von Wünschen; Verwendung einfacher Oberbegriffe; Lautbildung weitgehend abgeschlossen."}]
["Altersstufe (DaE): "]
[3,". Lebensjahr"]
[]
[]
[]
["Beobachtungen ",null,null,"Beobachtungszeitraum"]
[null,null,null,"OKT","JÄN","APR",null,"Notizen zu den Beobachtungen (optional)"]
["Syntax/Satzbau - Produktion"]
["Das Kind formuliert Aussagesätze mit einteiligem Prädikat"]
["Das Kind formuliert Aussagesätze mit zweiteiligem Prädikat"]
["Das Kind beugt Verben richtig"]
["Das Kind verwendet flexible Satzstrukturen"]
["Das Kind formuliert Fragesätze"]
["Das Kind kann Einzahl und Mehrzahl von Nomen korrekt bilden"]
["Das Kind verwendet Nebensatzeinleiter"]
["Das Kind verwendet Artikel in Begleitung von Nomen"]
["Das Kind verwendet komplexe und differenzierte Strukturen mit Satzgefügen"]
["Wortschatz - Rezeption"]
["Das Kind versteht Alltagsbegriffe aus dem unmittelbaren Lebensumfeld"]
["Das Kind versteht Präpositionen"]
["Das Kind versteht W-Fragen "]
["Das Kind versteht einfache Aufträge ohne nonverbale Hinweise",null,null,null,null,null,null,null,null,null,null,null,"weitere Notizoptionen "]
["Das Kind versteht zwei- oder dreiteilige Aufträge ohne nonverbale Hinweise"]
["Wortschatz - Produktion"]
["Das Kind hat einen Basiswortschatz an Verben "]
["Das Kind hat einen Basiswortschatz an Nomen"]
["Das Kind hat einen erweiterten Basiswortschatz an Verben"]
["Das Kind hat einen erweiterten Basiswortschatz an Nomen"]
["Das Kind hat einen (erweiterten) Basiswortschatz an Adjektiven"]
["Das Kind produziert abstrakte, zeitliche und psychisch-mentale Verben & Nomen"]
["Erzählen/Sprachhandlungen"]
["Das Kind beteiligt sich aktiv am Gespräch"]
["Das Kind äußert Wünsche und Bedürfnisse"]
["Das Kind erzählt eine Geschichte sprachlich zusammenhängend nach "]
["Das Kind erzählt von eigenen Erlebnissen inhaltlich nachvollziehbar"]
["Das Kind äußert Ideen und entwickelt gemeinsame Pläne "]
["Das Kind verbalisiert seine Gefühle"]
["Das Kind äußert seine Meinung"]
["Das Kind begründet, erklärt und argumentiert"]
["Interkulturalität/Werte"]
["Das Kind verwendet seine Erstsprache "]
["Das Kind zeigt Interesse an der deutschen Sprache "]
["Wahrnehmungsbereiche"]
["Das Kind nimmt akustische Signale wahr"]
["Das Kind nimmt visuelle Signale wahr"]
["Das Kind nimmt taktile Signale wahr "]
["Das Kind nimmt kinästhetische Signale wahr"]
["Das Kind nimmt olfaktorische Signale wahr"]
["Das Kind nimmt gustatorische Signale wahr "]

{"sheet":"Kind 8","index":10,"n_rows":65,"n_cols":15,"rows_kept":65,"cut":false,"hidden":false,"merged":[[21,0,22,2],[21,3,21,5],[0,0,4,10],[4,12,4,13],[5,12,5,13],[6,2,12,5],[6,7,6,9],[7,7,12,9],[13,2,13,5],[13,7,13,9],[14,2,19,5],[15,7,19,9],[23,0,23,5],[23,7,23,10],[24,0,24,2],[24,7,32,10],[25,0,25,2],[26,0,26,2],[27,0,27,2],[28,0,28,2],[29,0,29,2],[30,0,30,2],[31,0,31,2],[32,0,32,2],[33,0,33,5],[33,7,33,10],[34,0,34,2],[34,7,38,10],[35,0,35,2],[36,0,36,2],[37,0,37,2],[38,0,38,2],[39,0,39,5],[39,7,39,10],[40,0,40,2],[40,7,45,10],[41,0,41,2],[42,0,42,2],[43,0,43,2],[44,0,44,2],[45,0,45,2],[46,0,46,5],[46,7,46,10],[47,0,47,2],[47,7,54,10],[48,0,48,2],[49,0,49,2],[50,0,50,2],[51,0,51,2],[52,0,52,2],[53,0,53,2],[54,0,54,2],[55,0,55,5],[55,7,55,10],[56,0,56,2],[56,7,57,10],[57,0,57,2],[58,0,58,5],[58,7,58,10],[59,0,59,2],[59,7,64,10],[60,0,60,2],[61,0,61,2],[62,0,62,2],[63,0,63,2],[64,0,64,2],[37,12,37,13],[38,12,40,13],[41,12,43,13],[44,12,46,13],[47,12,49,13],[50,12,52,13],[53,12,55,13],[56,12,58,13],[59,12,61,13],[62,12,64,13]]}
["FÖRDERPLAN - KIND 8\nzur Beobachtung, Planung und Reflexion"]
[]
[]
[]
[null,null,null,null,null,null,null,null,null,null,null,null,"Übersicht Förderangebote ",null,"Übersicht Förderangebote "]
["ID-Nummer",null,"Erklärung aktuelle Lernstufe (DaZ):",null,null,null,null,"Zone der nächsten Entwicklung: ",null,null,null,null,"Förderangebot",null,"Beobachtung/Reflexion"]
["Kind 8",null,{"$f":"VLOOKUP(A13,[1]Intern!A1:B7,2)","v":"Stufe 1 - Verbindungen mit Verben (noch ohne Übereinstimmung mit dem Subjekt). Wortschatz: erste Wörter. Satzbau: noch keine satzwertigen Strukturen; Verb in der Nennform oder Partizip Perfekt ohne Hilfszeitwort am Ende der Äußerung. Artikel: Auslassung bzw. zufällige Verwendung. "},null,null,null,null,{"$f":"A13+1","v":2},null,null,null,null,1,"Beispielhaftes Förderangebot: Hier haben Sie Platz für die Beschreibung Ihres Förderangebots. Dieses wird nach Betätigen des Buttons \"Förderangebote übertragen\" (rechts neben der Tabelle) in die Registerblätter der teilnehmenden Kinder übertragen. "]
["Name des Kindes: ",null,null,null,null,null,null,{"$f":"VLOOKUP(H7,[1]Intern!A1:B7,2)","v":"Stufe 2 - Aussagesätze mit einteiligem Prädikat (Prädikat an der 2. Stelle, übereingestimmt mit Subjekt). Wortschatz: basaler Alltagswortschatz betreffend das nächste Lebensumfeld; Präpositionen: meist ausgelassen oder ersetzt; Artikel: grammatisches Geschlecht unsicher; Sprachhandlungen: Mitteilungen, Aufforderungen, Vorschläge, Beschreibungen."},null,null,null,null,2,"Hier ist Platz für Ihr 1. Förderangebot "]
[]
[]
["DaZ:"]
["Lernstufe (DaZ):"]
[1]
[null,null,"Erklärung aktuelle Altersstufe (DaE):",null,null,null,null,"Zone der nächsten Entwicklung: "]
[null,null,{"$f":"VLOOKUP(A18,[1]Intern!I1:J4,2)","v":"ab dem 3. Lebensjahr - \"Wortschatzexplosion\"; einfache Sätze in Gegenwart und Vergangenheit; Verbbeugung; erste Fragen und Dialoge entwickeln sich; Pluralbildungen entstehen; einfache Sprachhandlungen."},null,null,null,null,{"$f":"A18+1","v":4},". Lebensjahr"]
["DaE: ",null,null,null,null,null,null,{"$f":"VLOOKUP(H15,[1]Intern!I1:J4,2)","v":"ab dem 4. Lebensjahr - Festigung der Satzbaustruktur (Aussagesatz mit ein- und zweiteiligem Prädikat, Fragesätze, einfache Nebensätze); Satzverbindungen; Warum-Fragen; Äußerung von Wünschen; Verwendung einfacher Oberbegriffe; Lautbildung weitgehend abgeschlossen."}]
["Altersstufe (DaE): "]
[3,". Lebensjahr"]
[]
[]
[]
["Beobachtungen ",null,null,"Beobachtungszeitraum"]
[null,null,null,"OKT","JÄN","APR",null,"Notizen zu den Beobachtungen (optional)"]
["Syntax/Satzbau - Produktion"]
["Das Kind formuliert Aussagesätze mit einteiligem Prädikat"]
["Das Kind formuliert Aussagesätze mit zweiteiligem Prädikat"]
["Das Kind beugt Verben richtig"]
["Das Kind verwendet flexible Satzstrukturen"]
["Das Kind formuliert Fragesätze"]
["Das Kind kann Einzahl und Mehrzahl von Nomen korrekt bilden"]
["Das Kind verwendet Nebensatzeinleiter"]
["Das Kind verwendet Artikel in Begleitung von Nomen"]
["Das Kind verwendet komplexe und differenzierte Strukturen mit Satzgefügen"]
["Wortschatz - Rezeption"]
["Das Kind versteht Alltagsbegriffe aus dem unmittelbaren Lebensumfeld"]
["Das Kind versteht Präpositionen"]
["Das Kind versteht W-Fragen "]
["Das Kind versteht einfache Aufträge ohne nonverbale Hinweise",null,null,null,null,null,null,null,null,null,null,null,"weitere Notizoptionen "]
["Das Kind versteht zwei- oder dreiteilige Aufträge ohne nonverbale Hinweise"]
["Wortschatz - Produktion"]
["Das Kind hat einen Basiswortschatz an Verben "]
["Das Kind hat einen Basiswortschatz an Nomen"]
["Das Kind hat einen erweiterten Basiswortschatz an Verben"]
["Das Kind hat einen erweiterten Basiswortschatz an Nomen"]
["Das Kind hat einen (erweiterten) Basiswortschatz an Adjektiven"]
["Das Kind produziert abstrakte, zeitliche und psychisch-mentale Verben & Nomen"]
["Erzählen/Sprachhandlungen"]
["Das Kind beteiligt sich aktiv am Gespräch"]
["Das Kind äußert Wünsche und Bedürfnisse"]
["Das Kind erzählt eine Geschichte sprachlich zusammenhängend nach "]
["Das Kind erzählt von eigenen Erlebnissen inhaltlich nachvollziehbar"]
["Das Kind äußert Ideen und entwickelt gemeinsame Pläne "]
["Das Kind verbalisiert seine Gefühle"]
["Das Kind äußert seine Meinung"]
["Das Kind begründet, erklärt und argumentiert"]
["Interkulturalität/Werte"]
["Das Kind verwendet seine Erstsprache "]
["Das Kind zeigt Interesse an der deutschen Sprache "]
["Wahrnehmungsbereiche"]
["Das Kind nimmt akustische Signale wahr"]
["Das Kind nimmt visuelle Signale wahr"]
["Das Kind nimmt taktile Signale wahr "]
["Das Kind nimmt kinästhetische Signale wahr"]
["Das Kind nimmt olfaktorische Signale wahr"]
["Das Kind nimmt gustatorische Signale wahr "]

{"sheet":"Kind 9","index":11,"n_rows":65,"n_cols":15,"rows_kept":65,"cut":false,"hidden":false,"merged":[[21,0,22,2],[21,3,21,5],[0,0,4,10],[4,12,4,13],[5,12,5,13],[6,2,12,5],[6,7,6,9],[7,7,12,9],[13,2,13,5],[13,7,13,9],[14,2,19,5],[15,7,19,9],[23,0,23,5],[23,7,23,10],[24,0,24,2],[24,7,32,10],[25,0,25,2],[26,0,26,2],[27,0,27,2],[28,0,28,2],[29,0,29,2],[30,0,30,2],[31,0,31,2],[32,0,32,2],[33,0,33,5],[33,7,33,10],[34,0,34,2],[34,7,38,10],[35,0,35,2],[36,0,36,2],[37,0,37,2],[38,0,38,2],[39,0,39,5],[39,7,39,10],[40,0,40,2],[40,7,45,10],[41,0,41,2],[42,0,42,2],[43,0,43,2],[44,0,44,2],[45,0,45,2],[46,0,46,5],[46,7,46,10],[47,0,47,2],[47,7,54,10],[48,0,48,2],[49,0,49,2],[50,0,50,2],[51,0,51,2],[52,0,52,2],[53,0,53,2],[54,0,54,2],[55,0,55,5],[55,7,55,10],[56,0,56,2],[56,7,57,10],[57,0,57,2],[58,0,58,5],[58,7,58,10],[59,0,59,2],[59,7,64,10],[60,0,60,2],[61,0,61,2],[62,0,62,2],[63,0,63,2],[64,0,64,2],[37,12,37,13],[38,12,40,13],[41,12,43,13],[44,12,46,13],[47,12,49,13],[50,12,52,13],[53,12,55,13],[56,12,58,13],[59,12,61,13],[62,12,64,13]]}
["FÖRDERPLAN - KIND 9\nzur Beobachtung, Planung und Reflexion"]
[]
[]
[]
[null,null,null,null,null,null,null,null,null,null,null,null,"Übersicht Förderangebote ",null,"Übersicht Förderangebote "]
["ID-Nummer",null,"Erklärung aktuelle Lernstufe (DaZ):",null,null,null,null,"Zone der nächsten Entwicklung: ",null,null,null,null,"Förderangebot",null,"Beobachtung/Reflexion"]
["Kind 9",null,{"$f":"VLOOKUP(A13,[1]Intern!A1:B7,2)","v":"Stufe 1 - Verbindungen mit Verben (noch ohne Übereinstimmung mit dem Subjekt). Wortschatz: erste Wörter. Satzbau: noch keine satzwertigen Strukturen; Verb in der Nennform oder Partizip Perfekt ohne Hilfszeitwort am Ende der Äußerung. Artikel: Auslassung bzw. zufällige Verwendung. "},null,null,null,null,{"$f":"A13+1","v":2},null,null,null,null,1,"Beispielhaftes Förderangebot: Hier haben Sie Platz für die Beschreibung Ihres Förderangebots. Dieses wird nach Betätigen des Buttons \"Förderangebote übertragen\" (rechts neben der Tabelle) in die Registerblätter der teilnehmenden Kinder übertragen. "]
["Name des Kindes: ",null,null,null,null,null,null,{"$f":"VLOOKUP(H7,[1]Intern!A1:B7,2)","v":"Stufe 2 - Aussagesätze mit einteiligem Prädikat (Prädikat an der 2. Stelle, übereingestimmt mit Subjekt). Wortschatz: basaler Alltagswortschatz betreffend das nächste Lebensumfeld; Präpositionen: meist ausgelassen oder ersetzt; Artikel: grammatisches Geschlecht unsicher; Sprachhandlungen: Mitteilungen, Aufforderungen, Vorschläge, Beschreibungen."},null,null,null,null,2,"Hier ist Platz für Ihr 1. Förderangebot "]
[]
[]
["DaZ:"]
["Lernstufe (DaZ):"]
[1]
[null,null,"Erklärung aktuelle Altersstufe (DaE):",null,null,null,null,"Zone der nächsten Entwicklung: "]
[null,null,{"$f":"VLOOKUP(A18,[1]Intern!I1:J4,2)","v":"ab dem 3. Lebensjahr - \"Wortschatzexplosion\"; einfache Sätze in Gegenwart und Vergangenheit; Verbbeugung; erste Fragen und Dialoge entwickeln sich; Pluralbildungen entstehen; einfache Sprachhandlungen."},null,null,null,null,{"$f":"A18+1","v":4},". Lebensjahr"]
["DaE: ",null,null,null,null,null,null,{"$f":"VLOOKUP(H15,[1]Intern!I1:J4,2)","v":"ab dem 4. Lebensjahr - Festigung der Satzbaustruktur (Aussagesatz mit ein- und zweiteiligem Prädikat, Fragesätze, einfache Nebensätze); Satzverbindungen; Warum-Fragen; Äußerung von Wünschen; Verwendung einfacher Oberbegriffe; Lautbildung weitgehend abgeschlossen."}]
["Altersstufe (DaE): "]
[3,". Lebensjahr"]
[]
[]
[]
["Beobachtungen ",null,null,"Beobachtungszeitraum"]
[null,null,null,"OKT","JÄN","APR",null,"Notizen zu den Beobachtungen (optional)"]
["Syntax/Satzbau - Produktion"]
["Das Kind formuliert Aussagesätze mit einteiligem Prädikat"]
["Das Kind formuliert Aussagesätze mit zweiteiligem Prädikat"]
["Das Kind beugt Verben richtig"]
["Das Kind verwendet flexible Satzstrukturen"]
["Das Kind formuliert Fragesätze"]
["Das Kind kann Einzahl und Mehrzahl von Nomen korrekt bilden"]
["Das Kind verwendet Nebensatzeinleiter"]
["Das Kind verwendet Artikel in Begleitung von Nomen"]
["Das Kind verwendet komplexe und differenzierte Strukturen mit Satzgefügen"]
["Wortschatz - Rezeption"]
["Das Kind versteht Alltagsbegriffe aus dem unmittelbaren Lebensumfeld"]
["Das Kind versteht Präpositionen"]
["Das Kind versteht W-Fragen "]
["Das Kind versteht einfache Aufträge ohne nonverbale Hinweise",null,null,null,null,null,null,null,null,null,null,null,"weitere Notizoptionen "]
["Das Kind versteht zwei- oder dreiteilige Aufträge ohne nonverbale Hinweise"]
["Wortschatz - Produktion"]
["Das Kind hat einen Basiswortschatz an Verben "]
["Das Kind hat einen Basiswortschatz an Nomen"]
["Das Kind hat einen erweiterten Basiswortschatz an Verben"]
["Das Kind hat einen erweiterten Basiswortschatz an Nomen"]
["Das Kind hat einen (erweiterten) Basiswortschatz an Adjektiven"]
["Das Kind produziert abstrakte, zeitliche und psychisch-mentale Verben & Nomen"]
["Erzählen/Sprachhandlungen"]
["Das Kind beteiligt sich aktiv am Gespräch"]
["Das Kind äußert Wünsche und Bedürfnisse"]
["Das Kind erzählt eine Geschichte sprachlich zusammenhängend nach "]
["Das Kind erzählt von eigenen Erlebnissen inhaltlich nachvollziehbar"]
["Das Kind äußert Ideen und entwickelt gemeinsame Pläne "]
["Das Kind verbalisiert seine Gefühle"]
["Das Kind äußert seine Meinung"]
["Das Kind begründet, erklärt und argumentiert"]
["Interkulturalität/Werte"]
["Das Kind verwendet seine Erstsprache "]
["Das Kind zeigt Interesse an der deutschen Sprache "]
["Wahrnehmungsbereiche"]
["Das Kind nimmt akustische Signale wahr"]
["Das Kind nimmt visuelle Signale wahr"]
["Das Kind nimmt taktile Signale wahr "]
["Das Kind nimmt kinästhetische Signale wahr"]
["Das Kind nimmt olfaktorische Signale wahr"]
["Das Kind nimmt gustatorische Signale wahr "]

{"sheet":"Kind 10","index":12,"n_rows":65,"n_cols":15,"rows_kept":65,"cut":false,"hidden":false,"merged":[[21,0,22,2],[21,3,21,5],[0,0,4,10],[4,12,4,13],[5,12,5,13],[6,2,12,5],[6,7,6,9],[7,7,12,9],[13,2,13,5],[13,7,13,9],[14,2,19,5],[15,7,19,9],[23,0,23,5],[23,7,23,10],[24,0,24,2],[24,7,32,10],[25,0,25,2],[26,0,26,2],[27,0,27,2],[28,0,28,2],[29,0,29,2],[30,0,30,2],[31,0,31,2],[32,0,32,2],[33,0,33,5],[33,7,33,10],[34,0,34,2],[34,7,38,10],[35,0,35,2],[36,0,36,2],[37,0,37,2],[38,0,38,2],[39,0,39,5],[39,7,39,10],[40,0,40,2],[40,7,45,10],[41,0,41,2],[42,0,42,2],[43,0,43,2],[44,0,44,2],[45,0,45,2],[46,0,46,5],[46,7,46,10],[47,0,47,2],[47,7,54,10],[48,0,48,2],[49,0,49,2],[50,0,50,2],[51,0,51,2],[52,0,52,2],[53,0,53,2],[54,0,54,2],[55,0,55,5],[55,7,55,10],[56,0,56,2],[56,7,57,10],[57,0,57,2],[58,0,58,5],[58,7,58,10],[59,0,59,2],[59,7,64,10],[60,0,60,2],[61,0,61,2],[62,0,62,2],[63,0,63,2],[64,0,64,2],[37,12,37,13],[38,12,40,13],[41,12,43,13],[44,12,46,13],[47,12,49,13],[50,12,52,13],[53,12,55,13],[56,12,58,13],[59,12,61,13],[62,12,64,13]]}
["FÖRDERPLAN - KIND 10\nzur Beobachtung, Planung und Reflexion"]
[]
[]
[]
[null,null,null,null,null,null,null,null,null,null,null,null,"Übersicht Förderangebote ",null,"Übersicht Förderangebote "]
["ID-Nummer",null,"Erklärung aktuelle Lernstufe (DaZ):",null,null,null,null,"Zone der nächsten Entwicklung: ",null,null,null,null,"Förderangebot",null,"Beobachtung/Reflexion"]
["Kind 10",null,{"$f":"VLOOKUP(A13,[1]Intern!A1:B7,2)","v":"Stufe 1 - Verbindungen mit Verben (noch ohne Übereinstimmung mit dem Subjekt). Wortschatz: erste Wörter. Satzbau: noch keine satzwertigen Strukturen; Verb in der Nennform oder Partizip Perfekt ohne Hilfszeitwort am Ende der Äußerung. Artikel: Auslassung bzw. zufällige Verwendung. "},null,null,null,null,{"$f":"A13+1","v":2},null,null,null,null,1,"Beispielhaftes Förderangebot: Hier haben Sie Platz für die Beschreibung Ihres Förderangebots. Dieses wird nach Betätigen des Buttons \"Förderangebote übertragen\" (rechts neben der Tabelle) in die Registerblätter der teilnehmenden Kinder übertragen. "]
["Name des Kindes: ",null,null,null,null,null,null,{"$f":"VLOOKUP(H7,[1]Intern!A1:B7,2)","v":"Stufe 2 - Aussagesätze mit einteiligem Prädikat (Prädikat an der 2. Stelle, übereingestimmt mit Subjekt). Wortschatz: basaler Alltagswortschatz betreffend das nächste Lebensumfeld; Präpositionen: meist ausgelassen oder ersetzt; Artikel: grammatisches Geschlecht unsicher; Sprachhandlungen: Mitteilungen, Aufforderungen, Vorschläge, Beschreibungen."},null,null,null,null,2,"Hier ist Platz für Ihr 1. Förderangebot "]
[]
[]
["DaZ:"]
["Lernstufe (DaZ):"]
[1]
[null,null,"Erklärung aktuelle Altersstufe (DaE):",null,null,null,null,"Zone der nächsten Entwicklung: "]
[null,null,{"$f":"VLOOKUP(A18,[1]Intern!I1:J4,2)","v":"ab dem 3. Lebensjahr - \"Wortschatzexplosion\"; einfache Sätze in Gegenwart und Vergangenheit; Verbbeugung; erste Fragen und Dialoge entwickeln sich; Pluralbildungen entstehen; einfache Sprachhandlungen."},null,null,null,null,{"$f":"A18+1","v":4},". Lebensjahr"]
["DaE: ",null,null,null,null,null,null,{"$f":"VLOOKUP(H15,[1]Intern!I1:J4,2)","v":"ab dem 4. Lebensjahr - Festigung der Satzbaustruktur (Aussagesatz mit ein- und zweiteiligem Prädikat, Fragesätze, einfache Nebensätze); Satzverbindungen; Warum-Fragen; Äußerung von Wünschen; Verwendung einfacher Oberbegriffe; Lautbildung weitgehend abgeschlossen."}]
["Altersstufe (DaE): "]
[3,". Lebensjahr"]
[]
[]
[]
["Beobachtungen ",null,null,"Beobachtungszeitraum"]
[null,null,null,"OKT","JÄN","APR",null,"Notizen zu den Beobachtungen (optional)"]
["Syntax/Satzbau - Produktion"]
["Das Kind formuliert Aussagesätze mit einteiligem Prädikat"]
["Das Kind formuliert Aussagesätze mit zweiteiligem Prädikat"]
["Das Kind beugt Verben richtig"]
["Das Kind verwendet flexible Satzstrukturen"]
["Das Kind formuliert Fragesätze"]
["Das Kind kann Einzahl und Mehrzahl von Nomen korrekt bilden"]
["Das Kind verwendet Nebensatzeinleiter"]
["Das Kind verwendet Artikel in Begleitung von Nomen"]
["Das Kind verwendet komplexe und differenzierte Strukturen mit Satzgefügen"]
["Wortschatz - Rezeption"]
["Das Kind versteht Alltagsbegriffe aus dem unmittelbaren Lebensumfeld"]
["Das Kind versteht Präpositionen"]
["Das Kind versteht W-Fragen "]
["Das Kind versteht einfache Aufträge ohne nonverbale Hinweise",null,null,null,null,null,null,null,null,null,null,null,"weitere Notizoptionen "]
["Das Kind versteht zwei- oder dreiteilige Aufträge ohne nonverbale Hinweise"]
["Wortschatz - Produktion"]
["Das Kind hat einen Basiswortschatz an Verben "]
["Das Kind hat einen Basiswortschatz an Nomen"]
["Das Kind hat einen erweiterten Basiswortschatz an Verben"]
["Das Kind hat einen erweiterten Basiswortschatz an Nomen"]
["Das Kind hat einen (erweiterten) Basiswortschatz an Adjektiven"]
["Das Kind produziert abstrakte, zeitliche und psychisch-mentale Verben & Nomen"]
["Erzählen/Sprachhandlungen"]
["Das Kind beteiligt sich aktiv am Gespräch"]
["Das Kind äußert Wünsche und Bedürfnisse"]
["Das Kind erzählt eine Geschichte sprachlich zusammenhängend nach "]
["Das Kind erzählt von eigenen Erlebnissen inhaltlich nachvollziehbar"]
["Das Kind äußert Ideen und entwickelt gemeinsame Pläne "]
["Das Kind verbalisiert seine Gefühle"]
["Das Kind äußert seine Meinung"]
["Das Kind begründet, erklärt und argumentiert"]
["Interkulturalität/Werte"]
["Das Kind verwendet seine Erstsprache "]
["Das Kind zeigt Interesse an der deutschen Sprache "]
["Wahrnehmungsbereiche"]
["Das Kind nimmt akustische Signale wahr"]
["Das Kind nimmt visuelle Signale wahr"]
["Das Kind nimmt taktile Signale wahr "]
["Das Kind nimmt kinästhetische Signale wahr"]
["Das Kind nimmt olfaktorische Signale wahr"]
["Das Kind nimmt gustatorische Signale wahr "]

{"sheet":"Intern","index":13,"n_rows":598,"n_cols":15,"rows_kept":598,"cut":false,"hidden":true,"merged":[]}
[0,"Stufe 0 - Bruchstückhafte Äußerungen, Floskeln. Äußerungen ohne Verb; Verb nur in festen floskelhaften Wendungen. Rezeption: Starke Orientierung an Mimik und Gestik, Sprachmelodie und -betronung der Kommunikationspartner:innen.","1. Das Kind formuliert Aussagesätze mit einteiligem Prädikat","Emotionen & soziale Beziehungen",null,"Kind 1",{"$f":"'Kind 1'!A7","v":"Kind 1"},"J",null,2,"Produktion bis 50 Wörter; passiver Wortschatz umfangreicher; Mehrwortäußerungen noch ohne Satzstruktur; Wörter kontextgebunden",0]
[1,"Stufe 1 - Verbindungen mit Verben (noch ohne Übereinstimmung mit dem Subjekt). Wortschatz: erste Wörter. Satzbau: noch keine satzwertigen Strukturen; Verb in der Nennform oder Partizip Perfekt ohne Hilfszeitwort am Ende der Äußerung. Artikel: Auslassung bzw. zufällige Verwendung. ","2. Das Kind formuliert Aussagesätze mit zweiteiligem Prädikat","Ethik & Gesellschaft",null,"Kind 2",{"$f":"'Kind 2'!A7","v":"Kind 2"},"N",null,3,"\"Wortschatzexplosion\"; einfache Sätze in Gegenwart und Vergangenheit; Verbbeugung; erste Fragen und Dialoge entwickeln sich; Pluralbildungen entstehen; einfache Sprachhandlungen.",1]
[2,"Stufe 2 - Aussagesätze mit einteiligem Prädikat (Prädikat an der 2. Stelle, übereingestimmt mit Subjekt). Wortschatz: basaler Alltagswortschatz betreffend das nächste Lebensumfeld; Präpositionen: meist ausgelassen oder ersetzt; Artikel: grammatisches Geschlecht unsicher; Sprachhandlungen: Mitteilungen, Aufforderungen, Vorschläge, Beschreibungen.","3. Das Kind beugt Verben richtig","Sprache & Kommunikation ",null,"Kind 3",{"$f":"'Kind 3'!$A$7","v":"Kind 3"},null,null,4,"Festigung der Satzbaustruktur (Aussagesatz mit ein- und zweiteiligem Prädikat, Fragesätze, einfache Nebensätze); Satzverbindungen; Warum-Fragen; Äußerung von Wünschen; Verwendung einfacher Oberbegriffe; Lautbildung weitgehend abgeschlossen.",2]
[3,"Stufe 3 - Aussagesätze mit zweiteiligem Prädikat \"Satzklammerstrukturen\". Wortschatz: erweiterter Basiswortschatz; Präspositionen: zunehmender Gebrauch der einfacheren Raumpräspositionen (in, auf, unter); Artikel: werden durchgehend verwendet, grammatisches Geschlecht noch unsicher, Sprachhandlungen: u.a. Mitteilungen, Aufforderungen, Vorschläge, Beschreibungen, Bewertungen.","4. Das Kind verwendet flexible Satzstrukturen","Bewegung & Gesundheit",null,"Kind 4",{"$f":"'Kind 4'!$A$7","v":"Kind 4"},null,null,5,"Differenzierter, abstrakter Wortschatz; kompliziertere Satzgefüge und zunehmend Passivsätze; Sprache wird vom Kontext gelöst eingesetzt; Perspektivenübernahme; Sprechhandlungen wie Vorschlagen, Bewerten, Begründen; Erzählung von Ereignissen und Geschichten. ",3]
[4,"Stufe 4 - Satzstruktur mit Subjekt-Verb-Verschiebung (flexible Satzstruktur). Wortschatz: erweiterter Wortschatz, zunehmend Zeitangaben; Satzbau: Nebensatzstrukturen sind im Entstehen; Artikel: grammatisches Geschlecht sicherer; 1. und 4. Fall sicherer, 3. Fall noch unsicher. Sprachhandlungen: u.a. Darstellen von Erlebtem, Wiedergeben von Erzähltem, Kommentieren.","5. Das Kind formuliert Fragesätze","Ästhetik & Gestaltung ",null,"Kind 5",{"$f":"'Kind 5'!A7","v":"Kind 5"},null,null,null,null,4]
[5,"Stufe 5 - Nebensätze. Wortschatz: differenzierterer, zunehmend abstrakter Wortschatz; Pronomen: dichte Verkettung von Sätzen mit Pronomen; Artikel: Ausdifferenzierungen und Stabilisierung hinsichtlich des grammatischen Geschlechts; Wortgrammatik: Verbflexionen, Pluralbildung: weitere Ausdifferenzierung.","6. Das Kind kann Einzahl und Mehrzahl von Nomen korrekt bilden","Natur & Technik",null,"Kind 6","Kind 6",null,null,null,null,5]
[6,"Stufe 6 - eingeschobene Nebensätze. Satzbau: komplexe und differenzierte Strukturen mit Satzgefügen, zunehmend Passivsätze; Verbflexion-Präteritum: die produktive, zielsprachliche Bildung des Präteritums ist u.a. stark abhängig von Vorleseerfahrungen; Sprachhandlungen: Ausbau von Stufe 4 und 5 sowie Argumentieren.","7. Das Kind verwendet Nebensatzeinleiter",null,null,"Kind 7","Kind 7",null,null,null,null,6]
[null,null,"8. Das Kind verwendet Artikel in Begleitung von Nomen",null,null,"Kind 8","Kind 8"]
[null,null,"9. Das Kind verwendet komplexe und differenzierte Strukturen mit Satzgefügen",null,null,"Kind 9","Kind 9"]
[null,null,"10. Das Kind versteht Alltagsbegriffe aus dem unmittelbaren Lebensumfeld",null,null,"Kind 10","Kind 10"]
[null,null,"11. Das Kind versteht Präpositionen"]
[null,null,"12. Das Kind versteht W-Fragen "]
[null,null,"13. Das Kind versteht einfache Aufträge ohne nonverbale Hinweise"]
[null,null,"14. Das Kind versteht zwei- oder dreiteilige Aufträge ohne nonverbale Hinweise"]
[null,null,"15. Das Kind hat einen Basiswortschatz an Verben "]
[null,null,"16. Das Kind hat einen Basiswortschatz an Nomen"]
[null,null,"17. Das Kind hat einen Basiswortschatz an Adjektiven"]
[null,null,"18. Das Kind hat einen erweiterten Basiswortschatz an Verben"]
[null,null,"19. Das Kind hat einen erweiterten Basiswortschatz an Nomen"]
[null,null,"20. Das Kind hat einen erweiterten Basiswortschatz an Adjektiven"]
[null,null,"21. Das Kind produziert abstrakte, zeitliche und psychisch-mentale Verben & Nomen"]
[null,null,"22. Das Kind beteiligt sich aktiv am Gespräch"]
[null,null,"23. Das Kind äußert Wünsche und Bedürfnisse"]
[null,null,"24. Das Kind erzählt eine Geschichte sprachlich zusammenhängend nach "]
[null,null,"25. Das Kind erzählt von eigenen Erlebnissen inhaltlich nachvollziehbar"]
[null,null,"26. Das Kind äußert Ideen und entwickelt gemeinsame Pläne "]
[null,null,"27. Das Kind verbalisiert seine Gefühle"]
[null,null,"28. Das Kind äußert seine Meinung"]
[null,null,"29. Das Kind begründet, erklärt und argumentiert"]
[null,null,"30. Das Kind verwendet seine Erstsprache "]
[null,null,"31. Das Kind zeigt Interesse an der deutschen Sprache "]
[null,null,"32. Das Kind nimmt mit unterschiedlichen Sinnen  wahr"]
[]
[]
[null,null,null,null,null,null,"Förderangebote für Statistik "]
[]
[null,1,{"$f":"Förderangebote!G7","v":"Hier können Sie die Bildungsbereiche wählen"},null,{"$f":"Förderangebote!E7","v":"Kind 6"},null,{"$f":"Förderangebote!E8","v":"Kind 7"},{"$f":"Förderangebote!E9","v":"Kind 8"},{"$f":"Förderangebote!E10","v":"Kind 9"},{"$f":"Förderangebote!E11","v":"Kind 10"},{"$f":"Förderangebote!D7","v":"Kind 1"},{"$f":"Förderangebote!D8","v":"Kind 2"},{"$f":"Förderangebote!D9","v":"Kind 3"},{"$f":"Förderangebote!D10","v":"Kind 4"},{"$f":"Förderangebote!D11","v":"Kind 5"}]
[null,null,{"$f":"Förderangebote!G9","v":0},null,{"$f":"Förderangebote!E7","v":"Kind 6"},null,{"$f":"Förderangebote!E8","v":"Kind 7"},{"$f":"Förderangebote!E9","v":"Kind 8"},{"$f":"Förderangebote!E10","v":"Kind 9"},{"$f":"Förderangebote!E11","v":"Kind 10"},{"$f":"Förderangebote!D7","v":"Kind 1"},{"$f":"Förderangebote!D8","v":"Kind 2"},{"$f":"Förderangebote!D9","v":"Kind 3"},{"$f":"Förderangebote!D10","v":"Kind 4"},{"$f":"Förderangebote!D11","v":"Kind 5"}]
[null,null,{"$f":"Förderangebote!G11","v":0},null,{"$f":"Förderangebote!E7","v":"Kind 6"},null,{"$f":"Förderangebote!E8","v":"Kind 7"},{"$f":"Förderangebote!E9","v":"Kind 8"},{"$f":"Förderangebote!E10","v":"Kind 9"},{"$f":"Förderangebote!E11","v":"Kind 10"},{"$f":"Förderangebote!D7","v":"Kind 1"},{"$f":"Förderangebote!D8","v":"Kind 2"},{"$f":"Förderangebote!D9","v":"Kind 3"},{"$f":"Förderangebote!D10","v":"Kind 4"},{"$f":"Förderangebote!D11","v":"Kind 5"}]
[null,2,{"$f":"Förderangebote!G13","v":0},null,{"$f":"Förderangebote!E13","v":0},null,{"$f":"Förderangebote!E14","v":0},{"$f":"Förderangebote!E15","v":0},{"$f":"Förderangebote!E16","v":0},{"$f":"Förderangebote!E17","v":0},{"$f":"Förderangebote!D13","v":0},{"$f":"Förderangebote!D14","v":0},{"$f":"Förderangebote!D15","v":0},{"$f":"Förderangebote!D16","v":0},{"$f":"Förderangebote!D17","v":0}]
[null,null,{"$f":"Förderangebote!G15","v":0},null,{"$f":"Förderangebote!E13","v":0},null,{"$f":"Förderangebote!E14","v":0},{"$f":"Förderangebote!E15","v":0},{"$f":"Förderangebote!E16","v":0},{"$f":"Förderangebote!E17","v":0},{"$f":"Förderangebote!D13","v":0},{"$f":"Förderangebote!D14","v":0},{"$f":"Förderangebote!D15","v":0},{"$f":"Förderangebote!D16","v":0},{"$f":"Förderangebote!D17","v":0}]
[null,null,{"$f":"Förderangebote!G17","v":0},null,{"$f":"Förderangebote!E13","v":0},null,{"$f":"Förderangebote!E14","v":0},{"$f":"Förderangebote!E15","v":0},{"$f":"Förderangebote!E16","v":0},{"$f":"Förderangebote!E17","v":0},{"$f":"Förderangebote!D13","v":0},{"$f":"Förderangebote!D14","v":0},{"$f":"Förderangebote!D15","v":0},{"$f":"Förderangebote!D16","v":0},{"$f":"Förderangebote!D17","v":0}]
[null,3,{"$f":"Förderangebote!G19","v":0},null,{"$f":"Förderangebote!E19","v":0},null,{"$f":"Förderangebote!E20","v":0},{"$f":"Förderangebote!E21","v":0},{"$f":"Förderangebote!E22","v":0},{"$f":"Förderangebote!E23","v":0},{"$f":"Förderangebote!D19","v":0},{"$f":"Förderangebote!D20","v":0},{"$f":"Förderangebote!D21","v":0},{"$f":"Förderangebote!D22","v":0},{"$f":"Förderangebote!D23","v":0}]
[null,null,{"$f":"Förderangebote!G21","v":0},null,{"$f":"Förderangebote!E19","v":0},null,{"$f":"Förderangebote!E20","v":0},{"$f":"Förderangebote!E21","v":0},{"$f":"Förderangebote!E22","v":0},{"$f":"Förderangebote!E23","v":0},{"$f":"Förderangebote!D19","v":0},{"$f":"Förderangebote!D20","v":0},{"$f":"Förderangebote!D21","v":0},{"$f":"Förderangebote!D22","v":0},{"$f":"Förderangebote!D23","v":0}]
[null,null,{"$f":"Förderangebote!G23","v":0},null,{"$f":"Förderangebote!E19","v":0},null,{"$f":"Förderangebote!E20","v":0},{"$f":"Förderangebote!E21","v":0},{"$f":"Förderangebote!E22","v":0},{"$f":"Förderangebote!E23","v":0},{"$f":"Förderangebote!D19","v":0},{"$f":"Förderangebote!D20","v":0},{"$f":"Förderangebote!D21","v":0},{"$f":"Förderangebote!D22","v":0},{"$f":"Förderangebote!D23","v":0}]
[null,4,{"$f":"Förderangebote!G26","v":0},null,{"$f":"Förderangebote!E26","v":0},null,{"$f":"Förderangebote!E27","v":0},{"$f":"Förderangebote!E28","v":0},{"$f":"Förderangebote!E29","v":0},{"$f":"Förderangebote!E30","v":0},{"$f":"Förderangebote!D26","v":0},{"$f":"Förderangebote!D27","v":0},{"$f":"Förderangebote!D28","v":0},{"$f":"Förderangebote!D29","v":0},{"$f":"Förderangebote!D30","v":0}]
[null,null,{"$f":"Förderangebote!G28","v":0},null,{"$f":"Förderangebote!E26","v":0},null,{"$f":"Förderangebote!E27","v":0},{"$f":"Förderangebote!E28","v":0},{"$f":"Förderangebote!E29","v":0},{"$f":"Förderangebote!E30","v":0},{"$f":"Förderangebote!D26","v":0},{"$f":"Förderangebote!D27","v":0},{"$f":"Förderangebote!D28","v":0},{"$f":"Förderangebote!D29","v":0},{"$f":"Förderangebote!D30","v":0}]
[null,null,{"$f":"Förderangebote!G30","v":0},null,{"$f":"Förderangebote!E26","v":0},null,{"$f":"Förderangebote!E27","v":0},{"$f":"Förderangebote!E28","v":0},{"$f":"Förderangebote!E29","v":0},{"$f":"Förderangebote!E30","v":0},{"$f":"Förderangebote!D26","v":0},{"$f":"Förderangebote!D27","v":0},{"$f":"Förderangebote!D28","v":0},{"$f":"Förderangebote!D29","v":0},{"$f":"Förderangebote!D30","v":0}]
[null,5,{"$f":"Förderangebote!G32","v":0},null,{"$f":"Förderangebote!E32","v":0},null,{"$f":"Förderangebote!E33","v":0},{"$f":"Förderangebote!E34","v":0},{"$f":"Förderangebote!E35","v":0},{"$f":"Förderangebote!E36","v":0},{"$f":"Förderangebote!D32","v":0},{"$f":"Förderangebote!D33","v":0},{"$f":"Förderangebote!D34","v":0},{"$f":"Förderangebote!D35","v":0},{"$f":"Förderangebote!D36","v":0}]
[null,null,{"$f":"Förderangebote!G34","v":0},null,{"$f":"Förderangebote!E32","v":0},null,{"$f":"Förderangebote!E33","v":0},{"$f":"Förderangebote!E34","v":0},{"$f":"Förderangebote!E35","v":0},{"$f":"Förderangebote!E36","v":0},{"$f":"Förderangebote!D32","v":0},{"$f":"Förderangebote!D33","v":0},{"$f":"Förderangebote!D34","v":0},{"$f":"Förderangebote!D35","v":0},{"$f":"Förderangebote!D36","v":0}]
[null,null,{"$f":"Förderangebote!G36","v":0},null,{"$f":"Förderangebote!E32","v":0},null,{"$f":"Förderangebote!E33","v":0},{"$f":"Förderangebote!E34","v":0},{"$f":"Förderangebote!E35","v":0},{"$f":"Förderangebote!E36","v":0},{"$f":"Förderangebote!D32","v":0},{"$f":"Förderangebote!D33","v":0},{"$f":"Förderangebote!D34","v":0},{"$f":"Förderangebote!D35","v":0},{"$f":"Förderangebote!D36","v":0}]
[null,6,{"$f":"Förderangebote!G38","v":0},null,{"$f":"Förderangebote!E38","v":0},null,{"$f":"Förderangebote!E39","v":0},{"$f":"Förderangebote!E40","v":0},{"$f":"Förderangebote!E41","v":0},{"$f":"Förderangebote!E42","v":0},{"$f":"Förderangebote!D38","v":0},{"$f":"Förderangebote!D39","v":0},{"$f":"Förderangebote!D40","v":0},{"$f":"Förderangebote!D41","v":0},{"$f":"Förderangebote!D42","v":0}]
[null,null,{"$f":"Förderangebote!G40","v":0},null,{"$f":"Förderangebote!E38","v":0},null,{"$f":"Förderangebote!E39","v":0},{"$f":"Förderangebote!E40","v":0},{"$f":"Förderangebote!E41","v":0},{"$f":"Förderangebote!E42","v":0},{"$f":"Förderangebote!D38","v":0},{"$f":"Förderangebote!D39","v":0},{"$f":"Förderangebote!D40","v":0},{"$f":"Förderangebote!D41","v":0},{"$f":"Förderangebote!D42","v":0}]
[null,null,{"$f":"Förderangebote!G42","v":0},null,{"$f":"Förderangebote!E38","v":0},null,{"$f":"Förderangebote!E39","v":0},{"$f":"Förderangebote!E40","v":0},{"$f":"Förderangebote!E41","v":0},{"$f":"Förderangebote!E42","v":0},{"$f":"Förderangebote!D38","v":0},{"$f":"Förderangebote!D39","v":0},{"$f":"Förderangebote!D40","v":0},{"$f":"Förderangebote!D41","v":0},{"$f":"Förderangebote!D42","v":0}]
[null,7,{"$f":"Förderangebote!G47","v":0},null,{"$f":"Förderangebote!E47","v":0},null,{"$f":"Förderangebote!E48","v":0},{"$f":"Förderangebote!E49","v":0},{"$f":"Förderangebote!E50","v":0},{"$f":"Förderangebote!E51","v":0},{"$f":"Förderangebote!D47","v":0},{"$f":"Förderangebote!D48","v":0},{"$f":"Förderangebote!D49","v":0},{"$f":"Förderangebote!D50","v":0},{"$f":"Förderangebote!D51","v":0}]
[null,null,{"$f":"Förderangebote!G49","v":0},null,{"$f":"Förderangebote!E47","v":0},null,{"$f":"Förderangebote!E48","v":0},{"$f":"Förderangebote!E49","v":0},{"$f":"Förderangebote!E50","v":0},{"$f":"Förderangebote!E51","v":0},{"$f":"Förderangebote!D47","v":0},{"$f":"Förderangebote!D48","v":0},{"$f":"Förderangebote!D49","v":0},{"$f":"Förderangebote!D50","v":0},{"$f":"Förderangebote!D51","v":0}]
[null,null,{"$f":"Förderangebote!G51","v":0},null,{"$f":"Förderangebote!E47","v":0},null,{"$f":"Förderangebote!E48","v":0},{"$f":"Förderangebote!E49","v":0},{"$f":"Förderangebote!E50","v":0},{"$f":"Förderangebote!E51","v":0},{"$f":"Förderangebote!D47","v":0},{"$f":"Förderangebote!D48","v":0},{"$f":"Förderangebote!D49","v":0},{"$f":"Förderangebote!D50","v":0},{"$f":"Förderangebote!D51","v":0}]
[null,8,{"$f":"Förderangebote!G53","v":0},null,{"$f":"Förderangebote!E53","v":0},null,{"$f":"Förderangebote!E54","v":0},{"$f":"Förderangebote!E55","v":0},{"$f":"Förderangebote!E56","v":0},{"$f":"Förderangebote!E57","v":0},{"$f":"Förderangebote!D53","v":0},{"$f":"Förderangebote!D54","v":0},{"$f":"Förderangebote!D55","v":0},{"$f":"Förderangebote!D56","v":0},{"$f":"Förderangebote!D57","v":0}]
[null,null,{"$f":"Förderangebote!G55","v":0},null,{"$f":"Förderangebote!E53","v":0},null,{"$f":"Förderangebote!E54","v":0},{"$f":"Förderangebote!E55","v":0},{"$f":"Förderangebote!E56","v":0},{"$f":"Förderangebote!E57","v":0},{"$f":"Förderangebote!D53","v":0},{"$f":"Förderangebote!D54","v":0},{"$f":"Förderangebote!D55","v":0},{"$f":"Förderangebote!D56","v":0},{"$f":"Förderangebote!D57","v":0}]
[null,null,{"$f":"Förderangebote!G57","v":0},null,{"$f":"Förderangebote!E53","v":0},null,{"$f":"Förderangebote!E54","v":0},{"$f":"Förderangebote!E55","v":0},{"$f":"Förderangebote!E56","v":0},{"$f":"Förderangebote!E57","v":0},{"$f":"Förderangebote!D53","v":0},{"$f":"Förderangebote!D54","v":0},{"$f":"Förderangebote!D55","v":0},{"$f":"Förderangebote!D56","v":0},{"$f":"Förderangebote!D57","v":0}]
[null,9,{"$f":"Förderangebote!G59","v":0},null,{"$f":"Förderangebote!E59","v":0},null,{"$f":"Förderangebote!E60","v":0},{"$f":"Förderangebote!E61","v":0},{"$f":"Förderangebote!E62","v":0},{"$f":"Förderangebote!E63","v":0},{"$f":"Förderangebote!D59","v":0},{"$f":"Förderangebote!D60","v":0},{"$f":"Förderangebote!D61","v":0},{"$f":"Förderangebote!D62","v":0},{"$f":"Förderangebote!D63","v":0}]
[null,null,{"$f":"Förderangebote!G61","v":0},null,{"$f":"Förderangebote!E59","v":0},null,{"$f":"Förderangebote!E60","v":0},{"$f":"Förderangebote!E61","v":0},{"$f":"Förderangebote!E62","v":0},{"$f":"Förderangebote!E63","v":0},{"$f":"Förderangebote!D59","v":0},{"$f":"Förderangebote!D60","v":0},{"$f":"Förderangebote!D61","v":0},{"$f":"Förderangebote!D62","v":0},{"$f":"Förderangebote!D63","v":0}]
[null,null,{"$f":"Förderangebote!G63","v":0},null,{"$f":"Förderangebote!E59","v":0},null,{"$f":"Förderangebote!E60","v":0},{"$f":"Förderangebote!E61","v":0},{"$f":"Förderangebote!E62","v":0},{"$f":"Förderangebote!E63","v":0},{"$f":"Förderangebote!D59","v":0},{"$f":"Förderangebote!D60","v":0},{"$f":"Förderangebote!D61","v":0},{"$f":"Förderangebote!D62","v":0},{"$f":"Förderangebote!D63","v":0}]
[null,10,{"$f":"Förderangebote!G68","v":0},null,{"$f":"Förderangebote!E68","v":0},null,{"$f":"Förderangebote!E69","v":0},{"$f":"Förderangebote!E70","v":0},{"$f":"Förderangebote!E71","v":0},{"$f":"Förderangebote!E72","v":0},{"$f":"Förderangebote!D68","v":0},{"$f":"Förderangebote!D69","v":0},{"$f":"Förderangebote!D70","v":0},{"$f":"Förderangebote!D71","v":0},{"$f":"Förderangebote!D72","v":0}]
[null,null,{"$f":"Förderangebote!G70","v":0},null,{"$f":"Förderangebote!E68","v":0},null,{"$f":"Förderangebote!E69","v":0},{"$f":"Förderangebote!E70","v":0},{"$f":"Förderangebote!E71","v":0},{"$f":"Förderangebote!E72","v":0},{"$f":"Förderangebote!D68","v":0},{"$f":"Förderangebote!D69","v":0},{"$f":"Förderangebote!D70","v":0},{"$f":"Förderangebote!D71","v":0},{"$f":"Förderangebote!D72","v":0}]
[null,null,{"$f":"Förderangebote!G72","v":0},null,{"$f":"Förderangebote!E68","v":0},null,{"$f":"Förderangebote!E69","v":0},{"$f":"Förderangebote!E70","v":0},{"$f":"Förderangebote!E71","v":0},{"$f":"Förderangebote!E72","v":0},{"$f":"Förderangebote!D68","v":0},{"$f":"Förderangebote!D69","v":0},{"$f":"Förderangebote!D70","v":0},{"$f":"Förderangebote!D71","v":0},{"$f":"Förderangebote!D72","v":0}]
[null,11,{"$f":"Förderangebote!G74","v":0},null,{"$f":"Förderangebote!E74","v":0},null,{"$f":"Förderangebote!E75","v":0},{"$f":"Förderangebote!E76","v":0},{"$f":"Förderangebote!E77","v":0},{"$f":"Förderangebote!E78","v":0},{"$f":"Förderangebote!D74","v":0},{"$f":"Förderangebote!D75","v":0},{"$f":"Förderangebote!D76","v":0},{"$f":"Förderangebote!D77","v":0},{"$f":"Förderangebote!D78","v":0}]
[null,null,{"$f":"Förderangebote!G76","v":0},null,{"$f":"Förderangebote!E74","v":0},null,{"$f":"Förderangebote!E75","v":0},{"$f":"Förderangebote!E76","v":0},{"$f":"Förderangebote!E77","v":0},{"$f":"Förderangebote!E78","v":0},{"$f":"Förderangebote!D74","v":0},{"$f":"Förderangebote!D75","v":0},{"$f":"Förderangebote!D76","v":0},{"$f":"Förderangebote!D77","v":0},{"$f":"Förderangebote!D78","v":0}]
[null,null,{"$f":"Förderangebote!G78","v":0},null,{"$f":"Förderangebote!E74","v":0},null,{"$f":"Förderangebote!E75","v":0},{"$f":"Förderangebote!E76","v":0},{"$f":"Förderangebote!E77","v":0},{"$f":"Förderangebote!E78","v":0},{"$f":"Förderangebote!D74","v":0},{"$f":"Förderangebote!D75","v":0},{"$f":"Förderangebote!D76","v":0},{"$f":"Förderangebote!D77","v":0},{"$f":"Förderangebote!D78","v":0}]
[null,12,{"$f":"Förderangebote!G80","v":0},null,{"$f":"Förderangebote!E80","v":0},null,{"$f":"Förderangebote!E81","v":0},{"$f":"Förderangebote!E82","v":0},{"$f":"Förderangebote!E83","v":0},{"$f":"Förderangebote!E84","v":0},{"$f":"Förderangebote!D80","v":0},{"$f":"Förderangebote!D81","v":0},{"$f":"Förderangebote!D82","v":0},{"$f":"Förderangebote!D83","v":0},{"$f":"Förderangebote!D84","v":0}]
[null,null,{"$f":"Förderangebote!G82","v":0},null,{"$f":"Förderangebote!E80","v":0},null,{"$f":"Förderangebote!E81","v":0},{"$f":"Förderangebote!E82","v":0},{"$f":"Förderangebote!E83","v":0},{"$f":"Förderangebote!E84","v":0},{"$f":"Förderangebote!D80","v":0},{"$f":"Förderangebote!D81","v":0},{"$f":"Förderangebote!D82","v":0},{"$f":"Förderangebote!D83","v":0},{"$f":"Förderangebote!D84","v":0}]
[null,null,{"$f":"Förderangebote!G84","v":0},null,{"$f":"Förderangebote!E80","v":0},null,{"$f":"Förderangebote!E81","v":0},{"$f":"Förderangebote!E82","v":0},{"$f":"Förderangebote!E83","v":0},{"$f":"Förderangebote!E84","v":0},{"$f":"Förderangebote!D80","v":0},{"$f":"Förderangebote!D81","v":0},{"$f":"Förderangebote!D82","v":0},{"$f":"Förderangebote!D83","v":0},{"$f":"Förderangebote!D84","v":0}]
[null,13,{"$f":"Förderangebote!G89","v":0},null,{"$f":"Förderangebote!E89","v":0},null,{"$f":"Förderangebote!E90","v":0},{"$f":"Förderangebote!E91","v":0},{"$f":"Förderangebote!E92","v":0},{"$f":"Förderangebote!E93","v":0},{"$f":"Förderangebote!D89","v":0},{"$f":"Förderangebote!D90","v":0},{"$f":"Förderangebote!D91","v":0},{"$f":"Förderangebote!D92","v":0},{"$f":"Förderangebote!D93","v":0}]
[null,null,{"$f":"Förderangebote!G91","v":0},null,{"$f":"Förderangebote!E89","v":0},null,{"$f":"Förderangebote!E90","v":0},{"$f":"Förderangebote!E91","v":0},{"$f":"Förderangebote!E92","v":0},{"$f":"Förderangebote!E93","v":0},{"$f":"Förderangebote!D89","v":0},{"$f":"Förderangebote!D90","v":0},{"$f":"Förderangebote!D91","v":0},{"$f":"Förderangebote!D92","v":0},{"$f":"Förderangebote!D93","v":0}]
[null,null,{"$f":"Förderangebote!G93","v":0},null,{"$f":"Förderangebote!E89","v":0},null,{"$f":"Förderangebote!E90","v":0},{"$f":"Förderangebote!E91","v":0},{"$f":"Förderangebote!E92","v":0},{"$f":"Förderangebote!E93","v":0},{"$f":"Förderangebote!D89","v":0},{"$f":"Förderangebote!D90","v":0},{"$f":"Förderangebote!D91","v":0},{"$f":"Förderangebote!D92","v":0},{"$f":"Förderangebote!D93","v":0}]
[null,14,{"$f":"Förderangebote!G95","v":0},null,{"$f":"Förderangebote!E95","v":0},null,{"$f":"Förderangebote!E96","v":0},{"$f":"Förderangebote!E97","v":0},{"$f":"Förderangebote!E98","v":0},{"$f":"Förderangebote!E99","v":0},{"$f":"Förderangebote!D95","v":0},{"$f":"Förderangebote!D96","v":0},{"$f":"Förderangebote!D97","v":0},{"$f":"Förderangebote!D98","v":0},{"$f":"Förderangebote!D99","v":0}]
[null,null,{"$f":"Förderangebote!G97","v":0},null,{"$f":"Förderangebote!E95","v":0},null,{"$f":"Förderangebote!E96","v":0},{"$f":"Förderangebote!E97","v":0},{"$f":"Förderangebote!E98","v":0},{"$f":"Förderangebote!E99","v":0},{"$f":"Förderangebote!D95","v":0},{"$f":"Förderangebote!D96","v":0},{"$f":"Förderangebote!D97","v":0},{"$f":"Förderangebote!D98","v":0},{"$f":"Förderangebote!D99","v":0}]
[null,null,{"$f":"Förderangebote!G99","v":0},null,{"$f":"Förderangebote!E95","v":0},null,{"$f":"Förderangebote!E96","v":0},{"$f":"Förderangebote!E97","v":0},{"$f":"Förderangebote!E98","v":0},{"$f":"Förderangebote!E99","v":0},{"$f":"Förderangebote!D95","v":0},{"$f":"Förderangebote!D96","v":0},{"$f":"Förderangebote!D97","v":0},{"$f":"Förderangebote!D98","v":0},{"$f":"Förderangebote!D99","v":0}]
[null,15,{"$f":"Förderangebote!G101","v":0},null,{"$f":"Förderangebote!E101","v":0},null,{"$f":"Förderangebote!E102","v":0},{"$f":"Förderangebote!E103","v":0},{"$f":"Förderangebote!E104","v":0},{"$f":"Förderangebote!E105","v":0},{"$f":"Förderangebote!D101","v":0},{"$f":"Förderangebote!D102","v":0},{"$f":"Förderangebote!D103","v":0},{"$f":"Förderangebote!D104","v":0},{"$f":"Förderangebote!D105","v":0}]
[null,null,{"$f":"Förderangebote!G103","v":0},null,{"$f":"Förderangebote!E101","v":0},null,{"$f":"Förderangebote!E102","v":0},{"$f":"Förderangebote!E103","v":0},{"$f":"Förderangebote!E104","v":0},{"$f":"Förderangebote!E105","v":0},{"$f":"Förderangebote!D101","v":0},{"$f":"Förderangebote!D102","v":0},{"$f":"Förderangebote!D103","v":0},{"$f":"Förderangebote!D104","v":0},{"$f":"Förderangebote!D105","v":0}]
[null,null,{"$f":"Förderangebote!G105","v":0},null,{"$f":"Förderangebote!E101","v":0},null,{"$f":"Förderangebote!E102","v":0},{"$f":"Förderangebote!E103","v":0},{"$f":"Förderangebote!E104","v":0},{"$f":"Förderangebote!E105","v":0},{"$f":"Förderangebote!D101","v":0},{"$f":"Förderangebote!D102","v":0},{"$f":"Förderangebote!D103","v":0},{"$f":"Förderangebote!D104","v":0},{"$f":"Förderangebote!D105","v":0}]
[null,16,{"$f":"Förderangebote!G110","v":0},null,{"$f":"Förderangebote!E110","v":0},null,{"$f":"Förderangebote!E111","v":0},{"$f":"Förderangebote!E112","v":0},{"$f":"Förderangebote!E113","v":0},{"$f":"Förderangebote!E114","v":0},{"$f":"Förderangebote!D110","v":0},{"$f":"Förderangebote!D111","v":0},{"$f":"Förderangebote!D112","v":0},{"$f":"Förderangebote!D113","v":0},{"$f":"Förderangebote!D114","v":0}]
[null,null,{"$f":"Förderangebote!G112","v":0},null,{"$f":"Förderangebote!E110","v":0},null,{"$f":"Förderangebote!E111","v":0},{"$f":"Förderangebote!E112","v":0},{"$f":"Förderangebote!E113","v":0},{"$f":"Förderangebote!E114","v":0},{"$f":"Förderangebote!D110","v":0},{"$f":"Förderangebote!D111","v":0},{"$f":"Förderangebote!D112","v":0},{"$f":"Förderangebote!D113","v":0},{"$f":"Förderangebote!D114","v":0}]
[null,null,{"$f":"Förderangebote!G114","v":0},null,{"$f":"Förderangebote!E110","v":0},null,{"$f":"Förderangebote!E111","v":0},{"$f":"Förderangebote!E112","v":0},{"$f":"Förderangebote!E113","v":0},{"$f":"Förderangebote!E114","v":0},{"$f":"Förderangebote!D110","v":0},{"$f":"Förderangebote!D111","v":0},{"$f":"Förderangebote!D112","v":0},{"$f":"Förderangebote!D113","v":0},{"$f":"Förderangebote!D114","v":0}]
[null,17,{"$f":"Förderangebote!G116","v":0},null,{"$f":"Förderangebote!E116","v":0},null,{"$f":"Förderangebote!E117","v":0},{"$f":"Förderangebote!E118","v":0},{"$f":"Förderangebote!E119","v":0},{"$f":"Förderangebote!E120","v":0},{"$f":"Förderangebote!D116","v":0},{"$f":"Förderangebote!D117","v":0},{"$f":"Förderangebote!D118","v":0},{"$f":"Förderangebote!D119","v":0},{"$f":"Förderangebote!D120","v":0}]
[null,null,{"$f":"Förderangebote!G118","v":0},null,{"$f":"Förderangebote!E116","v":0},null,{"$f":"Förderangebote!E117","v":0},{"$f":"Förderangebote!E118","v":0},{"$f":"Förderangebote!E119","v":0},{"$f":"Förderangebote!E120","v":0},{"$f":"Förderangebote!D116","v":0},{"$f":"Förderangebote!D117","v":0},{"$f":"Förderangebote!D118","v":0},{"$f":"Förderangebote!D119","v":0},{"$f":"Förderangebote!D120","v":0}]
[null,null,{"$f":"Förderangebote!G120","v":0},null,{"$f":"Förderangebote!E116","v":0},null,{"$f":"Förderangebote!E117","v":0},{"$f":"Förderangebote!E118","v":0},{"$f":"Förderangebote!E119","v":0},{"$f":"Förderangebote!E120","v":0},{"$f":"Förderangebote!D116","v":0},{"$f":"Förderangebote!D117","v":0},{"$f":"Förderangebote!D118","v":0},{"$f":"Förderangebote!D119","v":0},{"$f":"Förderangebote!D120","v":0}]
[null,18,{"$f":"Förderangebote!G122","v":0},null,{"$f":"Förderangebote!E122","v":0},null,{"$f":"Förderangebote!E123","v":0},{"$f":"Förderangebote!E124","v":0},{"$f":"Förderangebote!E125","v":0},{"$f":"Förderangebote!E126","v":0},{"$f":"Förderangebote!D122","v":0},{"$f":"Förderangebote!D123","v":0},{"$f":"Förderangebote!D124","v":0},{"$f":"Förderangebote!D125","v":0},{"$f":"Förderangebote!D126","v":0}]
[null,null,{"$f":"Förderangebote!G124","v":0},null,{"$f":"Förderangebote!E122","v":0},null,{"$f":"Förderangebote!E123","v":0},{"$f":"Förderangebote!E124","v":0},{"$f":"Förderangebote!E125","v":0},{"$f":"Förderangebote!E126","v":0},{"$f":"Förderangebote!D122","v":0},{"$f":"Förderangebote!D123","v":0},{"$f":"Förderangebote!D124","v":0},{"$f":"Förderangebote!D125","v":0},{"$f":"Förderangebote!D126","v":0}]
[null,null,{"$f":"Förderangebote!G126","v":0},null,{"$f":"Förderangebote!E122","v":0},null,{"$f":"Förderangebote!E123","v":0},{"$f":"Förderangebote!E124","v":0},{"$f":"Förderangebote!E125","v":0},{"$f":"Förderangebote!E126","v":0},{"$f":"Förderangebote!D122","v":0},{"$f":"Förderangebote!D123","v":0},{"$f":"Förderangebote!D124","v":0},{"$f":"Förderangebote!D125","v":0},{"$f":"Förderangebote!D126","v":0}]
[null,19,{"$f":"Förderangebote!G131","v":0},null,{"$f":"Förderangebote!E131","v":0},null,{"$f":"Förderangebote!E132","v":0},{"$f":"Förderangebote!E133","v":0},{"$f":"Förderangebote!E134","v":0},{"$f":"Förderangebote!E135","v":0},{"$f":"Förderangebote!D131","v":0},{"$f":"Förderangebote!D132","v":0},{"$f":"Förderangebote!D133","v":0},{"$f":"Förderangebote!D134","v":0},{"$f":"Förderangebote!D135","v":0}]
[null,null,{"$f":"Förderangebote!G133","v":0},null,{"$f":"Förderangebote!E131","v":0},null,{"$f":"Förderangebote!E132","v":0},{"$f":"Förderangebote!E133","v":0},{"$f":"Förderangebote!E134","v":0},{"$f":"Förderangebote!E135","v":0},{"$f":"Förderangebote!D131","v":0},{"$f":"Förderangebote!D132","v":0},{"$f":"Förderangebote!D133","v":0},{"$f":"Förderangebote!D134","v":0},{"$f":"Förderangebote!D135","v":0}]
[null,null,{"$f":"Förderangebote!G135","v":0},null,{"$f":"Förderangebote!E131","v":0},null,{"$f":"Förderangebote!E132","v":0},{"$f":"Förderangebote!E133","v":0},{"$f":"Förderangebote!E134","v":0},{"$f":"Förderangebote!E135","v":0},{"$f":"Förderangebote!D131","v":0},{"$f":"Förderangebote!D132","v":0},{"$f":"Förderangebote!D133","v":0},{"$f":"Förderangebote!D134","v":0},{"$f":"Förderangebote!D135","v":0}]
[null,20,{"$f":"Förderangebote!G137","v":0},null,{"$f":"Förderangebote!E137","v":0},null,{"$f":"Förderangebote!E138","v":0},{"$f":"Förderangebote!E139","v":0},{"$f":"Förderangebote!E140","v":0},{"$f":"Förderangebote!E141","v":0},{"$f":"Förderangebote!D137","v":0},{"$f":"Förderangebote!D138","v":0},{"$f":"Förderangebote!D139","v":0},{"$f":"Förderangebote!D140","v":0},{"$f":"Förderangebote!D141","v":0}]
[null,null,{"$f":"Förderangebote!G139","v":0},null,{"$f":"Förderangebote!E137","v":0},null,{"$f":"Förderangebote!E138","v":0},{"$f":"Förderangebote!E139","v":0},{"$f":"Förderangebote!E140","v":0},{"$f":"Förderangebote!E141","v":0},{"$f":"Förderangebote!D137","v":0},{"$f":"Förderangebote!D138","v":0},{"$f":"Förderangebote!D139","v":0},{"$f":"Förderangebote!D140","v":0},{"$f":"Förderangebote!D141","v":0}]
[null,null,{"$f":"Förderangebote!G141","v":0},null,{"$f":"Förderangebote!E137","v":0},null,{"$f":"Förderangebote!E138","v":0},{"$f":"Förderangebote!E139","v":0},{"$f":"Förderangebote!E140","v":0},{"$f":"Förderangebote!E141","v":0},{"$f":"Förderangebote!D137","v":0},{"$f":"Förderangebote!D138","v":0},{"$f":"Förderangebote!D139","v":0},{"$f":"Förderangebote!D140","v":0},{"$f":"Förderangebote!D141","v":0}]
[null,21,{"$f":"Förderangebote!G143","v":0},null,{"$f":"Förderangebote!E143","v":0},null,{"$f":"Förderangebote!E144","v":0},{"$f":"Förderangebote!E145","v":0},{"$f":"Förderangebote!E146","v":0},{"$f":"Förderangebote!E147","v":0},{"$f":"Förderangebote!D143","v":0},{"$f":"Förderangebote!D144","v":0},{"$f":"Förderangebote!D145","v":0},{"$f":"Förderangebote!D146","v":0},{"$f":"Förderangebote!D147","v":0}]
[null,null,{"$f":"Förderangebote!G145","v":0},null,{"$f":"Förderangebote!E143","v":0},null,{"$f":"Förderangebote!E144","v":0},{"$f":"Förderangebote!E145","v":0},{"$f":"Förderangebote!E146","v":0},{"$f":"Förderangebote!E147","v":0},{"$f":"Förderangebote!D143","v":0},{"$f":"Förderangebote!D144","v":0},{"$f":"Förderangebote!D145","v":0},{"$f":"Förderangebote!D146","v":0},{"$f":"Förderangebote!D147","v":0}]
[null,null,{"$f":"Förderangebote!G147","v":0},null,{"$f":"Förderangebote!E143","v":0},null,{"$f":"Förderangebote!E144","v":0},{"$f":"Förderangebote!E145","v":0},{"$f":"Förderangebote!E146","v":0},{"$f":"Förderangebote!E147","v":0},{"$f":"Förderangebote!D143","v":0},{"$f":"Förderangebote!D144","v":0},{"$f":"Förderangebote!D145","v":0},{"$f":"Förderangebote!D146","v":0},{"$f":"Förderangebote!D147","v":0}]
[null,22,{"$f":"Förderangebote!G152","v":0},null,{"$f":"Förderangebote!E152","v":0},null,{"$f":"Förderangebote!E153","v":0},{"$f":"Förderangebote!E154","v":0},{"$f":"Förderangebote!E155","v":0},{"$f":"Förderangebote!E156","v":0},{"$f":"Förderangebote!D143","v":0},{"$f":"Förderangebote!D144","v":0},{"$f":"Förderangebote!D145","v":0},{"$f":"Förderangebote!D146","v":0},{"$f":"Förderangebote!D147","v":0}]
[null,null,{"$f":"Förderangebote!G154","v":0},null,{"$f":"Förderangebote!E152","v":0},null,{"$f":"Förderangebote!E153","v":0},{"$f":"Förderangebote!E154","v":0},{"$f":"Förderangebote!E155","v":0},{"$f":"Förderangebote!E156","v":0},{"$f":"Förderangebote!D143","v":0},{"$f":"Förderangebote!D144","v":0},{"$f":"Förderangebote!D145","v":0},{"$f":"Förderangebote!D146","v":0},{"$f":"Förderangebote!D147","v":0}]
[null,null,{"$f":"Förderangebote!G156","v":0},null,{"$f":"Förderangebote!E152","v":0},null,{"$f":"Förderangebote!E153","v":0},{"$f":"Förderangebote!E154","v":0},{"$f":"Förderangebote!E155","v":0},{"$f":"Förderangebote!E156","v":0},{"$f":"Förderangebote!D143","v":0},{"$f":"Förderangebote!D144","v":0},{"$f":"Förderangebote!D145","v":0},{"$f":"Förderangebote!D146","v":0},{"$f":"Förderangebote!D147","v":0}]
[null,23,{"$f":"Förderangebote!G158","v":0},null,{"$f":"Förderangebote!E158","v":0},null,{"$f":"Förderangebote!E159","v":0},{"$f":"Förderangebote!E160","v":0},{"$f":"Förderangebote!E161","v":0},{"$f":"Förderangebote!E162","v":0},{"$f":"Förderangebote!D158","v":0},{"$f":"Förderangebote!D159","v":0},{"$f":"Förderangebote!D160","v":0},{"$f":"Förderangebote!D161","v":0},{"$f":"Förderangebote!D162","v":0}]
[null,null,{"$f":"Förderangebote!G160","v":0},null,{"$f":"Förderangebote!E158","v":0},null,{"$f":"Förderangebote!E159","v":0},{"$f":"Förderangebote!E160","v":0},{"$f":"Förderangebote!E161","v":0},{"$f":"Förderangebote!E162","v":0},{"$f":"Förderangebote!D158","v":0},{"$f":"Förderangebote!D159","v":0},{"$f":"Förderangebote!D160","v":0},{"$f":"Förderangebote!D161","v":0},{"$f":"Förderangebote!D162","v":0}]
[null,null,{"$f":"Förderangebote!G162","v":0},null,{"$f":"Förderangebote!E158","v":0},null,{"$f":"Förderangebote!E159","v":0},{"$f":"Förderangebote!E160","v":0},{"$f":"Förderangebote!E161","v":0},{"$f":"Förderangebote!E162","v":0},{"$f":"Förderangebote!D158","v":0},{"$f":"Förderangebote!D159","v":0},{"$f":"Förderangebote!D160","v":0},{"$f":"Förderangebote!D161","v":0},{"$f":"Förderangebote!D162","v":0}]
[null,24,{"$f":"Förderangebote!G164","v":0},null,{"$f":"Förderangebote!E164","v":0},null,{"$f":"Förderangebote!E165","v":0},{"$f":"Förderangebote!E166","v":0},{"$f":"Förderangebote!E167","v":0},{"$f":"Förderangebote!E168","v":0},{"$f":"Förderangebote!D164","v":0},{"$f":"Förderangebote!D165","v":0},{"$f":"Förderangebote!D166","v":0},{"$f":"Förderangebote!D167","v":0},{"$f":"Förderangebote!D168","v":0}]
[null,null,{"$f":"Förderangebote!G166","v":0},null,{"$f":"Förderangebote!E164","v":0},null,{"$f":"Förderangebote!E165","v":0},{"$f":"Förderangebote!E166","v":0},{"$f":"Förderangebote!E167","v":0},{"$f":"Förderangebote!E168","v":0},{"$f":"Förderangebote!D164","v":0},{"$f":"Förderangebote!D165","v":0},{"$f":"Förderangebote!D166","v":0},{"$f":"Förderangebote!D167","v":0},{"$f":"Förderangebote!D168","v":0}]
[null,null,{"$f":"Förderangebote!G168","v":0},null,{"$f":"Förderangebote!E164","v":0},null,{"$f":"Förderangebote!E165","v":0},{"$f":"Förderangebote!E166","v":0},{"$f":"Förderangebote!E167","v":0},{"$f":"Förderangebote!E168","v":0},{"$f":"Förderangebote!D164","v":0},{"$f":"Förderangebote!D165","v":0},{"$f":"Förderangebote!D166","v":0},{"$f":"Förderangebote!D167","v":0},{"$f":"Förderangebote!D168","v":0}]
[null,25,{"$f":"Förderangebote!G173","v":0},null,{"$f":"Förderangebote!E173","v":0},null,{"$f":"Förderangebote!E174","v":0},{"$f":"Förderangebote!E175","v":0},{"$f":"Förderangebote!E176","v":0},{"$f":"Förderangebote!E177","v":0},{"$f":"Förderangebote!D173","v":0},{"$f":"Förderangebote!D174","v":0},{"$f":"Förderangebote!D175","v":0},{"$f":"Förderangebote!D176","v":0},{"$f":"Förderangebote!D177","v":0}]
[null,null,{"$f":"Förderangebote!G175","v":0},null,{"$f":"Förderangebote!E173","v":0},null,{"$f":"Förderangebote!E174","v":0},{"$f":"Förderangebote!E175","v":0},{"$f":"Förderangebote!E176","v":0},{"$f":"Förderangebote!E177","v":0},{"$f":"Förderangebote!D173","v":0},{"$f":"Förderangebote!D174","v":0},{"$f":"Förderangebote!D175","v":0},{"$f":"Förderangebote!D176","v":0},{"$f":"Förderangebote!D177","v":0}]
[null,null,{"$f":"Förderangebote!G177","v":0},null,{"$f":"Förderangebote!E173","v":0},null,{"$f":"Förderangebote!E174","v":0},{"$f":"Förderangebote!E175","v":0},{"$f":"Förderangebote!E176","v":0},{"$f":"Förderangebote!E177","v":0},{"$f":"Förderangebote!D173","v":0},{"$f":"Förderangebote!D174","v":0},{"$f":"Förderangebote!D175","v":0},{"$f":"Förderangebote!D176","v":0},{"$f":"Förderangebote!D177","v":0}]
[null,26,{"$f":"Förderangebote!G179","v":0},null,{"$f":"Förderangebote!E179","v":0},null,{"$f":"Förderangebote!E180","v":0},{"$f":"Förderangebote!E181","v":0},{"$f":"Förderangebote!E182","v":0},{"$f":"Förderangebote!E183","v":0},{"$f":"Förderangebote!D179","v":0},{"$f":"Förderangebote!D180","v":0},{"$f":"Förderangebote!D181","v":0},{"$f":"Förderangebote!D182","v":0},{"$f":"Förderangebote!D183","v":0}]
[null,null,{"$f":"Förderangebote!G181","v":0},null,{"$f":"Förderangebote!E179","v":0},null,{"$f":"Förderangebote!E180","v":0},{"$f":"Förderangebote!E181","v":0},{"$f":"Förderangebote!E182","v":0},{"$f":"Förderangebote!E183","v":0},{"$f":"Förderangebote!D179","v":0},{"$f":"Förderangebote!D180","v":0},{"$f":"Förderangebote!D181","v":0},{"$f":"Förderangebote!D182","v":0},{"$f":"Förderangebote!D183","v":0}]
[null,null,{"$f":"Förderangebote!G183","v":0},null,{"$f":"Förderangebote!E179","v":0},null,{"$f":"Förderangebote!E180","v":0},{"$f":"Förderangebote!E181","v":0},{"$f":"Förderangebote!E182","v":0},{"$f":"Förderangebote!E183","v":0},{"$f":"Förderangebote!D179","v":0},{"$f":"Förderangebote!D180","v":0},{"$f":"Förderangebote!D181","v":0},{"$f":"Förderangebote!D182","v":0},{"$f":"Förderangebote!D183","v":0}]
[null,27,{"$f":"Förderangebote!G185","v":0},null,{"$f":"Förderangebote!E185","v":0},null,{"$f":"Förderangebote!E186","v":0},{"$f":"Förderangebote!E187","v":0},{"$f":"Förderangebote!E188","v":0},{"$f":"Förderangebote!E189","v":0},{"$f":"Förderangebote!D185","v":0},{"$f":"Förderangebote!D186","v":0},{"$f":"Förderangebote!D187","v":0},{"$f":"Förderangebote!D188","v":0},{"$f":"Förderangebote!D189","v":0}]
[null,null,{"$f":"Förderangebote!G187","v":0},null,{"$f":"Förderangebote!E185","v":0},null,{"$f":"Förderangebote!E186","v":0},{"$f":"Förderangebote!E187","v":0},{"$f":"Förderangebote!E188","v":0},{"$f":"Förderangebote!E189","v":0},{"$f":"Förderangebote!D185","v":0},{"$f":"Förderangebote!D186","v":0},{"$f":"Förderangebote!D187","v":0},{"$f":"Förderangebote!D188","v":0},{"$f":"Förderangebote!D189","v":0}]
[null,null,{"$f":"Förderangebote!G189","v":0},null,{"$f":"Förderangebote!E185","v":0},null,{"$f":"Förderangebote!E186","v":0},{"$f":"Förderangebote!E187","v":0},{"$f":"Förderangebote!E188","v":0},{"$f":"Förderangebote!E189","v":0},{"$f":"Förderangebote!D185","v":0},{"$f":"Förderangebote!D186","v":0},{"$f":"Förderangebote!D187","v":0},{"$f":"Förderangebote!D188","v":0},{"$f":"Förderangebote!D189","v":0}]
[null,28,{"$f":"Förderangebote!G194","v":0},null,{"$f":"Förderangebote!E194","v":0},null,{"$f":"Förderangebote!E195","v":0},{"$f":"Förderangebote!E196","v":0},{"$f":"Förderangebote!E197","v":0},{"$f":"Förderangebote!E198","v":0},{"$f":"Förderangebote!D194","v":0},{"$f":"Förderangebote!D195","v":0},{"$f":"Förderangebote!D196","v":0},{"$f":"Förderangebote!D197","v":0},{"$f":"Förderangebote!D198","v":0}]
[null,null,{"$f":"Förderangebote!G196","v":0},null,{"$f":"Förderangebote!E194","v":0},null,{"$f":"Förderangebote!E195","v":0},{"$f":"Förderangebote!E196","v":0},{"$f":"Förderangebote!E197","v":0},{"$f":"Förderangebote!E198","v":0},{"$f":"Förderangebote!D194","v":0},{"$f":"Förderangebote!D195","v":0},{"$f":"Förderangebote!D196","v":0},{"$f":"Förderangebote!D197","v":0},{"$f":"Förderangebote!D198","v":0}]
[null,null,{"$f":"Förderangebote!G198","v":0},null,{"$f":"Förderangebote!E194","v":0},null,{"$f":"Förderangebote!E195","v":0},{"$f":"Förderangebote!E196","v":0},{"$f":"Förderangebote!E197","v":0},{"$f":"Förderangebote!E198","v":0},{"$f":"Förderangebote!D194","v":0},{"$f":"Förderangebote!D195","v":0},{"$f":"Förderangebote!D196","v":0},{"$f":"Förderangebote!D197","v":0},{"$f":"Förderangebote!D198","v":0}]
[null,29,{"$f":"Förderangebote!G200","v":0},null,{"$f":"Förderangebote!E200","v":0},null,{"$f":"Förderangebote!E201","v":0},{"$f":"Förderangebote!E202","v":0},{"$f":"Förderangebote!E203","v":0},{"$f":"Förderangebote!E204","v":0},{"$f":"Förderangebote!D200","v":0},{"$f":"Förderangebote!D201","v":0},{"$f":"Förderangebote!D202","v":0},{"$f":"Förderangebote!D203","v":0},{"$f":"Förderangebote!D204","v":0}]
[null,null,{"$f":"Förderangebote!G202","v":0},null,{"$f":"Förderangebote!E200","v":0},null,{"$f":"Förderangebote!E201","v":0},{"$f":"Förderangebote!E202","v":0},{"$f":"Förderangebote!E203","v":0},{"$f":"Förderangebote!E204","v":0},{"$f":"Förderangebote!D200","v":0},{"$f":"Förderangebote!D201","v":0},{"$f":"Förderangebote!D202","v":0},{"$f":"Förderangebote!D203","v":0},{"$f":"Förderangebote!D204","v":0}]
[null,null,{"$f":"Förderangebote!G204","v":0},null,{"$f":"Förderangebote!E200","v":0},null,{"$f":"Förderangebote!E201","v":0},{"$f":"Förderangebote!E202","v":0},{"$f":"Förderangebote!E203","v":0},{"$f":"Förderangebote!E204","v":0},{"$f":"Förderangebote!D200","v":0},{"$f":"Förderangebote!D201","v":0},{"$f":"Förderangebote!D202","v":0},{"$f":"Förderangebote!D203","v":0},{"$f":"Förderangebote!D204","v":0}]
[null,30,{"$f":"Förderangebote!G206","v":0},null,{"$f":"Förderangebote!E206","v":0},null,{"$f":"Förderangebote!E207","v":0},{"$f":"Förderangebote!E208","v":0},{"$f":"Förderangebote!E209","v":0},{"$f":"Förderangebote!E210","v":0},{"$f":"Förderangebote!D206","v":0},{"$f":"Förderangebote!D207","v":0},{"$f":"Förderangebote!D208","v":0},{"$f":"Förderangebote!D209","v":0},{"$f":"Förderangebote!D210","v":0}]
[null,null,{"$f":"Förderangebote!G208","v":0},null,{"$f":"Förderangebote!E206","v":0},null,{"$f":"Förderangebote!E207","v":0},{"$f":"Förderangebote!E208","v":0},{"$f":"Förderangebote!E209","v":0},{"$f":"Förderangebote!E210","v":0},{"$f":"Förderangebote!D206","v":0},{"$f":"Förderangebote!D207","v":0},{"$f":"Förderangebote!D208","v":0},{"$f":"Förderangebote!D209","v":0},{"$f":"Förderangebote!D210","v":0}]
[null,null,{"$f":"Förderangebote!G210","v":0},null,{"$f":"Förderangebote!E206","v":0},null,{"$f":"Förderangebote!E207","v":0},{"$f":"Förderangebote!E208","v":0},{"$f":"Förderangebote!E209","v":0},{"$f":"Förderangebote!E210","v":0},{"$f":"Förderangebote!D206","v":0},{"$f":"Förderangebote!D207","v":0},{"$f":"Förderangebote!D208","v":0},{"$f":"Förderangebote!D209","v":0},{"$f":"Förderangebote!D210","v":0}]
[]
["Spalte E","Kind 1","Kind 2 ","Kind 3 ","Kind 4",null,"Kind 5","Kind 6","Kind 7","Kind 8","Kind 9","Kind 10"]
["Emotionen& soziale Beziehungen",{"$f":"COUNTIFS(E37:E126,\"Kind 1\",C37:C126,\"Emotionen & soziale Beziehungen\")","v":0},{"$f":"COUNTIFS(E37:E126,\"Kind 2\",C37:C126,\"Emotionen & soziale Beziehungen\")","v":0},{"$f":"COUNTIFS(E37:E126,\"Kind 3\",C37:C126,\"Emotionen & soziale Beziehungen\")","v":0},{"$f":"COUNTIFS(E37:E126,\"Kind 4\",C37:C126,\"Emotionen & soziale Beziehungen\")","v":0},null,{"$f":"COUNTIFS(E37:E126,\"Kind 5\",C37:C126,\"Emotionen & soziale Beziehungen\")","v":0},{"$f":"COUNTIFS(E37:E126,\"Kind 6\",C37:C126,\"Emotionen & soziale Beziehungen\")","v":0},{"$f":"COUNTIFS(E37:E126,\"Kind 7\",C37:C126,\"Emotionen & soziale Beziehungen\")","v":0},{"$f":"COUNTIFS(E37:E126,\"Kind 8\",C37:C126,\"Emotionen & soziale Beziehungen\")","v":0},{"$f":"COUNTIFS(E37:E126,\"Kind 9\",C37:C126,\"Emotionen & soziale Beziehungen\")","v":0},{"$f":"COUNTIFS(E37:E126,\"Kind 10\",C37:C126,\"Emotionen & soziale Beziehungen\")","v":0}]
["Ethik & Gesellschaft",{"$f":"COUNTIFS(E37:E126,\"Kind 1\",C37:C126,\"Ethik & Gesellschaft\")","v":0},{"$f":"COUNTIFS(E37:E126,\"Kind 2\",C37:C126,\"Ethik & Gesellschaft\")","v":0},{"$f":"COUNTIFS(E37:E126,\"Kind 3\",C37:C126,\"Ethik & Gesellschaft\")","v":0},{"$f":"COUNTIFS(E37:E126,\"Kind 4\",C37:C126,\"Ethik & Gesellschaft\")","v":0},null,{"$f":"COUNTIFS(E37:E126,\"Kind 5\",C37:C126,\"Ethik & Gesellschaft\")","v":0},{"$f":"COUNTIFS(E37:E126,\"Kind 6\",C37:C126,\"Ethik & Gesellschaft\")","v":0},{"$f":"COUNTIFS(E37:E126,\"Kind 7\",C37:C126,\"Ethik & Gesellschaft\")","v":0},{"$f":"COUNTIFS(E37:E126,\"Kind 8\",C37:C126,\"Ethik & Gesellschaft\")","v":0},{"$f":"COUNTIFS(E37:E126,\"Kind 9\",C37:C126,\"Ethik & Gesellschaft\")","v":0},{"$f":"COUNTIFS(E37:E126,\"Kind 10\",C37:C126,\"Ethik & Gesellschaft\")","v":0}]
["Sprache & Kommunikation",{"$f":"COUNTIFS(E37:E126,\"Kind 1\",C37:C126,\"Sprache & Kommunikation \")","v":0},{"$f":"COUNTIFS(E37:E126,\"Kind 2\",C37:C126,\"Sprache & Kommunikation \")","v":0},{"$f":"COUNTIFS(E37:E126,\"Kind 3\",C37:C126,\"Sprache & Kommunikation \")","v":0},{"$f":"COUNTIFS(E37:E126,\"Kind 4\",C37:C126,\"Sprache & Kommunikation \")","v":0},null,{"$f":"COUNTIFS(E37:E126,\"Kind 5\",C37:C126,\"Sprache & Kommunikation \")","v":0},{"$f":"COUNTIFS(E37:E126,\"Kind 6\",C37:C126,\"Sprache & Kommunikation \")","v":0},{"$f":"COUNTIFS(E37:E126,\"Kind 7\",C37:C126,\"Sprache & Kommunikation \")","v":0},{"$f":"COUNTIFS(E37:E126,\"Kind 8\",C37:C126,\"Sprache & Kommunikation \")","v":0},{"$f":"COUNTIFS(E37:E126,\"Kind 9\",C37:C126,\"Sprache & Kommunikation \")","v":0},{"$f":"COUNTIFS(E37:E126,\"Kind 10\",C37:C126,\"Sprache & Kommunikation \")","v":0}]
["Bewegung  & Gesundheit",{"$f":"COUNTIFS(E37:E126,\"Kind 1\",C37:C126,\"Bewegung & Gesundheit\")","v":0},{"$f":"COUNTIFS(E37:E126,\"Kind 2\",C37:C126,\"Bewegung & Gesundheit\")","v":0},{"$f":"COUNTIFS(E37:E126,\"Kind 3\",C37:C126,\"Bewegung & Gesundheit\")","v":0},{"$f":"COUNTIFS(E37:E126,\"Kind 4\",C37:C126,\"Bewegung & Gesundheit\")","v":0},null,{"$f":"COUNTIFS(E37:E126,\"Kind 5\",C37:C126,\"Bewegung & Gesundheit\")","v":0},{"$f":"COUNTIFS(E37:E126,\"Kind 6\",C37:C126,\"Bewegung & Gesundheit\")","v":0},{"$f":"COUNTIFS(E37:E126,\"Kind 7\",C37:C126,\"Bewegung & Gesundheit\")","v":0},{"$f":"COUNTIFS(E37:E126,\"Kind 8\",C37:C126,\"Bewegung & Gesundheit\")","v":0},{"$f":"COUNTIFS(E37:E126,\"Kind 9\",C37:C126,\"Bewegung & Gesundheit\")","v":0},{"$f":"COUNTIFS(E37:E126,\"Kind 10\",C37:C126,\"Bewegung & Gesundheit\")","v":0}]
["Äthetik & Gestaltung",{"$f":"COUNTIFS(E37:E126,\"Kind 1\",C37:C126,\"Ästhetik & Gestaltung \")","v":0},{"$f":"COUNTIFS(E37:E126,\"Kind 2\",C37:C126,\"Ästhetik & Gestaltung \")","v":0},{"$f":"COUNTIFS(E37:E126,\"Kind 3\",C37:C126,\"Ästhetik & Gestaltung \")","v":0},{"$f":"COUNTIFS(E37:E126,\"Kind 4\",C37:C126,\"Ästhetik & Gestaltung \")","v":0},null,{"$f":"COUNTIFS(E37:E126,\"Kind 5\",C37:C126,\"Ästhetik & Gestaltung \")","v":0},{"$f":"COUNTIFS(E37:E126,\"Kind 6\",C37:C126,\"Ästhetik & Gestaltung \")","v":0},{"$f":"COUNTIFS(E37:E126,\"Kind 7\",C37:C126,\"Ästhetik & Gestaltung \")","v":0},{"$f":"COUNTIFS(E37:E126,\"Kind 8\",C37:C126,\"Ästhetik & Gestaltung \")","v":0},{"$f":"COUNTIFS(E37:E126,\"Kind 9\",C37:C126,\"Ästhetik & Gestaltung \")","v":0},{"$f":"COUNTIFS(E37:E126,\"Kind 10\",C37:C126,\"Ästhetik & Gestaltung \")","v":0}]
["Natur & Technik",{"$f":"COUNTIFS(E37:E126,\"Kind 1\",C37:C126,\"Natur & Technik\")","v":0},{"$f":"COUNTIFS(E37:E126,\"Kind 2\",C37:C126,\"Natur & Technik\")","v":0},{"$f":"COUNTIFS(E37:E126,\"Kind 3\",C37:C126,\"Natur & Technik\")","v":0},{"$f":"COUNTIFS(E37:E126,\"Kind 4\",C37:C126,\"Natur & Technik\")","v":0},null,{"$f":"COUNTIFS(E37:E126,\"Kind 5\",C37:C126,\"Natur & Technik\")","v":0},{"$f":"COUNTIFS(E37:E126,\"Kind 6\",C37:C126,\"Natur & Technik\")","v":0},{"$f":"COUNTIFS(E37:E126,\"Kind 7\",C37:C126,\"Natur & Technik\")","v":0},{"$f":"COUNTIFS(E37:E126,\"Kind 8\",C37:C126,\"Natur & Technik\")","v":0},{"$f":"COUNTIFS(E37:E126,\"Kind 9\",C37:C126,\"Natur & Technik\")","v":0},{"$f":"COUNTIFS(E37:E126,\"Kind 10\",C37:C126,\"Natur & Technik\")","v":0}]
["Spalte F"]
["Emotionen& soziale Beziehungen",{"$f":"COUNTIFS(G37:G126,\"Kind 1\",C37:C126,\"Emotionen & soziale Beziehungen\")","v":0},{"$f":"COUNTIFS(G37:G126,\"Kind 2\",C37:C126,\"Emotionen & soziale Beziehungen\")","v":0},{"$f":"COUNTIFS(G37:G126,\"Kind 3\",C37:C126,\"Emotionen & soziale Beziehungen\")","v":0},{"$f":"COUNTIFS(G37:G126,\"Kind 4\",C37:C126,\"Emotionen & soziale Beziehungen\")","v":0},null,{"$f":"COUNTIFS($G$37:$G$126,\"Kind 5\",$C$37:$C$126,\"Emotionen & soziale Beziehungen\")","v":0},{"$f":"COUNTIFS($G$37:$G$126,\"Kind 6\",$C$37:$C$126,\"Emotionen & soziale Beziehungen\")","v":0},{"$f":"COUNTIFS($G$37:$G$126,\"Kind 7\",$C$37:$C$126,\"Emotionen & soziale Beziehungen\")","v":0},{"$f":"COUNTIFS($G$37:$G$126,\"Kind 8\",$C$37:$C$126,\"Emotionen & soziale Beziehungen\")","v":0},{"$f":"COUNTIFS($G$37:$G$126,\"Kind 9\",$C$37:$C$126,\"Emotionen & soziale Beziehungen\")","v":0},{"$f":"COUNTIFS($G$37:$G$126,\"Kind 10\",$C$37:$C$126,\"Emotionen & soziale Beziehungen\")","v":0}]
["Ethik & Gesellschaft",{"$f":"COUNTIFS(G37:G126,\"Kind 1\",C37:C126,\"Ethik & Gesellschaft\")","v":0},{"$f":"COUNTIFS(G37:G126,\"Kind 2\",C37:C126,\"Ethik & Gesellschaft\")","v":0},{"$f":"COUNTIFS(G37:G126,\"Kind 3\",C37:C126,\"Ethik & Gesellschaft\")","v":0},{"$f":"COUNTIFS(G37:G126,\"Kind 4\",C37:C126,\"Ethik & Gesellschaft\")","v":0},null,{"$f":"COUNTIFS($G$37:$G$126,\"Kind 5\",$C$37:$C$126,\"Ethik & Gesellschaft\")","v":0},{"$f":"COUNTIFS($G$37:$G$126,\"Kind 6\",$C$37:$C$126,\"Ethik & Gesellschaft\")","v":0},{"$f":"COUNTIFS($G$37:$G$126,\"Kind 7\",$C$37:$C$126,\"Ethik & Gesellschaft\")","v":0},{"$f":"COUNTIFS($G$37:$G$126,\"Kind 8\",$C$37:$C$126,\"Ethik & Gesellschaft\")","v":0},{"$f":"COUNTIFS($G$37:$G$126,\"Kind 9\",$C$37:$C$126,\"Ethik & Gesellschaft\")","v":0},{"$f":"COUNTIFS($G$37:$G$126,\"Kind 10\",$C$37:$C$126,\"Ethik & Gesellschaft\")","v":0}]
["Sprache & Kommunikation",{"$f":"COUNTIFS(G37:G126,\"Kind 1\",C37:C126,\"Sprache & Kommunikation \")","v":0},{"$f":"COUNTIFS(G37:G126,\"Kind 2\",C37:C126,\"Sprache & Kommunikation \")","v":0},{"$f":"COUNTIFS(G37:G126,\"Kind 3\",C37:C126,\"Sprache & Kommunikation \")","v":0},{"$f":"COUNTIFS(G37:G126,\"Kind 4\",C37:C126,\"Sprache & Kommunikation \")","v":0},null,{"$f":"COUNTIFS($G$37:$G$126,\"Kind 5\",$C$37:$C$126,\"Sprache & Kommunikation \")","v":0},{"$f":"COUNTIFS($G$37:$G$126,\"Kind 6\",$C$37:$C$126,\"Sprache & Kommunikation \")","v":0},{"$f":"COUNTIFS($G$37:$G$126,\"Kind 7\",$C$37:$C$126,\"Sprache & Kommunikation \")","v":0},{"$f":"COUNTIFS($G$37:$G$126,\"Kind 8\",$C$37:$C$126,\"Sprache & Kommunikation \")","v":0},{"$f":"COUNTIFS($G$37:$G$126,\"Kind 9\",$C$37:$C$126,\"Sprache & Kommunikation \")","v":0},{"$f":"COUNTIFS($G$37:$G$126,\"Kind 10\",$C$37:$C$126,\"Sprache & Kommunikation \")","v":0}]
["Bewegung  & Gesundheit",{"$f":"COUNTIFS(G37:G126,\"Kind 1\",C37:C126,\"Bewegung & Gesundheit\")","v":0},{"$f":"COUNTIFS(G37:G126,\"Kind 2\",C37:C126,\"Bewegung & Gesundheit\")","v":0},{"$f":"COUNTIFS(G37:G126,\"Kind 3\",C37:C126,\"Bewegung & Gesundheit\")","v":0},{"$f":"COUNTIFS(G37:G126,\"Kind 4\",C37:C126,\"Bewegung & Gesundheit\")","v":0},null,{"$f":"COUNTIFS($G$37:$G$126,\"Kind 5\",$C$37:$C$126,\"Bewegung & Gesundheit\")","v":0},{"$f":"COUNTIFS($G$37:$G$126,\"Kind 6\",$C$37:$C$126,\"Bewegung & Gesundheit\")","v":0},{"$f":"COUNTIFS($G$37:$G$126,\"Kind 7\",$C$37:$C$126,\"Bewegung & Gesundheit\")","v":0},{"$f":"COUNTIFS($G$37:$G$126,\"Kind 8\",$C$37:$C$126,\"Bewegung & Gesundheit\")","v":0},{"$f":"COUNTIFS($G$37:$G$126,\"Kind 9\",$C$37:$C$126,\"Bewegung & Gesundheit\")","v":0},{"$f":"COUNTIFS($G$37:$G$126,\"Kind 10\",$C$37:$C$126,\"Bewegung & Gesundheit\")","v":0}]
["Äthetik & Gestaltung",{"$f":"COUNTIFS(G37:G126,\"Kind 1\",C37:C126,\"Ästhetik & Gestaltung \")","v":0},{"$f":"COUNTIFS(G37:G126,\"Kind 2\",C37:C126,\"Ästhetik & Gestaltung \")","v":0},{"$f":"COUNTIFS(G37:G126,\"Kind 3\",C37:C126,\"Ästhetik & Gestaltung \")","v":0},{"$f":"COUNTIFS(G37:G126,\"Kind 4\",C37:C126,\"Ästhetik & Gestaltung \")","v":0},null,{"$f":"COUNTIFS($G$37:$G$126,\"Kind 5\",$C$37:$C$126,\"Ästhetik & Gestaltung \")","v":0},{"$f":"COUNTIFS($G$37:$G$126,\"Kind 6\",$C$37:$C$126,\"Ästhetik & Gestaltung \")","v":0},{"$f":"COUNTIFS($G$37:$G$126,\"Kind 7\",$C$37:$C$126,\"Ästhetik & Gestaltung \")","v":0},{"$f":"COUNTIFS($G$37:$G$126,\"Kind 8\",$C$37:$C$126,\"Ästhetik & Gestaltung \")","v":0},{"$f":"COUNTIFS($G$37:$G$126,\"Kind 9\",$C$37:$C$126,\"Ästhetik & Gestaltung \")","v":0},{"$f":"COUNTIFS($G$37:$G$126,\"Kind 10\",$C$37:$C$126,\"Ästhetik & Gestaltung \")","v":0}]
["Natur & Technik",{"$f":"COUNTIFS(G37:G126,\"Kind 1\",C37:C126,\"Natur & Technik\")","v":0},{"$f":"COUNTIFS(G37:G126,\"Kind 2\",C37:C126,\"Natur & Technik\")","v":0},{"$f":"COUNTIFS(G37:G126,\"Kind 3\",C37:C126,\"Natur & Technik\")","v":0},{"$f":"COUNTIFS(G37:G126,\"Kind 4\",C37:C126,\"Natur & Technik\")","v":0},null,{"$f":"COUNTIFS($G$37:$G$126,\"Kind 5\",$C$37:$C$126,\"Natur & Technik\")","v":0},{"$f":"COUNTIFS($G$37:$G$126,\"Kind 6\",$C$37:$C$126,\"Natur & Technik\")","v":0},{"$f":"COUNTIFS($G$37:$G$126,\"Kind 7\",$C$37:$C$126,\"Natur & Technik\")","v":0},{"$f":"COUNTIFS($G$37:$G$126,\"Kind 8\",$C$37:$C$126,\"Natur & Technik\")","v":0},{"$f":"COUNTIFS($G$37:$G$126,\"Kind 9\",$C$37:$C$126,\"Natur & Technik\")","v":0},{"$f":"COUNTIFS($G$37:$G$126,\"Kind 10\",$C$37:$C$126,\"Natur & Technik\")","v":0}]
["Spalte G"]
["Emotionen& soziale Beziehungen",{"$f":"COUNTIFS(H37:H126,\"Kind 1\",C37:C126,\"Emotionen & soziale Beziehungen\")","v":0},{"$f":"COUNTIFS(H37:H126,\"Kind 2\",C37:C126,\"Emotionen & soziale Beziehungen\")","v":0},{"$f":"COUNTIFS(H37:H126,\"Kind 3\",C37:C126,\"Emotionen & soziale Beziehungen\")","v":0},{"$f":"COUNTIFS(H37:H126,\"Kind 4\",C37:C126,\"Emotionen & soziale Beziehungen\")","v":0},null,{"$f":"COUNTIFS($H$37:$H$126,\"Kind 5\",$C$37:$C$126,\"Emotionen & soziale Beziehungen\")","v":0},{"$f":"COUNTIFS($H$37:$H$126,\"Kind 6\",$C$37:$C$126,\"Emotionen & soziale Beziehungen\")","v":0},{"$f":"COUNTIFS($H$37:$H$126,\"Kind 7\",$C$37:$C$126,\"Emotionen & soziale Beziehungen\")","v":0},{"$f":"COUNTIFS($H$37:$H$126,\"Kind 8\",$C$37:$C$126,\"Emotionen & soziale Beziehungen\")","v":0},{"$f":"COUNTIFS($H$37:$H$126,\"Kind 9\",$C$37:$C$126,\"Emotionen & soziale Beziehungen\")","v":0},{"$f":"COUNTIFS($H$37:$H$126,\"Kind 10\",$C$37:$C$126,\"Emotionen & soziale Beziehungen\")","v":0}]
["Ethik & Gesellschaft",{"$f":"COUNTIFS(H37:H126,\"Kind 1\",C37:C126,\"Ethik & Gesellschaft\")","v":0},{"$f":"COUNTIFS(H37:H126,\"Kind 2\",C37:C126,\"Ethik & Gesellschaft\")","v":0},{"$f":"COUNTIFS(H37:H126,\"Kind 3\",C37:C126,\"Ethik & Gesellschaft\")","v":0},{"$f":"COUNTIFS(H37:H126,\"Kind 4\",C37:C126,\"Ethik & Gesellschaft\")","v":0},null,{"$f":"COUNTIFS($H$37:$H$126,\"Kind 5\",$C$37:$C$126,\"Ethik & Gesellschaft\")","v":0},{"$f":"COUNTIFS($H$37:$H$126,\"Kind 6\",$C$37:$C$126,\"Ethik & Gesellschaft\")","v":0},{"$f":"COUNTIFS($H$37:$H$126,\"Kind 7\",$C$37:$C$126,\"Ethik & Gesellschaft\")","v":0},{"$f":"COUNTIFS($H$37:$H$126,\"Kind 8\",$C$37:$C$126,\"Ethik & Gesellschaft\")","v":0},{"$f":"COUNTIFS($H$37:$H$126,\"Kind 9\",$C$37:$C$126,\"Ethik & Gesellschaft\")","v":0},{"$f":"COUNTIFS($H$37:$H$126,\"Kind 10\",$C$37:$C$126,\"Ethik & Gesellschaft\")","v":0}]
["Sprache & Kommunikation",{"$f":"COUNTIFS(H37:H126,\"Kind 1\",C37:C126,\"Sprache & Kommunikation \")","v":0},{"$f":"COUNTIFS(H37:H126,\"Kind 2\",C37:C126,\"Sprache & Kommunikation \")","v":0},{"$f":"COUNTIFS(H37:H126,\"Kind 3\",C37:C126,\"Sprache & Kommunikation \")","v":0},{"$f":"COUNTIFS(H37:H126,\"Kind 4\",C37:C126,\"Sprache & Kommunikation \")","v":0},null,{"$f":"COUNTIFS($H$37:$H$126,\"Kind 5\",$C$37:$C$126,\"Sprache & Kommunikation \")","v":0},{"$f":"COUNTIFS($H$37:$H$126,\"Kind 6\",$C$37:$C$126,\"Sprache & Kommunikation \")","v":0},{"$f":"COUNTIFS($H$37:$H$126,\"Kind 7\",$C$37:$C$126,\"Sprache & Kommunikation \")","v":0},{"$f":"COUNTIFS($H$37:$H$126,\"Kind 8\",$C$37:$C$126,\"Sprache & Kommunikation \")","v":0},{"$f":"COUNTIFS($H$37:$H$126,\"Kind 9\",$C$37:$C$126,\"Sprache & Kommunikation \")","v":0},{"$f":"COUNTIFS($H$37:$H$126,\"Kind 10\",$C$37:$C$126,\"Sprache & Kommunikation \")","v":0}]
["Bewegung  & Gesundheit",{"$f":"COUNTIFS(H37:H126,\"Kind 1\",C37:C126,\"Bewegung & Gesundheit\")","v":0},{"$f":"COUNTIFS(H37:H126,\"Kind 2\",C37:C126,\"Bewegung & Gesundheit\")","v":0},{"$f":"COUNTIFS(H37:H126,\"Kind 3\",C37:C126,\"Bewegung & Gesundheit\")","v":0},{"$f":"COUNTIFS(H37:H126,\"Kind 4\",C37:C126,\"Bewegung & Gesundheit\")","v":0},null,{"$f":"COUNTIFS($H$37:$H$126,\"Kind 5\",$C$37:$C$126,\"Bewegung & Gesundheit\")","v":0},{"$f":"COUNTIFS($H$37:$H$126,\"Kind 6\",$C$37:$C$126,\"Bewegung & Gesundheit\")","v":0},{"$f":"COUNTIFS($H$37:$H$126,\"Kind 7\",$C$37:$C$126,\"Bewegung & Gesundheit\")","v":0},{"$f":"COUNTIFS($H$37:$H$126,\"Kind 8\",$C$37:$C$126,\"Bewegung & Gesundheit\")","v":0},{"$f":"COUNTIFS($H$37:$H$126,\"Kind 9\",$C$37:$C$126,\"Bewegung & Gesundheit\")","v":0},{"$f":"COUNTIFS($H$37:$H$126,\"Kind 10\",$C$37:$C$126,\"Bewegung & Gesundheit\")","v":0}]
["Äthetik & Gestaltung",{"$f":"COUNTIFS(H37:H126,\"Kind 1\",C37:C126,\"Ästhetik & Gestaltung \")","v":0},{"$f":"COUNTIFS(H37:H126,\"Kind 2\",C37:C126,\"Ästhetik & Gestaltung \")","v":0},{"$f":"COUNTIFS(H37:H126,\"Kind 3\",C37:C126,\"Ästhetik & Gestaltung \")","v":0},{"$f":"COUNTIFS(H37:H126,\"Kind 4\",C37:C126,\"Ästhetik & Gestaltung \")","v":0},null,{"$f":"COUNTIFS($H$37:$H$126,\"Kind 5\",$C$37:$C$126,\"Ästhetik & Gestaltung \")","v":0},{"$f":"COUNTIFS($H$37:$H$126,\"Kind 6\",$C$37:$C$126,\"Ästhetik & Gestaltung \")","v":0},{"$f":"COUNTIFS($H$37:$H$126,\"Kind 7\",$C$37:$C$126,\"Ästhetik & Gestaltung \")","v":0},{"$f":"COUNTIFS($H$37:$H$126,\"Kind 8\",$C$37:$C$126,\"Ästhetik & Gestaltung \")","v":0},{"$f":"COUNTIFS($H$37:$H$126,\"Kind 9\",$C$37:$C$126,\"Ästhetik & Gestaltung \")","v":0},{"$f":"COUNTIFS($H$37:$H$126,\"Kind 10\",$C$37:$C$126,\"Ästhetik & Gestaltung \")","v":0}]
["Natur & Technik",{"$f":"COUNTIFS(H37:H126,\"Kind 1\",C37:C126,\"Natur & Technik\")","v":0},{"$f":"COUNTIFS(H37:H126,\"Kind 2\",C37:C126,\"Natur & Technik\")","v":0},{"$f":"COUNTIFS(H37:H126,\"Kind 3\",C37:C126,\"Natur & Technik\")","v":0},{"$f":"COUNTIFS(H37:H126,\"Kind 4\",C37:C126,\"Natur & Technik\")","v":0},null,{"$f":"COUNTIFS($H$37:$H$126,\"Kind 5\",$C$37:$C$126,\"Natur & Technik\")","v":0},{"$f":"COUNTIFS($H$37:$H$126,\"Kind 6\",$C$37:$C$126,\"Natur & Technik\")","v":0},{"$f":"COUNTIFS($H$37:$H$126,\"Kind 7\",$C$37:$C$126,\"Natur & Technik\")","v":0},{"$f":"COUNTIFS($H$37:$H$126,\"Kind 8\",$C$37:$C$126,\"Natur & Technik\")","v":0},{"$f":"COUNTIFS($H$37:$H$126,\"Kind 9\",$C$37:$C$126,\"Natur & Technik\")","v":0},{"$f":"COUNTIFS($H$37:$H$126,\"Kind 10\",$C$37:$C$126,\"Natur & Technik\")","v":0}]
["Spalte H"]
["Emotionen& soziale Beziehungen",{"$f":"COUNTIFS(I37:I126,\"Kind 1\",C37:C126,\"Emotionen & soziale Beziehungen\")","v":0},{"$f":"COUNTIFS(I37:I126,\"Kind 2\",C37:C126,\"Emotionen & soziale Beziehungen\")","v":0},{"$f":"COUNTIFS(I37:I126,\"Kind 3\",C37:C126,\"Emotionen & soziale Beziehungen\")","v":0},{"$f":"COUNTIFS(I37:I126,\"Kind 4\",C37:C126,\"Emotionen & soziale Beziehungen\")","v":0},null,{"$f":"COUNTIFS($I$37:$I$126,\"Kind 5\",$C$37:$C$126,\"Emotionen & soziale Beziehungen\")","v":0},{"$f":"COUNTIFS($I$37:$I$126,\"Kind 6\",$C$37:$C$126,\"Emotionen & soziale Beziehungen\")","v":0},{"$f":"COUNTIFS($I$37:$I$126,\"Kind 7\",$C$37:$C$126,\"Emotionen & soziale Beziehungen\")","v":0},{"$f":"COUNTIFS($I$37:$I$126,\"Kind 8\",$C$37:$C$126,\"Emotionen & soziale Beziehungen\")","v":0},{"$f":"COUNTIFS($I$37:$I$126,\"Kind 9\",$C$37:$C$126,\"Emotionen & soziale Beziehungen\")","v":0},{"$f":"COUNTIFS($I$37:$I$126,\"Kind 10\",$C$37:$C$126,\"Emotionen & soziale Beziehungen\")","v":0}]
["Ethik & Gesellschaft",{"$f":"COUNTIFS(I37:I126,\"Kind 1\",C37:C126,\"Ethik & Gesellschaft\")","v":0},{"$f":"COUNTIFS(I37:I126,\"Kind 2\",C37:C126,\"Ethik & Gesellschaft\")","v":0},{"$f":"COUNTIFS(I37:I126,\"Kind 3\",C37:C126,\"Ethik & Gesellschaft\")","v":0},{"$f":"COUNTIFS(I37:I126,\"Kind 4\",C37:C126,\"Ethik & Gesellschaft\")","v":0},null,{"$f":"COUNTIFS($I$37:$I$126,\"Kind 5\",$C$37:$C$126,\"Ethik & Gesellschaft\")","v":0},{"$f":"COUNTIFS($I$37:$I$126,\"Kind 6\",$C$37:$C$126,\"Ethik & Gesellschaft\")","v":0},{"$f":"COUNTIFS($I$37:$I$126,\"Kind 7\",$C$37:$C$126,\"Ethik & Gesellschaft\")","v":0},{"$f":"COUNTIFS($I$37:$I$126,\"Kind 8\",$C$37:$C$126,\"Ethik & Gesellschaft\")","v":0},{"$f":"COUNTIFS($I$37:$I$126,\"Kind 9\",$C$37:$C$126,\"Ethik & Gesellschaft\")","v":0},{"$f":"COUNTIFS($I$37:$I$126,\"Kind 10\",$C$37:$C$126,\"Ethik & Gesellschaft\")","v":0}]
["Sprache & Kommunikation",{"$f":"COUNTIFS(I37:I126,\"Kind 1\",C37:C126,\"Sprache & Kommunikation \")","v":0},{"$f":"COUNTIFS(I37:I126,\"Kind 2\",C37:C126,\"Sprache & Kommunikation \")","v":0},{"$f":"COUNTIFS(I37:I126,\"Kind 3\",C37:C126,\"Sprache & Kommunikation \")","v":0},{"$f":"COUNTIFS(I37:I126,\"Kind 4\",C37:C126,\"Sprache & Kommunikation \")","v":0},null,{"$f":"COUNTIFS($I$37:$I$126,\"Kind 5\",$C$37:$C$126,\"Sprache & Kommunikation \")","v":0},{"$f":"COUNTIFS($I$37:$I$126,\"Kind 6\",$C$37:$C$126,\"Sprache & Kommunikation \")","v":0},{"$f":"COUNTIFS($I$37:$I$126,\"Kind 7\",$C$37:$C$126,\"Sprache & Kommunikation \")","v":0},{"$f":"COUNTIFS($I$37:$I$126,\"Kind 8\",$C$37:$C$126,\"Sprache & Kommunikation \")","v":0},{"$f":"COUNTIFS($I$37:$I$126,\"Kind 9\",$C$37:$C$126,\"Sprache & Kommunikation \")","v":0},{"$f":"COUNTIFS($I$37:$I$126,\"Kind 10\",$C$37:$C$126,\"Sprache & Kommunikation \")","v":0}]
["Bewegung  & Gesundheit",{"$f":"COUNTIFS(I37:I126,\"Kind 1\",C37:C126,\"Bewegung & Gesundheit\")","v":0},{"$f":"COUNTIFS(I37:I126,\"Kind 2\",C37:C126,\"Bewegung & Gesundheit\")","v":0},{"$f":"COUNTIFS(I37:I126,\"Kind 3\",C37:C126,\"Bewegung & Gesundheit\")","v":0},{"$f":"COUNTIFS(I37:I126,\"Kind 4\",C37:C126,\"Bewegung & Gesundheit\")","v":0},null,{"$f":"COUNTIFS($I$37:$I$126,\"Kind 5\",$C$37:$C$126,\"Bewegung & Gesundheit\")","v":0},{"$f":"COUNTIFS($I$37:$I$126,\"Kind 6\",$C$37:$C$126,\"Bewegung & Gesundheit\")","v":0},{"$f":"COUNTIFS($I$37:$I$126,\"Kind 7\",$C$37:$C$126,\"Bewegung & Gesundheit\")","v":0},{"$f":"COUNTIFS($I$37:$I$126,\"Kind 8\",$C$37:$C$126,\"Bewegung & Gesundheit\")","v":0},{"$f":"COUNTIFS($I$37:$I$126,\"Kind 9\",$C$37:$C$126,\"Bewegung & Gesundheit\")","v":0},{"$f":"COUNTIFS($I$37:$I$126,\"Kind 10\",$C$37:$C$126,\"Bewegung & Gesundheit\")","v":0}]
["Äthetik & Gestaltung",{"$f":"COUNTIFS(I37:I126,\"Kind 1\",C37:C126,\"Ästhetik & Gestaltung \")","v":0},{"$f":"COUNTIFS(I37:I126,\"Kind 2\",C37:C126,\"Ästhetik & Gestaltung \")","v":0},{"$f":"COUNTIFS(I37:I126,\"Kind 3\",C37:C126,\"Ästhetik & Gestaltung \")","v":0},{"$f":"COUNTIFS(I37:I126,\"Kind 4\",C37:C126,\"Ästhetik & Gestaltung \")","v":0},null,{"$f":"COUNTIFS($I$37:$I$126,\"Kind 5\",$C$37:$C$126,\"Ästhetik & Gestaltung \")","v":0},{"$f":"COUNTIFS($I$37:$I$126,\"Kind 6\",$C$37:$C$126,\"Ästhetik & Gestaltung \")","v":0},{"$f":"COUNTIFS($I$37:$I$126,\"Kind 7\",$C$37:$C$126,\"Ästhetik & Gestaltung \")","v":0},{"$f":"COUNTIFS($I$37:$I$126,\"Kind 8\",$C$37:$C$126,\"Ästhetik & Gestaltung \")","v":0},{"$f":"COUNTIFS($I$37:$I$126,\"Kind 9\",$C$37:$C$126,\"Ästhetik & Gestaltung \")","v":0},{"$f":"COUNTIFS($I$37:$I$126,\"Kind 10\",$C$37:$C$126,\"Ästhetik & Gestaltung \")","v":0}]
["Natur & Technik",{"$f":"COUNTIFS(I37:I126,\"Kind 1\",C37:C126,\"Natur & Technik\")","v":0},{"$f":"COUNTIFS(I37:I126,\"Kind 2\",C37:C126,\"Natur & Technik\")","v":0},{"$f":"COUNTIFS(I37:I126,\"Kind 3\",C37:C126,\"Natur & Technik\")","v":0},{"$f":"COUNTIFS(I37:I126,\"Kind 4\",C37:C126,\"Natur & Technik\")","v":0},null,{"$f":"COUNTIFS($I$37:$I$126,\"Kind 5\",$C$37:$C$126,\"Natur & Technik\")","v":0},{"$f":"COUNTIFS($I$37:$I$126,\"Kind 6\",$C$37:$C$126,\"Natur & Technik\")","v":0},{"$f":"COUNTIFS($I$37:$I$126,\"Kind 7\",$C$37:$C$126,\"Natur & Technik\")","v":0},{"$f":"COUNTIFS($I$37:$I$126,\"Kind 8\",$C$37:$C$126,\"Natur & Technik\")","v":0},{"$f":"COUNTIFS($I$37:$I$126,\"Kind 9\",$C$37:$C$126,\"Natur & Technik\")","v":0},{"$f":"COUNTIFS($I$37:$I$126,\"Kind 10\",$C$37:$C$126,\"Natur & Technik\")","v":0}]
["Spalte I"]
["Emotionen& soziale Beziehungen",{"$f":"COUNTIFS(J37:J126,\"Kind 1\",C37:C126,\"Emotionen & soziale Beziehungen\")","v":0},{"$f":"COUNTIFS(J37:J126,\"Kind 2\",C37:C126,\"Emotionen & soziale Beziehungen\")","v":0},{"$f":"COUNTIFS(J37:J126,\"Kind 3\",C37:C126,\"Emotionen & soziale Beziehungen\")","v":0},{"$f":"COUNTIFS(J37:J126,\"Kind 4\",C37:C126,\"Emotionen & soziale Beziehungen\")","v":0},null,{"$f":"COUNTIFS($J$37:$J$126,\"Kind 5\",$C$37:$C$126,\"Emotionen & soziale Beziehungen\")","v":0},{"$f":"COUNTIFS($J$37:$J$126,\"Kind 6\",$C$37:$C$126,\"Emotionen & soziale Beziehungen\")","v":0},{"$f":"COUNTIFS($J$37:$J$126,\"Kind 7\",$C$37:$C$126,\"Emotionen & soziale Beziehungen\")","v":0},{"$f":"COUNTIFS($J$37:$J$126,\"Kind 8\",$C$37:$C$126,\"Emotionen & soziale Beziehungen\")","v":0},{"$f":"COUNTIFS($J$37:$J$126,\"Kind 9\",$C$37:$C$126,\"Emotionen & soziale Beziehungen\")","v":0},{"$f":"COUNTIFS($J$37:$J$126,\"Kind 10\",$C$37:$C$126,\"Emotionen & soziale Beziehungen\")","v":0}]
["Ethik & Gesellschaft",{"$f":"COUNTIFS(J37:J126,\"Kind 1\",C37:C126,\"Ethik & Gesellschaft\")","v":0},{"$f":"COUNTIFS(J37:J126,\"Kind 2\",C37:C126,\"Ethik & Gesellschaft\")","v":0},{"$f":"COUNTIFS(J37:J126,\"Kind 3\",C37:C126,\"Ethik & Gesellschaft\")","v":0},{"$f":"COUNTIFS(J37:J126,\"Kind 4\",C37:C126,\"Ethik & Gesellschaft\")","v":0},null,{"$f":"COUNTIFS($J$37:$J$126,\"Kind 5\",$C$37:$C$126,\"Ethik & Gesellschaft\")","v":0},{"$f":"COUNTIFS($J$37:$J$126,\"Kind 6\",$C$37:$C$126,\"Ethik & Gesellschaft\")","v":0},{"$f":"COUNTIFS($J$37:$J$126,\"Kind 7\",$C$37:$C$126,\"Ethik & Gesellschaft\")","v":0},{"$f":"COUNTIFS($J$37:$J$126,\"Kind 8\",$C$37:$C$126,\"Ethik & Gesellschaft\")","v":0},{"$f":"COUNTIFS($J$37:$J$126,\"Kind 9\",$C$37:$C$126,\"Ethik & Gesellschaft\")","v":0},{"$f":"COUNTIFS($J$37:$J$126,\"Kind 10\",$C$37:$C$126,\"Ethik & Gesellschaft\")","v":0}]
["Sprache & Kommunikation",{"$f":"COUNTIFS(J37:J126,\"Kind 1\",C37:C126,\"Sprache & Kommunikation \")","v":0},{"$f":"COUNTIFS(J37:J126,\"Kind 2\",C37:C126,\"Sprache & Kommunikation \")","v":0},{"$f":"COUNTIFS(J37:J126,\"Kind 3\",C37:C126,\"Sprache & Kommunikation \")","v":0},{"$f":"COUNTIFS(J37:J126,\"Kind 4\",C37:C126,\"Sprache & Kommunikation \")","v":0},null,{"$f":"COUNTIFS($J$37:$J$126,\"Kind 5\",$C$37:$C$126,\"Sprache & Kommunikation \")","v":0},{"$f":"COUNTIFS($J$37:$J$126,\"Kind 6\",$C$37:$C$126,\"Sprache & Kommunikation \")","v":0},{"$f":"COUNTIFS($J$37:$J$126,\"Kind 7\",$C$37:$C$126,\"Sprache & Kommunikation \")","v":0},{"$f":"COUNTIFS($J$37:$J$126,\"Kind 8\",$C$37:$C$126,\"Sprache & Kommunikation \")","v":0},{"$f":"COUNTIFS($J$37:$J$126,\"Kind 9\",$C$37:$C$126,\"Sprache & Kommunikation \")","v":0},{"$f":"COUNTIFS($J$37:$J$126,\"Kind 10\",$C$37:$C$126,\"Sprache & Kommunikation \")","v":0}]
["Bewegung  & Gesundheit",{"$f":"COUNTIFS(J37:J126,\"Kind 1\",C37:C126,\"Bewegung & Gesundheit\")","v":0},{"$f":"COUNTIFS(J37:J126,\"Kind 2\",C37:C126,\"Bewegung & Gesundheit\")","v":0},{"$f":"COUNTIFS(J37:J126,\"Kind 3\",C37:C126,\"Bewegung & Gesundheit\")","v":0},{"$f":"COUNTIFS(J37:J126,\"Kind 4\",C37:C126,\"Bewegung & Gesundheit\")","v":0},null,{"$f":"COUNTIFS($J$37:$J$126,\"Kind 5\",$C$37:$C$126,\"Bewegung & Gesundheit\")","v":0},{"$f":"COUNTIFS($J$37:$J$126,\"Kind 6\",$C$37:$C$126,\"Bewegung & Gesundheit\")","v":0},{"$f":"COUNTIFS($J$37:$J$126,\"Kind 7\",$C$37:$C$126,\"Bewegung & Gesundheit\")","v":0},{"$f":"COUNTIFS($J$37:$J$126,\"Kind 8\",$C$37:$C$126,\"Bewegung & Gesundheit\")","v":0},{"$f":"COUNTIFS($J$37:$J$126,\"Kind 9\",$C$37:$C$126,\"Bewegung & Gesundheit\")","v":0},{"$f":"COUNTIFS($J$37:$J$126,\"Kind 10\",$C$37:$C$126,\"Bewegung & Gesundheit\")","v":0}]
["Äthetik & Gestaltung",{"$f":"COUNTIFS(J37:J126,\"Kind 1\",C37:C126,\"Ästhetik & Gestaltung \")","v":0},{"$f":"COUNTIFS(J37:J126,\"Kind 2\",C37:C126,\"Ästhetik & Gestaltung \")","v":0},{"$f":"COUNTIFS(J37:J126,\"Kind 3\",C37:C126,\"Ästhetik & Gestaltung \")","v":0},{"$f":"COUNTIFS(J37:J126,\"Kind 4\",C37:C126,\"Ästhetik & Gestaltung \")","v":0},null,{"$f":"COUNTIFS($J$37:$J$126,\"Kind 5\",$C$37:$C$126,\"Ästhetik & Gestaltung \")","v":0},{"$f":"COUNTIFS($J$37:$J$126,\"Kind 6\",$C$37:$C$126,\"Ästhetik & Gestaltung \")","v":0},{"$f":"COUNTIFS($J$37:$J$126,\"Kind 7\",$C$37:$C$126,\"Ästhetik & Gestaltung \")","v":0},{"$f":"COUNTIFS($J$37:$J$126,\"Kind 8\",$C$37:$C$126,\"Ästhetik & Gestaltung \")","v":0},{"$f":"COUNTIFS($J$37:$J$126,\"Kind 9\",$C$37:$C$126,\"Ästhetik & Gestaltung \")","v":0},{"$f":"COUNTIFS($J$37:$J$126,\"Kind 10\",$C$37:$C$126,\"Ästhetik & Gestaltung \")","v":0}]
["Natur & Technik",{"$f":"COUNTIFS(J37:J126,\"Kind 1\",C37:C126,\"Natur & Technik\")","v":0},{"$f":"COUNTIFS(J37:J126,\"Kind 2\",C37:C126,\"Natur & Technik\")","v":0},{"$f":"COUNTIFS(J37:J126,\"Kind 3\",C37:C126,\"Natur & Technik\")","v":0},{"$f":"COUNTIFS(J37:J126,\"Kind 4\",C37:C126,\"Natur & Technik\")","v":0},null,{"$f":"COUNTIFS($J$37:$J$126,\"Kind 5\",$C$37:$C$126,\"Natur & Technik\")","v":0},{"$f":"COUNTIFS($J$37:$J$126,\"Kind 6\",$C$37:$C$126,\"Natur & Technik\")","v":0},{"$f":"COUNTIFS($J$37:$J$126,\"Kind 7\",$C$37:$C$126,\"Natur & Technik\")","v":0},{"$f":"COUNTIFS($J$37:$J$126,\"Kind 8\",$C$37:$C$126,\"Natur & Technik\")","v":0},{"$f":"COUNTIFS($J$37:$J$126,\"Kind 9\",$C$37:$C$126,\"Natur & Technik\")","v":0},{"$f":"COUNTIFS($J$37:$J$126,\"Kind 10\",$C$37:$C$126,\"Natur & Technik\")","v":0}]
["Spalte J"]
["Emotionen& soziale Beziehungen",{"$f":"COUNTIFS($K$37:$K$126,\"Kind 1\",$C$37:$C$126,\"Emotionen & soziale Beziehungen\")","v":0},{"$f":"COUNTIFS($K$37:$K$126,\"Kind 2\",$C$37:$C$126,\"Emotionen & soziale Beziehungen\")","v":0},{"$f":"COUNTIFS($K$37:$K$126,\"Kind 3\",$C$37:$C$126,\"Emotionen & soziale Beziehungen\")","v":0},{"$f":"COUNTIFS($K$37:$K$126,\"Kind 4\",$C$37:$C$126,\"Emotionen & soziale Beziehungen\")","v":0},null,{"$f":"COUNTIFS($K$37:$K$126,\"Kind 5\",$C$37:$C$126,\"Emotionen & soziale Beziehungen\")","v":0},{"$f":"COUNTIFS($K$37:$K$126,\"Kind 6\",$C$37:$C$126,\"Emotionen & soziale Beziehungen\")","v":0},{"$f":"COUNTIFS($K$37:$K$126,\"Kind 7\",$C$37:$C$126,\"Emotionen & soziale Beziehungen\")","v":0},{"$f":"COUNTIFS($K$37:$K$126,\"Kind 8\",$C$37:$C$126,\"Emotionen & soziale Beziehungen\")","v":0},{"$f":"COUNTIFS($K$37:$K$126,\"Kind 9\",$C$37:$C$126,\"Emotionen & soziale Beziehungen\")","v":0},{"$f":"COUNTIFS($K$37:$K$126,\"Kind 10\",$C$37:$C$126,\"Emotionen & soziale Beziehungen\")","v":0}]
["Ethik & Gesellschaft",{"$f":"COUNTIFS($K$37:$K$126,\"Kind 1\",$C$37:$C$126,\"Ethik & Gesellschaft\")","v":0},{"$f":"COUNTIFS($K$37:$K$126,\"Kind 2\",$C$37:$C$126,\"Ethik & Gesellschaft\")","v":0},{"$f":"COUNTIFS($K$37:$K$126,\"Kind 3\",$C$37:$C$126,\"Ethik & Gesellschaft\")","v":0},{"$f":"COUNTIFS($K$37:$K$126,\"Kind 4\",$C$37:$C$126,\"Ethik & Gesellschaft\")","v":0},null,{"$f":"COUNTIFS($K$37:$K$126,\"Kind 5\",$C$37:$C$126,\"Ethik & Gesellschaft\")","v":0},{"$f":"COUNTIFS($K$37:$K$126,\"Kind 6\",$C$37:$C$126,\"Ethik & Gesellschaft\")","v":0},{"$f":"COUNTIFS($K$37:$K$126,\"Kind 7\",$C$37:$C$126,\"Ethik & Gesellschaft\")","v":0},{"$f":"COUNTIFS($K$37:$K$126,\"Kind 8\",$C$37:$C$126,\"Ethik & Gesellschaft\")","v":0},{"$f":"COUNTIFS($K$37:$K$126,\"Kind 9\",$C$37:$C$126,\"Ethik & Gesellschaft\")","v":0},{"$f":"COUNTIFS($K$37:$K$126,\"Kind 10\",$C$37:$C$126,\"Ethik & Gesellschaft\")","v":0}]
["Sprache & Kommunikation",{"$f":"COUNTIFS($K$37:$K$126,\"Kind 1\",$C$37:$C$126,\"Sprache & Kommunikation \")","v":0},{"$f":"COUNTIFS($K$37:$K$126,\"Kind 2\",$C$37:$C$126,\"Sprache & Kommunikation \")","v":0},{"$f":"COUNTIFS($K$37:$K$126,\"Kind 3\",$C$37:$C$126,\"Sprache & Kommunikation \")","v":0},{"$f":"COUNTIFS($K$37:$K$126,\"Kind 4\",$C$37:$C$126,\"Sprache & Kommunikation \")","v":0},null,{"$f":"COUNTIFS($K$37:$K$126,\"Kind 5\",$C$37:$C$126,\"Sprache & Kommunikation \")","v":0},{"$f":"COUNTIFS($K$37:$K$126,\"Kind 6\",$C$37:$C$126,\"Sprache & Kommunikation \")","v":0},{"$f":"COUNTIFS($K$37:$K$126,\"Kind 7\",$C$37:$C$126,\"Sprache & Kommunikation \")","v":0},{"$f":"COUNTIFS($K$37:$K$126,\"Kind 8\",$C$37:$C$126,\"Sprache & Kommunikation \")","v":0},{"$f":"COUNTIFS($K$37:$K$126,\"Kind 9\",$C$37:$C$126,\"Sprache & Kommunikation \")","v":0},{"$f":"COUNTIFS($K$37:$K$126,\"Kind 10\",$C$37:$C$126,\"Sprache & Kommunikation \")","v":0}]
["Bewegung  & Gesundheit",{"$f":"COUNTIFS($K$37:$K$126,\"Kind 1\",$C$37:$C$126,\"Bewegung & Gesundheit\")","v":0},{"$f":"COUNTIFS($K$37:$K$126,\"Kind 2\",$C$37:$C$126,\"Bewegung & Gesundheit\")","v":0},{"$f":"COUNTIFS($K$37:$K$126,\"Kind 3\",$C$37:$C$126,\"Bewegung & Gesundheit\")","v":0},{"$f":"COUNTIFS($K$37:$K$126,\"Kind 4\",$C$37:$C$126,\"Bewegung & Gesundheit\")","v":0},null,{"$f":"COUNTIFS($K$37:$K$126,\"Kind 5\",$C$37:$C$126,\"Bewegung & Gesundheit\")","v":0},{"$f":"COUNTIFS($K$37:$K$126,\"Kind 6\",$C$37:$C$126,\"Bewegung & Gesundheit\")","v":0},{"$f":"COUNTIFS($K$37:$K$126,\"Kind 7\",$C$37:$C$126,\"Bewegung & Gesundheit\")","v":0},{"$f":"COUNTIFS($K$37:$K$126,\"Kind 8\",$C$37:$C$126,\"Bewegung & Gesundheit\")","v":0},{"$f":"COUNTIFS($K$37:$K$126,\"Kind 9\",$C$37:$C$126,\"Bewegung & Gesundheit\")","v":0},{"$f":"COUNTIFS($K$37:$K$126,\"Kind 10\",$C$37:$C$126,\"Bewegung & Gesundheit\")","v":0}]
["Äthetik & Gestaltung",{"$f":"COUNTIFS($K$37:$K$126,\"Kind 1\",$C$37:$C$126,\"Ästhetik & Gestaltung \")","v":0},{"$f":"COUNTIFS($K$37:$K$126,\"Kind 2\",$C$37:$C$126,\"Ästhetik & Gestaltung \")","v":0},{"$f":"COUNTIFS($K$37:$K$126,\"Kind 3\",$C$37:$C$126,\"Ästhetik & Gestaltung \")","v":0},{"$f":"COUNTIFS($K$37:$K$126,\"Kind 4\",$C$37:$C$126,\"Ästhetik & Gestaltung \")","v":0},null,{"$f":"COUNTIFS($K$37:$K$126,\"Kind 5\",$C$37:$C$126,\"Ästhetik & Gestaltung \")","v":0},{"$f":"COUNTIFS($K$37:$K$126,\"Kind 6\",$C$37:$C$126,\"Ästhetik & Gestaltung \")","v":0},{"$f":"COUNTIFS($K$37:$K$126,\"Kind 7\",$C$37:$C$126,\"Ästhetik & Gestaltung \")","v":0},{"$f":"COUNTIFS($K$37:$K$126,\"Kind 8\",$C$37:$C$126,\"Ästhetik & Gestaltung \")","v":0},{"$f":"COUNTIFS($K$37:$K$126,\"Kind 9\",$C$37:$C$126,\"Ästhetik & Gestaltung \")","v":0},{"$f":"COUNTIFS($K$37:$K$126,\"Kind 10\",$C$37:$C$126,\"Ästhetik & Gestaltung \")","v":0}]
["Natur & Technik",{"$f":"COUNTIFS($K$37:$K$126,\"Kind 1\",$C$37:$C$126,\"Natur & Technik\")","v":0},{"$f":"COUNTIFS($K$37:$K$126,\"Kind 2\",$C$37:$C$126,\"Natur & Technik\")","v":0},{"$f":"COUNTIFS($K$37:$K$126,\"Kind 3\",$C$37:$C$126,\"Natur & Technik\")","v":0},{"$f":"COUNTIFS($K$37:$K$126,\"Kind 4\",$C$37:$C$126,\"Natur & Technik\")","v":0},null,{"$f":"COUNTIFS($K$37:$K$126,\"Kind 5\",$C$37:$C$126,\"Natur & Technik\")","v":0},{"$f":"COUNTIFS($K$37:$K$126,\"Kind 6\",$C$37:$C$126,\"Natur & Technik\")","v":0},{"$f":"COUNTIFS($K$37:$K$126,\"Kind 7\",$C$37:$C$126,\"Natur & Technik\")","v":0},{"$f":"COUNTIFS($K$37:$K$126,\"Kind 8\",$C$37:$C$126,\"Natur & Technik\")","v":0},{"$f":"COUNTIFS($K$37:$K$126,\"Kind 9\",$C$37:$C$126,\"Natur & Technik\")","v":0},{"$f":"COUNTIFS($K$37:$K$126,\"Kind 10\",$C$37:$C$126,\"Natur & Technik\")","v":0}]
["Spalte K"]
["Emotionen& soziale Beziehungen",{"$f":"COUNTIFS($L$37:$L$126,\"Kind 1\",$C$37:$C$126,\"Emotionen & soziale Beziehungen\")","v":0},{"$f":"COUNTIFS($L$37:$L$126,\"Kind 2\",$C$37:$C$126,\"Emotionen & soziale Beziehungen\")","v":0},{"$f":"COUNTIFS($L$37:$L$126,\"Kind 3\",$C$37:$C$126,\"Emotionen & soziale Beziehungen\")","v":0},{"$f":"COUNTIFS($L$37:$L$126,\"Kind 4\",$C$37:$C$126,\"Emotionen & soziale Beziehungen\")","v":0},null,{"$f":"COUNTIFS($L$37:$L$126,\"Kind 5\",$C$37:$C$126,\"Emotionen & soziale Beziehungen\")","v":0},{"$f":"COUNTIFS($L$37:$L$126,\"Kind 6\",$C$37:$C$126,\"Emotionen & soziale Beziehungen\")","v":0},{"$f":"COUNTIFS($L$37:$L$126,\"Kind 7\",$C$37:$C$126,\"Emotionen & soziale Beziehungen\")","v":0},{"$f":"COUNTIFS($L$37:$L$126,\"Kind 8\",$C$37:$C$126,\"Emotionen & soziale Beziehungen\")","v":0},{"$f":"COUNTIFS($L$37:$L$126,\"Kind 9\",$C$37:$C$126,\"Emotionen & soziale Beziehungen\")","v":0},{"$f":"COUNTIFS($L$37:$L$126,\"Kind 10\",$C$37:$C$126,\"Emotionen & soziale Beziehungen\")","v":0}]
["Ethik & Gesellschaft",{"$f":"COUNTIFS($L$37:$L$126,\"Kind 1\",$C$37:$C$126,\"Ethik & Gesellschaft\")","v":0},{"$f":"COUNTIFS($L$37:$L$126,\"Kind 2\",$C$37:$C$126,\"Ethik & Gesellschaft\")","v":0},{"$f":"COUNTIFS($L$37:$L$126,\"Kind 3\",$C$37:$C$126,\"Ethik & Gesellschaft\")","v":0},{"$f":"COUNTIFS($L$37:$L$126,\"Kind 4\",$C$37:$C$126,\"Ethik & Gesellschaft\")","v":0},null,{"$f":"COUNTIFS($L$37:$L$126,\"Kind 5\",$C$37:$C$126,\"Ethik & Gesellschaft\")","v":0},{"$f":"COUNTIFS($L$37:$L$126,\"Kind 6\",$C$37:$C$126,\"Ethik & Gesellschaft\")","v":0},{"$f":"COUNTIFS($L$37:$L$126,\"Kind 7\",$C$37:$C$126,\"Ethik & Gesellschaft\")","v":0},{"$f":"COUNTIFS($L$37:$L$126,\"Kind 8\",$C$37:$C$126,\"Ethik & Gesellschaft\")","v":0},{"$f":"COUNTIFS($L$37:$L$126,\"Kind 9\",$C$37:$C$126,\"Ethik & Gesellschaft\")","v":0},{"$f":"COUNTIFS($L$37:$L$126,\"Kind 10\",$C$37:$C$126,\"Ethik & Gesellschaft\")","v":0}]
["Sprache & Kommunikation",{"$f":"COUNTIFS($L$37:$L$126,\"Kind 1\",$C$37:$C$126,\"Sprache & Kommunikation \")","v":0},{"$f":"COUNTIFS($L$37:$L$126,\"Kind 2\",$C$37:$C$126,\"Sprache & Kommunikation \")","v":0},{"$f":"COUNTIFS($L$37:$L$126,\"Kind 3\",$C$37:$C$126,\"Sprache & Kommunikation \")","v":0},{"$f":"COUNTIFS($L$37:$L$126,\"Kind 4\",$C$37:$C$126,\"Sprache & Kommunikation \")","v":0},null,{"$f":"COUNTIFS($L$37:$L$126,\"Kind 5\",$C$37:$C$126,\"Sprache & Kommunikation \")","v":0},{"$f":"COUNTIFS($L$37:$L$126,\"Kind 6\",$C$37:$C$126,\"Sprache & Kommunikation \")","v":0},{"$f":"COUNTIFS($L$37:$L$126,\"Kind 7\",$C$37:$C$126,\"Sprache & Kommunikation \")","v":0},{"$f":"COUNTIFS($L$37:$L$126,\"Kind 8\",$C$37:$C$126,\"Sprache & Kommunikation \")","v":0},{"$f":"COUNTIFS($L$37:$L$126,\"Kind 9\",$C$37:$C$126,\"Sprache & Kommunikation \")","v":0},{"$f":"COUNTIFS($L$37:$L$126,\"Kind 10\",$C$37:$C$126,\"Sprache & Kommunikation \")","v":0}]
["Bewegung  & Gesundheit",{"$f":"COUNTIFS($L$37:$L$126,\"Kind 1\",$C$37:$C$126,\"Bewegung & Gesundheit\")","v":0},{"$f":"COUNTIFS($L$37:$L$126,\"Kind 2\",$C$37:$C$126,\"Bewegung & Gesundheit\")","v":0},{"$f":"COUNTIFS($L$37:$L$126,\"Kind 3\",$C$37:$C$126,\"Bewegung & Gesundheit\")","v":0},{"$f":"COUNTIFS($L$37:$L$126,\"Kind 4\",$C$37:$C$126,\"Bewegung & Gesundheit\")","v":0},null,{"$f":"COUNTIFS($L$37:$L$126,\"Kind 5\",$C$37:$C$126,\"Bewegung & Gesundheit\")","v":0},{"$f":"COUNTIFS($L$37:$L$126,\"Kind 6\",$C$37:$C$126,\"Bewegung & Gesundheit\")","v":0},{"$f":"COUNTIFS($L$37:$L$126,\"Kind 7\",$C$37:$C$126,\"Bewegung & Gesundheit\")","v":0},{"$f":"COUNTIFS($L$37:$L$126,\"Kind 8\",$C$37:$C$126,\"Bewegung & Gesundheit\")","v":0},{"$f":"COUNTIFS($L$37:$L$126,\"Kind 9\",$C$37:$C$126,\"Bewegung & Gesundheit\")","v":0},{"$f":"COUNTIFS($L$37:$L$126,\"Kind 10\",$C$37:$C$126,\"Bewegung & Gesundheit\")","v":0}]
["Äthetik & Gestaltung",{"$f":"COUNTIFS($L$37:$L$126,\"Kind 1\",$C$37:$C$126,\"Ästhetik & Gestaltung \")","v":0},{"$f":"COUNTIFS($L$37:$L$126,\"Kind 2\",$C$37:$C$126,\"Ästhetik & Gestaltung \")","v":0},{"$f":"COUNTIFS($L$37:$L$126,\"Kind 3\",$C$37:$C$126,\"Ästhetik & Gestaltung \")","v":0},{"$f":"COUNTIFS($L$37:$L$126,\"Kind 4\",$C$37:$C$126,\"Ästhetik & Gestaltung \")","v":0},null,{"$f":"COUNTIFS($L$37:$L$126,\"Kind 5\",$C$37:$C$126,\"Ästhetik & Gestaltung \")","v":0},{"$f":"COUNTIFS($L$37:$L$126,\"Kind 6\",$C$37:$C$126,\"Ästhetik & Gestaltung \")","v":0},{"$f":"COUNTIFS($L$37:$L$126,\"Kind 7\",$C$37:$C$126,\"Ästhetik & Gestaltung \")","v":0},{"$f":"COUNTIFS($L$37:$L$126,\"Kind 8\",$C$37:$C$126,\"Ästhetik & Gestaltung \")","v":0},{"$f":"COUNTIFS($L$37:$L$126,\"Kind 9\",$C$37:$C$126,\"Ästhetik & Gestaltung \")","v":0},{"$f":"COUNTIFS($L$37:$L$126,\"Kind 10\",$C$37:$C$126,\"Ästhetik & Gestaltung \")","v":0}]
["Natur & Technik",{"$f":"COUNTIFS($L$37:$L$126,\"Kind 1\",$C$37:$C$126,\"Natur & Technik\")","v":0},{"$f":"COUNTIFS($L$37:$L$126,\"Kind 2\",$C$37:$C$126,\"Natur & Technik\")","v":0},{"$f":"COUNTIFS($L$37:$L$126,\"Kind 3\",$C$37:$C$126,\"Natur & Technik\")","v":0},{"$f":"COUNTIFS($L$37:$L$126,\"Kind 4\",$C$37:$C$126,\"Natur & Technik\")","v":0},null,{"$f":"COUNTIFS($L$37:$L$126,\"Kind 5\",$C$37:$C$126,\"Natur & Technik\")","v":0},{"$f":"COUNTIFS($L$37:$L$126,\"Kind 6\",$C$37:$C$126,\"Natur & Technik\")","v":0},{"$f":"COUNTIFS($L$37:$L$126,\"Kind 7\",$C$37:$C$126,\"Natur & Technik\")","v":0},{"$f":"COUNTIFS($L$37:$L$126,\"Kind 8\",$C$37:$C$126,\"Natur & Technik\")","v":0},{"$f":"COUNTIFS($L$37:$L$126,\"Kind 9\",$C$37:$C$126,\"Natur & Technik\")","v":0},{"$f":"COUNTIFS($L$37:$L$126,\"Kind 10\",$C$37:$C$126,\"Natur & Technik\")","v":0}]
["Spalte L"]
["Emotionen& soziale Beziehungen",{"$f":"COUNTIFS($M$37:$M$126,\"Kind 1\",$C$37:$C$126,\"Emotionen & soziale Beziehungen\")","v":0},{"$f":"COUNTIFS($M$37:$M$126,\"Kind 2\",$C$37:$C$126,\"Emotionen & soziale Beziehungen\")","v":0},{"$f":"COUNTIFS($M$37:$M$126,\"Kind 3\",$C$37:$C$126,\"Emotionen & soziale Beziehungen\")","v":0},{"$f":"COUNTIFS($M$37:$M$126,\"Kind 4\",$C$37:$C$126,\"Emotionen & soziale Beziehungen\")","v":0},null,{"$f":"COUNTIFS($M$37:$M$126,\"Kind 5\",$C$37:$C$126,\"Emotionen & soziale Beziehungen\")","v":0},{"$f":"COUNTIFS($M$37:$M$126,\"Kind 6\",$C$37:$C$126,\"Emotionen & soziale Beziehungen\")","v":0},{"$f":"COUNTIFS($M$37:$M$126,\"Kind 7\",$C$37:$C$126,\"Emotionen & soziale Beziehungen\")","v":0},{"$f":"COUNTIFS($M$37:$M$126,\"Kind 8\",$C$37:$C$126,\"Emotionen & soziale Beziehungen\")","v":0},{"$f":"COUNTIFS($M$37:$M$126,\"Kind 9\",$C$37:$C$126,\"Emotionen & soziale Beziehungen\")","v":0},{"$f":"COUNTIFS($M$37:$M$126,\"Kind 10\",$C$37:$C$126,\"Emotionen & soziale Beziehungen\")","v":0}]
["Ethik & Gesellschaft",{"$f":"COUNTIFS($M$37:$M$126,\"Kind 1\",$C$37:$C$126,\"Ethik & Gesellschaft\")","v":0},{"$f":"COUNTIFS($M$37:$M$126,\"Kind 2\",$C$37:$C$126,\"Ethik & Gesellschaft\")","v":0},{"$f":"COUNTIFS($M$37:$M$126,\"Kind 3\",$C$37:$C$126,\"Ethik & Gesellschaft\")","v":0},{"$f":"COUNTIFS($M$37:$M$126,\"Kind 4\",$C$37:$C$126,\"Ethik & Gesellschaft\")","v":0},null,{"$f":"COUNTIFS($M$37:$M$126,\"Kind 5\",$C$37:$C$126,\"Ethik & Gesellschaft\")","v":0},{"$f":"COUNTIFS($M$37:$M$126,\"Kind 6\",$C$37:$C$126,\"Ethik & Gesellschaft\")","v":0},{"$f":"COUNTIFS($M$37:$M$126,\"Kind 7\",$C$37:$C$126,\"Ethik & Gesellschaft\")","v":0},{"$f":"COUNTIFS($M$37:$M$126,\"Kind 8\",$C$37:$C$126,\"Ethik & Gesellschaft\")","v":0},{"$f":"COUNTIFS($M$37:$M$126,\"Kind 9\",$C$37:$C$126,\"Ethik & Gesellschaft\")","v":0},{"$f":"COUNTIFS($M$37:$M$126,\"Kind 10\",$C$37:$C$126,\"Ethik & Gesellschaft\")","v":0}]
["Sprache & Kommunikation",{"$f":"COUNTIFS($M$37:$M$126,\"Kind 1\",$C$37:$C$126,\"Sprache & Kommunikation \")","v":0},{"$f":"COUNTIFS($M$37:$M$126,\"Kind 2\",$C$37:$C$126,\"Sprache & Kommunikation \")","v":0},{"$f":"COUNTIFS($M$37:$M$126,\"Kind 3\",$C$37:$C$126,\"Sprache & Kommunikation \")","v":0},{"$f":"COUNTIFS($M$37:$M$126,\"Kind 4\",$C$37:$C$126,\"Sprache & Kommunikation \")","v":0},null,{"$f":"COUNTIFS($M$37:$M$126,\"Kind 5\",$C$37:$C$126,\"Sprache & Kommunikation \")","v":0},{"$f":"COUNTIFS($M$37:$M$126,\"Kind 6\",$C$37:$C$126,\"Sprache & Kommunikation \")","v":0},{"$f":"COUNTIFS($M$37:$M$126,\"Kind 7\",$C$37:$C$126,\"Sprache & Kommunikation \")","v":0},{"$f":"COUNTIFS($M$37:$M$126,\"Kind 8\",$C$37:$C$126,\"Sprache & Kommunikation \")","v":0},{"$f":"COUNTIFS($M$37:$M$126,\"Kind 9\",$C$37:$C$126,\"Sprache & Kommunikation \")","v":0},{"$f":"COUNTIFS($M$37:$M$126,\"Kind 10\",$C$37:$C$126,\"Sprache & Kommunikation \")","v":0}]
["Bewegung  & Gesundheit",{"$f":"COUNTIFS($M$37:$M$126,\"Kind 1\",$C$37:$C$126,\"Bewegung & Gesundheit\")","v":0},{"$f":"COUNTIFS($M$37:$M$126,\"Kind 2\",$C$37:$C$126,\"Bewegung & Gesundheit\")","v":0},{"$f":"COUNTIFS($M$37:$M$126,\"Kind 3\",$C$37:$C$126,\"Bewegung & Gesundheit\")","v":0},{"$f":"COUNTIFS($M$37:$M$126,\"Kind 4\",$C$37:$C$126,\"Bewegung & Gesundheit\")","v":0},null,{"$f":"COUNTIFS($M$37:$M$126,\"Kind 5\",$C$37:$C$126,\"Bewegung & Gesundheit\")","v":0},{"$f":"COUNTIFS($M$37:$M$126,\"Kind 6\",$C$37:$C$126,\"Bewegung & Gesundheit\")","v":0},{"$f":"COUNTIFS($M$37:$M$126,\"Kind 7\",$C$37:$C$126,\"Bewegung & Gesundheit\")","v":0},{"$f":"COUNTIFS($M$37:$M$126,\"Kind 8\",$C$37:$C$126,\"Bewegung & Gesundheit\")","v":0},{"$f":"COUNTIFS($M$37:$M$126,\"Kind 9\",$C$37:$C$126,\"Bewegung & Gesundheit\")","v":0},{"$f":"COUNTIFS($M$37:$M$126,\"Kind 10\",$C$37:$C$126,\"Bewegung & Gesundheit\")","v":0}]
["Äthetik & Gestaltung",{"$f":"COUNTIFS($M$37:$M$126,\"Kind 1\",$C$37:$C$126,\"Ästhetik & Gestaltung \")","v":0},{"$f":"COUNTIFS($M$37:$M$126,\"Kind 2\",$C$37:$C$126,\"Ästhetik & Gestaltung \")","v":0},{"$f":"COUNTIFS($M$37:$M$126,\"Kind 3\",$C$37:$C$126,\"Ästhetik & Gestaltung \")","v":0},{"$f":"COUNTIFS($M$37:$M$126,\"Kind 4\",$C$37:$C$126,\"Ästhetik & Gestaltung \")","v":0},null,{"$f":"COUNTIFS($M$37:$M$126,\"Kind 5\",$C$37:$C$126,\"Ästhetik & Gestaltung \")","v":0},{"$f":"COUNTIFS($M$37:$M$126,\"Kind 6\",$C$37:$C$126,\"Ästhetik & Gestaltung \")","v":0},{"$f":"COUNTIFS($M$37:$M$126,\"Kind 7\",$C$37:$C$126,\"Ästhetik & Gestaltung \")","v":0},{"$f":"COUNTIFS($M$37:$M$126,\"Kind 8\",$C$37:$C$126,\"Ästhetik & Gestaltung \")","v":0},{"$f":"COUNTIFS($M$37:$M$126,\"Kind 9\",$C$37:$C$126,\"Ästhetik & Gestaltung \")","v":0},{"$f":"COUNTIFS($M$37:$M$126,\"Kind 10\",$C$37:$C$126,\"Ästhetik & Gestaltung \")","v":0}]
["Natur & Technik",{"$f":"COUNTIFS($M$37:$M$126,\"Kind 1\",$C$37:$C$126,\"Natur & Technik\")","v":0},{"$f":"COUNTIFS($M$37:$M$126,\"Kind 2\",$C$37:$C$126,\"Natur & Technik\")","v":0},{"$f":"COUNTIFS($M$37:$M$126,\"Kind 3\",$C$37:$C$126,\"Natur & Technik\")","v":0},{"$f":"COUNTIFS($M$37:$M$126,\"Kind 4\",$C$37:$C$126,\"Natur & Technik\")","v":0},null,{"$f":"COUNTIFS($M$37:$M$126,\"Kind 5\",$C$37:$C$126,\"Natur & Technik\")","v":0},{"$f":"COUNTIFS($M$37:$M$126,\"Kind 6\",$C$37:$C$126,\"Natur & Technik\")","v":0},{"$f":"COUNTIFS($M$37:$M$126,\"Kind 7\",$C$37:$C$126,\"Natur & Technik\")","v":0},{"$f":"COUNTIFS($M$37:$M$126,\"Kind 8\",$C$37:$C$126,\"Natur & Technik\")","v":0},{"$f":"COUNTIFS($M$37:$M$126,\"Kind 9\",$C$37:$C$126,\"Natur & Technik\")","v":0},{"$f":"COUNTIFS($M$37:$M$126,\"Kind 10\",$C$37:$C$126,\"Natur & Technik\")","v":0}]
["Spalte M"]
["Emotionen& soziale Beziehungen",{"$f":"COUNTIFS($N$37:$N$126,\"Kind 1\",$C$37:$C$126,\"Emotionen & soziale Beziehungen\")","v":0},{"$f":"COUNTIFS($N$37:$N$126,\"Kind 2\",$C$37:$C$126,\"Emotionen & soziale Beziehungen\")","v":0},{"$f":"COUNTIFS($N$37:$N$126,\"Kind 3\",$C$37:$C$126,\"Emotionen & soziale Beziehungen\")","v":0},{"$f":"COUNTIFS($N$37:$N$126,\"Kind 4\",$C$37:$C$126,\"Emotionen & soziale Beziehungen\")","v":0},null,{"$f":"COUNTIFS($N$37:$N$126,\"Kind 5\",$C$37:$C$126,\"Emotionen & soziale Beziehungen\")","v":0},{"$f":"COUNTIFS($N$37:$N$126,\"Kind 6\",$C$37:$C$126,\"Emotionen & soziale Beziehungen\")","v":0},{"$f":"COUNTIFS($N$37:$N$126,\"Kind 7\",$C$37:$C$126,\"Emotionen & soziale Beziehungen\")","v":0},{"$f":"COUNTIFS($N$37:$N$126,\"Kind 8\",$C$37:$C$126,\"Emotionen & soziale Beziehungen\")","v":0},{"$f":"COUNTIFS($N$37:$N$126,\"Kind 9\",$C$37:$C$126,\"Emotionen & soziale Beziehungen\")","v":0},{"$f":"COUNTIFS($N$37:$N$126,\"Kind 10\",$C$37:$C$126,\"Emotionen & soziale Beziehungen\")","v":0}]
["Ethik & Gesellschaft",{"$f":"COUNTIFS($N$37:$N$126,\"Kind 1\",$C$37:$C$126,\"Ethik & Gesellschaft\")","v":0},{"$f":"COUNTIFS($N$37:$N$126,\"Kind 2\",$C$37:$C$126,\"Ethik & Gesellschaft\")","v":0},{"$f":"COUNTIFS($N$37:$N$126,\"Kind 3\",$C$37:$C$126,\"Ethik & Gesellschaft\")","v":0},{"$f":"COUNTIFS($N$37:$N$126,\"Kind 4\",$C$37:$C$126,\"Ethik & Gesellschaft\")","v":0},null,{"$f":"COUNTIFS($N$37:$N$126,\"Kind 5\",$C$37:$C$126,\"Ethik & Gesellschaft\")","v":0},{"$f":"COUNTIFS($N$37:$N$126,\"Kind 6\",$C$37:$C$126,\"Ethik & Gesellschaft\")","v":0},{"$f":"COUNTIFS($N$37:$N$126,\"Kind 7\",$C$37:$C$126,\"Ethik & Gesellschaft\")","v":0},{"$f":"COUNTIFS($N$37:$N$126,\"Kind 8\",$C$37:$C$126,\"Ethik & Gesellschaft\")","v":0},{"$f":"COUNTIFS($N$37:$N$126,\"Kind 9\",$C$37:$C$126,\"Ethik & Gesellschaft\")","v":0},{"$f":"COUNTIFS($N$37:$N$126,\"Kind 10\",$C$37:$C$126,\"Ethik & Gesellschaft\")","v":0}]
["Sprache & Kommunikation",{"$f":"COUNTIFS($N$37:$N$126,\"Kind 1\",$C$37:$C$126,\"Sprache & Kommunikation \")","v":0},{"$f":"COUNTIFS($N$37:$N$126,\"Kind 2\",$C$37:$C$126,\"Sprache & Kommunikation \")","v":0},{"$f":"COUNTIFS($N$37:$N$126,\"Kind 3\",$C$37:$C$126,\"Sprache & Kommunikation \")","v":0},{"$f":"COUNTIFS($N$37:$N$126,\"Kind 4\",$C$37:$C$126,\"Sprache & Kommunikation \")","v":0},null,{"$f":"COUNTIFS($N$37:$N$126,\"Kind 5\",$C$37:$C$126,\"Sprache & Kommunikation \")","v":0},{"$f":"COUNTIFS($N$37:$N$126,\"Kind 6\",$C$37:$C$126,\"Sprache & Kommunikation \")","v":0},{"$f":"COUNTIFS($N$37:$N$126,\"Kind 7\",$C$37:$C$126,\"Sprache & Kommunikation \")","v":0},{"$f":"COUNTIFS($N$37:$N$126,\"Kind 8\",$C$37:$C$126,\"Sprache & Kommunikation \")","v":0},{"$f":"COUNTIFS($N$37:$N$126,\"Kind 9\",$C$37:$C$126,\"Sprache & Kommunikation \")","v":0},{"$f":"COUNTIFS($N$37:$N$126,\"Kind 10\",$C$37:$C$126,\"Sprache & Kommunikation \")","v":0}]
["Bewegung  & Gesundheit",{"$f":"COUNTIFS($N$37:$N$126,\"Kind 1\",$C$37:$C$126,\"Bewegung & Gesundheit\")","v":0},{"$f":"COUNTIFS($N$37:$N$126,\"Kind 2\",$C$37:$C$126,\"Bewegung & Gesundheit\")","v":0},{"$f":"COUNTIFS($N$37:$N$126,\"Kind 3\",$C$37:$C$126,\"Bewegung & Gesundheit\")","v":0},{"$f":"COUNTIFS($N$37:$N$126,\"Kind 4\",$C$37:$C$126,\"Bewegung & Gesundheit\")","v":0},null,{"$f":"COUNTIFS($N$37:$N$126,\"Kind 5\",$C$37:$C$126,\"Bewegung & Gesundheit\")","v":0},{"$f":"COUNTIFS($N$37:$N$126,\"Kind 6\",$C$37:$C$126,\"Bewegung & Gesundheit\")","v":0},{"$f":"COUNTIFS($N$37:$N$126,\"Kind 7\",$C$37:$C$126,\"Bewegung & Gesundheit\")","v":0},{"$f":"COUNTIFS($N$37:$N$126,\"Kind 8\",$C$37:$C$126,\"Bewegung & Gesundheit\")","v":0},{"$f":"COUNTIFS($N$37:$N$126,\"Kind 9\",$C$37:$C$126,\"Bewegung & Gesundheit\")","v":0},{"$f":"COUNTIFS($N$37:$N$126,\"Kind 10\",$C$37:$C$126,\"Bewegung & Gesundheit\")","v":0}]
["Äthetik & Gestaltung",{"$f":"COUNTIFS($N$37:$N$126,\"Kind 1\",$C$37:$C$126,\"Ästhetik & Gestaltung \")","v":0},{"$f":"COUNTIFS($N$37:$N$126,\"Kind 2\",$C$37:$C$126,\"Ästhetik & Gestaltung \")","v":0},{"$f":"COUNTIFS($N$37:$N$126,\"Kind 3\",$C$37:$C$126,\"Ästhetik & Gestaltung \")","v":0},{"$f":"COUNTIFS($N$37:$N$126,\"Kind 4\",$C$37:$C$126,\"Ästhetik & Gestaltung \")","v":0},null,{"$f":"COUNTIFS($N$37:$N$126,\"Kind 5\",$C$37:$C$126,\"Ästhetik & Gestaltung \")","v":0},{"$f":"COUNTIFS($N$37:$N$126,\"Kind 6\",$C$37:$C$126,\"Ästhetik & Gestaltung \")","v":0},{"$f":"COUNTIFS($N$37:$N$126,\"Kind 7\",$C$37:$C$126,\"Ästhetik & Gestaltung \")","v":0},{"$f":"COUNTIFS($N$37:$N$126,\"Kind 8\",$C$37:$C$126,\"Ästhetik & Gestaltung \")","v":0},{"$f":"COUNTIFS($N$37:$N$126,\"Kind 9\",$C$37:$C$126,\"Ästhetik & Gestaltung \")","v":0},{"$f":"COUNTIFS($N$37:$N$126,\"Kind 10\",$C$37:$C$126,\"Ästhetik & Gestaltung \")","v":0}]
["Natur & Technik",{"$f":"COUNTIFS($N$37:$N$126,\"Kind 1\",$C$37:$C$126,\"Natur & Technik\")","v":0},{"$f":"COUNTIFS($N$37:$N$126,\"Kind 2\",$C$37:$C$126,\"Natur & Technik\")","v":0},{"$f":"COUNTIFS($N$37:$N$126,\"Kind 3\",$C$37:$C$126,\"Natur & Technik\")","v":0},{"$f":"COUNTIFS($N$37:$N$126,\"Kind 4\",$C$37:$C$126,\"Natur & Technik\")","v":0},null,{"$f":"COUNTIFS($N$37:$N$126,\"Kind 5\",$C$37:$C$126,\"Natur & Technik\")","v":0},{"$f":"COUNTIFS($N$37:$N$126,\"Kind 6\",$C$37:$C$126,\"Natur & Technik\")","v":0},{"$f":"COUNTIFS($N$37:$N$126,\"Kind 7\",$C$37:$C$126,\"Natur & Technik\")","v":0},{"$f":"COUNTIFS($N$37:$N$126,\"Kind 8\",$C$37:$C$126,\"Natur & Technik\")","v":0},{"$f":"COUNTIFS($N$37:$N$126,\"Kind 9\",$C$37:$C$126,\"Natur & Technik\")","v":0},{"$f":"COUNTIFS($N$37:$N$126,\"Kind 10\",$C$37:$C$126,\"Natur & Technik\")","v":0}]
["Spalte N"]
["Emotionen& soziale Beziehungen",{"$f":"COUNTIFS($O$37:$O$126,\"Kind 1\",$C$37:$C$126,\"Emotionen & soziale Beziehungen\")","v":0},{"$f":"COUNTIFS($O$37:$O$126,\"Kind 2\",$C$37:$C$126,\"Emotionen & soziale Beziehungen\")","v":0},{"$f":"COUNTIFS($O$37:$O$126,\"Kind 3\",$C$37:$C$126,\"Emotionen & soziale Beziehungen\")","v":0},{"$f":"COUNTIFS($O$37:$O$126,\"Kind 4\",$C$37:$C$126,\"Emotionen & soziale Beziehungen\")","v":0},null,{"$f":"COUNTIFS($O$37:$O$126,\"Kind 5\",$C$37:$C$126,\"Emotionen & soziale Beziehungen\")","v":0},{"$f":"COUNTIFS($O$37:$O$126,\"Kind 6\",$C$37:$C$126,\"Emotionen & soziale Beziehungen\")","v":0},{"$f":"COUNTIFS($O$37:$O$126,\"Kind 7\",$C$37:$C$126,\"Emotionen & soziale Beziehungen\")","v":0},{"$f":"COUNTIFS($O$37:$O$126,\"Kind 8\",$C$37:$C$126,\"Emotionen & soziale Beziehungen\")","v":0},{"$f":"COUNTIFS($O$37:$O$126,\"Kind 9\",$C$37:$C$126,\"Emotionen & soziale Beziehungen\")","v":0},{"$f":"COUNTIFS($O$37:$O$126,\"Kind 10\",$C$37:$C$126,\"Emotionen & soziale Beziehungen\")","v":0}]
["Ethik & Gesellschaft",{"$f":"COUNTIFS($O$37:$O$126,\"Kind 1\",$C$37:$C$126,\"Ethik & Gesellschaft\")","v":0},{"$f":"COUNTIFS($O$37:$O$126,\"Kind 2\",$C$37:$C$126,\"Ethik & Gesellschaft\")","v":0},{"$f":"COUNTIFS($O$37:$O$126,\"Kind 3\",$C$37:$C$126,\"Ethik & Gesellschaft\")","v":0},{"$f":"COUNTIFS($O$37:$O$126,\"Kind 4\",$C$37:$C$126,\"Ethik & Gesellschaft\")","v":0},null,{"$f":"COUNTIFS($O$37:$O$126,\"Kind 5\",$C$37:$C$126,\"Ethik & Gesellschaft\")","v":0},{"$f":"COUNTIFS($O$37:$O$126,\"Kind 6\",$C$37:$C$126,\"Ethik & Gesellschaft\")","v":0},{"$f":"COUNTIFS($O$37:$O$126,\"Kind 7\",$C$37:$C$126,\"Ethik & Gesellschaft\")","v":0},{"$f":"COUNTIFS($O$37:$O$126,\"Kind 8\",$C$37:$C$126,\"Ethik & Gesellschaft\")","v":0},{"$f":"COUNTIFS($O$37:$O$126,\"Kind 9\",$C$37:$C$126,\"Ethik & Gesellschaft\")","v":0},{"$f":"COUNTIFS($O$37:$O$126,\"Kind 10\",$C$37:$C$126,\"Ethik & Gesellschaft\")","v":0}]
["Sprache & Kommunikation",{"$f":"COUNTIFS($O$37:$O$126,\"Kind 1\",$C$37:$C$126,\"Sprache & Kommunikation \")","v":0},{"$f":"COUNTIFS($O$37:$O$126,\"Kind 2\",$C$37:$C$126,\"Sprache & Kommunikation \")","v":0},{"$f":"COUNTIFS($O$37:$O$126,\"Kind 3\",$C$37:$C$126,\"Sprache & Kommunikation \")","v":0},{"$f":"COUNTIFS($O$37:$O$126,\"Kind 4\",$C$37:$C$126,\"Sprache & Kommunikation \")","v":0},null,{"$f":"COUNTIFS($O$37:$O$126,\"Kind 5\",$C$37:$C$126,\"Sprache & Kommunikation \")","v":0},{"$f":"COUNTIFS($O$37:$O$126,\"Kind 6\",$C$37:$C$126,\"Sprache & Kommunikation \")","v":0},{"$f":"COUNTIFS($O$37:$O$126,\"Kind 7\",$C$37:$C$126,\"Sprache & Kommunikation \")","v":0},{"$f":"COUNTIFS($O$37:$O$126,\"Kind 8\",$C$37:$C$126,\"Sprache & Kommunikation \")","v":0},{"$f":"COUNTIFS($O$37:$O$126,\"Kind 9\",$C$37:$C$126,\"Sprache & Kommunikation \")","v":0},{"$f":"COUNTIFS($O$37:$O$126,\"Kind 10\",$C$37:$C$126,\"Sprache & Kommunikation \")","v":0}]
["Bewegung  & Gesundheit",{"$f":"COUNTIFS($O$37:$O$126,\"Kind 1\",$C$37:$C$126,\"Bewegung & Gesundheit\")","v":0},{"$f":"COUNTIFS($O$37:$O$126,\"Kind 2\",$C$37:$C$126,\"Bewegung & Gesundheit\")","v":0},{"$f":"COUNTIFS($O$37:$O$126,\"Kind 3\",$C$37:$C$126,\"Bewegung & Gesundheit\")","v":0},{"$f":"COUNTIFS($O$37:$O$126,\"Kind 4\",$C$37:$C$126,\"Bewegung & Gesundheit\")","v":0},null,{"$f":"COUNTIFS($O$37:$O$126,\"Kind 5\",$C$37:$C$126,\"Bewegung & Gesundheit\")","v":0},{"$f":"COUNTIFS($O$37:$O$126,\"Kind 6\",$C$37:$C$126,\"Bewegung & Gesundheit\")","v":0},{"$f":"COUNTIFS($O$37:$O$126,\"Kind 7\",$C$37:$C$126,\"Bewegung & Gesundheit\")","v":0},{"$f":"COUNTIFS($O$37:$O$126,\"Kind 8\",$C$37:$C$126,\"Bewegung & Gesundheit\")","v":0},{"$f":"COUNTIFS($O$37:$O$126,\"Kind 9\",$C$37:$C$126,\"Bewegung & Gesundheit\")","v":0},{"$f":"COUNTIFS($O$37:$O$126,\"Kind 10\",$C$37:$C$126,\"Bewegung & Gesundheit\")","v":0}]
["Äthetik & Gestaltung",{"$f":"COUNTIFS($O$37:$O$126,\"Kind 1\",$C$37:$C$126,\"Ästhetik & Gestaltung \")","v":0},{"$f":"COUNTIFS($O$37:$O$126,\"Kind 2\",$C$37:$C$126,\"Ästhetik & Gestaltung \")","v":0},{"$f":"COUNTIFS($O$37:$O$126,\"Kind 3\",$C$37:$C$126,\"Ästhetik & Gestaltung \")","v":0},{"$f":"COUNTIFS($O$37:$O$126,\"Kind 4\",$C$37:$C$126,\"Ästhetik & Gestaltung \")","v":0},null,{"$f":"COUNTIFS($O$37:$O$126,\"Kind 5\",$C$37:$C$126,\"Ästhetik & Gestaltung \")","v":0},{"$f":"COUNTIFS($O$37:$O$126,\"Kind 6\",$C$37:$C$126,\"Ästhetik & Gestaltung \")","v":0},{"$f":"COUNTIFS($O$37:$O$126,\"Kind 7\",$C$37:$C$126,\"Ästhetik & Gestaltung \")","v":0},{"$f":"COUNTIFS($O$37:$O$126,\"Kind 8\",$C$37:$C$126,\"Ästhetik & Gestaltung \")","v":0},{"$f":"COUNTIFS($O$37:$O$126,\"Kind 9\",$C$37:$C$126,\"Ästhetik & Gestaltung \")","v":0},{"$f":"COUNTIFS($O$37:$O$126,\"Kind 10\",$C$37:$C$126,\"Ästhetik & Gestaltung \")","v":0}]
["Natur & Technik",{"$f":"COUNTIFS($O$37:$O$126,\"Kind 1\",$C$37:$C$126,\"Natur & Technik\")","v":0},{"$f":"COUNTIFS($O$37:$O$126,\"Kind 2\",$C$37:$C$126,\"Natur & Technik\")","v":0},{"$f":"COUNTIFS($O$37:$O$126,\"Kind 3\",$C$37:$C$126,\"Natur & Technik\")","v":0},{"$f":"COUNTIFS($O$37:$O$126,\"Kind 4\",$C$37:$C$126,\"Natur & Technik\")","v":0},null,{"$f":"COUNTIFS($O$37:$O$126,\"Kind 5\",$C$37:$C$126,\"Natur & Technik\")","v":0},{"$f":"COUNTIFS($O$37:$O$126,\"Kind 6\",$C$37:$C$126,\"Natur & Technik\")","v":0},{"$f":"COUNTIFS($O$37:$O$126,\"Kind 7\",$C$37:$C$126,\"Natur & Technik\")","v":0},{"$f":"COUNTIFS($O$37:$O$126,\"Kind 8\",$C$37:$C$126,\"Natur & Technik\")","v":0},{"$f":"COUNTIFS($O$37:$O$126,\"Kind 9\",$C$37:$C$126,\"Natur & Technik\")","v":0},{"$f":"COUNTIFS($O$37:$O$126,\"Kind 10\",$C$37:$C$126,\"Natur & Technik\")","v":0}]
[]
["Emotionen& soziale Beziehungen",{"$f":"SUM(B129,B136,B143,B150,B157,B164,B171,B178,B185,B192)","v":0},0,0,0,null,0,0,0,{"$f":"SUM(J129,J136,J143,J150,J157,J164,J171,J178,J185,J192)","v":0},0,0]
["Ethik & Gesellschaft",{"$f":"SUM(B130,B137,B144,B151,B158,B165,B172,B179,B186,B193)","v":0},0,0,0,null,0,0,{"$f":"SUM(I130,I137,I144,I151,I158,I165,I172,I179,I186,I193)","v":0},0,0,0]
["Sprache & Kommunikation",0,0,0,0,null,0,0,{"$f":"SUM(I131,I138,I145,I152,I159,I166,I173,I180,I187,I194)","v":0},0,0,0]
["Bewegung  & Gesundheit",0,0,0,0,null,0,0,{"$f":"SUM(I132,I139,I146,I153,I160,I167,I174,I181,I188,I195)","v":0},0,0,0]
["Äthetik & Gestaltung",0,0,0,0,null,0,0,{"$f":"SUM(I133,I140,I147,I154,I161,I168,I175,I182,I189,I196)","v":0},0,0,0]
["Natur & Technik",0,0,0,0,null,0,0,{"$f":"SUM(I134,I141,I148,I155,I162,I169,I176,I183,I190,I197)","v":0},0,0,0]
[]
[]
[]
[]
[]
[]
[]
[]
[]
[]
[]
[]
[]
[]
[]
[]
[]
[]
[]
[]
[]
[]
[]
[]
[]
[]
[]
[]
[]
[]
[]
[]
[]
[]
[]
[]
[]
[]
[]
[]
[]
[]
[]
[]
[]
[]
[]
[]
[]
[]
[]
[]
[]
[]
[]
[]
[]
[]
[]
[]
[]
[]
[]
[]
[]
[]
[]
[]
[]
[]
[]
[]
[]
[]
[]
[]
[]
[]
[]
[]
[]
[]
[]
[]
[]
[]
[]
[]
[]
[]
[]
[]
[]
[null,null,"Kind Nummer","Lfd Nr","ID- Nummer",null,"Förderangebot "]
[null,null,"Kind 1",1,{"$f":"VLOOKUP(G1,Förderangebote!D7:D11,1,0)","v":"Kind 1"},1,{"$f":"VLOOKUP($D$299,Förderangebote!A7:E12,3,0)","v":"Beispielhaftes Förderangebot: Hier haben Sie Platz für die Beschreibung Ihres Förderangebots. Dieses wird nach Betätigen des Buttons \"Förderangebote übertragen\" (rechts neben der Tabelle) in die Registerblätter der teilnehmenden Kinder übertragen. "}]
[null,null,"Kind 2",1,{"$f":"VLOOKUP(G2,Förderangebote!D7:D11,1,0)","v":"Kind 2"},1,{"$f":"VLOOKUP($D$299,Förderangebote!$A$7:$E$12,3,0)","v":"Beispielhaftes Förderangebot: Hier haben Sie Platz für die Beschreibung Ihres Förderangebots. Dieses wird nach Betätigen des Buttons \"Förderangebote übertragen\" (rechts neben der Tabelle) in die Registerblätter der teilnehmenden Kinder übertragen. "}]
[null,null,"Kind 3",1,{"$f":"VLOOKUP(G3,Förderangebote!D7:D11,1,0)","v":"Kind 3"},1,{"$f":"VLOOKUP($D$299,Förderangebote!$A$7:$E$12,3,0)","v":"Beispielhaftes Förderangebot: Hier haben Sie Platz für die Beschreibung Ihres Förderangebots. Dieses wird nach Betätigen des Buttons \"Förderangebote übertragen\" (rechts neben der Tabelle) in die Registerblätter der teilnehmenden Kinder übertragen. "}]
[null,null,"Kind 4",1,{"$f":"VLOOKUP(G4,Förderangebote!D7:D11,1,0)","v":"Kind 4"},1,{"$f":"VLOOKUP($D$299,Förderangebote!$A$7:$E$12,3,0)","v":"Beispielhaftes Förderangebot: Hier haben Sie Platz für die Beschreibung Ihres Förderangebots. Dieses wird nach Betätigen des Buttons \"Förderangebote übertragen\" (rechts neben der Tabelle) in die Registerblätter der teilnehmenden Kinder übertragen. "}]
[null,null,"Kind 5",1,{"$f":"VLOOKUP(G5,Förderangebote!D7:D11,1,0)","v":"Kind 5"},1,{"$f":"VLOOKUP($D$299,Förderangebote!$A$7:$E$12,3,0)","v":"Beispielhaftes Förderangebot: Hier haben Sie Platz für die Beschreibung Ihres Förderangebots. Dieses wird nach Betätigen des Buttons \"Förderangebote übertragen\" (rechts neben der Tabelle) in die Registerblätter der teilnehmenden Kinder übertragen. "}]
[null,null,"Kind 6",1,{"$f":"VLOOKUP(G6,Förderangebote!E7:E11,1,0)","v":"Kind 6"},1,{"$f":"VLOOKUP($D$299,Förderangebote!$A$7:$E$12,3,0)","v":"Beispielhaftes Förderangebot: Hier haben Sie Platz für die Beschreibung Ihres Förderangebots. Dieses wird nach Betätigen des Buttons \"Förderangebote übertragen\" (rechts neben der Tabelle) in die Registerblätter der teilnehmenden Kinder übertragen. "}]
[null,null,"Kind 7",1,{"$f":"VLOOKUP(G7,Förderangebote!E7:E11,1,0)","v":"Kind 7"},1,{"$f":"VLOOKUP($D$299,Förderangebote!$A$7:$E$12,3,0)","v":"Beispielhaftes Förderangebot: Hier haben Sie Platz für die Beschreibung Ihres Förderangebots. Dieses wird nach Betätigen des Buttons \"Förderangebote übertragen\" (rechts neben der Tabelle) in die Registerblätter der teilnehmenden Kinder übertragen. "}]
[null,null,"Kind 8",1,{"$f":"VLOOKUP(G8,Förderangebote!E7:E11,1,0)","v":"Kind 8"},1,{"$f":"VLOOKUP($D$299,Förderangebote!$A$7:$E$12,3,0)","v":"Beispielhaftes Förderangebot: Hier haben Sie Platz für die Beschreibung Ihres Förderangebots. Dieses wird nach Betätigen des Buttons \"Förderangebote übertragen\" (rechts neben der Tabelle) in die Registerblätter der teilnehmenden Kinder übertragen. "}]
[null,null,"Kind 9",1,{"$f":"VLOOKUP(G9,Förderangebote!E7:E11,1,0)","v":"Kind 9"},1,{"$f":"VLOOKUP($D$299,Förderangebote!$A$7:$E$12,3,0)","v":"Beispielhaftes Förderangebot: Hier haben Sie Platz für die Beschreibung Ihres Förderangebots. Dieses wird nach Betätigen des Buttons \"Förderangebote übertragen\" (rechts neben der Tabelle) in die Registerblätter der teilnehmenden Kinder übertragen. "}]
[null,null,"Kind 10",1,{"$f":"VLOOKUP(G10,Förderangebote!E7:E11,1,0)","v":"Kind 10"},1,{"$f":"VLOOKUP($D$299,Förderangebote!$A$7:$E$12,3,0)","v":"Beispielhaftes Förderangebot: Hier haben Sie Platz für die Beschreibung Ihres Förderangebots. Dieses wird nach Betätigen des Buttons \"Förderangebote übertragen\" (rechts neben der Tabelle) in die Registerblätter der teilnehmenden Kinder übertragen. "}]
[null,null,"Kind 1",2,{"$f":"VLOOKUP(G1,Förderangebote!D13:D17,1,0)","v":{"$error":"#N/A"}},2,{"$f":"VLOOKUP($D$309,Förderangebote!$A$13:$E$18,3,0)","v":"Hier ist Platz für Ihr 1. Förderangebot "}]
[null,null,"Kind 2",2,{"$f":"VLOOKUP(G2,Förderangebote!D13:D17,1,0)","v":{"$error":"#N/A"}},2,{"$f":"VLOOKUP($D$309,Förderangebote!$A$13:$E$18,3,0)","v":"Hier ist Platz für Ihr 1. Förderangebot "}]
[null,null,"Kind 3",2,{"$f":"VLOOKUP(G3,Förderangebote!D13:D17,1,0)","v":{"$error":"#N/A"}},2,{"$f":"VLOOKUP($D$309,Förderangebote!$A$13:$E$18,3,0)","v":"Hier ist Platz für Ihr 1. Förderangebot "}]
[null,null,"Kind 4",2,{"$f":"VLOOKUP(G4,Förderangebote!D13:D17,1,0)","v":{"$error":"#N/A"}},2,{"$f":"VLOOKUP($D$309,Förderangebote!$A$13:$E$18,3,0)","v":"Hier ist Platz für Ihr 1. Förderangebot "}]
[null,null,"Kind 5",2,{"$f":"VLOOKUP(G5,Förderangebote!D13:D17,1,0)","v":{"$error":"#N/A"}},2,{"$f":"VLOOKUP($D$309,Förderangebote!$A$13:$E$18,3,0)","v":"Hier ist Platz für Ihr 1. Förderangebot "}]
[null,null,"Kind 6",2,{"$f":"VLOOKUP(G6,Förderangebote!E13:E17,1,0)","v":{"$error":"#N/A"}},2,{"$f":"VLOOKUP($D$309,Förderangebote!$A$13:$E$18,3,0)","v":"Hier ist Platz für Ihr 1. Förderangebot "}]
[null,null,"Kind 7",2,{"$f":"VLOOKUP(G7,Förderangebote!E13:E17,1,0)","v":{"$error":"#N/A"}},2,{"$f":"VLOOKUP($D$309,Förderangebote!$A$13:$E$18,3,0)","v":"Hier ist Platz für Ihr 1. Förderangebot "}]
[null,null,"Kind 8",2,{"$f":"VLOOKUP(G8,Förderangebote!E13:E17,1,0)","v":{"$error":"#N/A"}},2,{"$f":"VLOOKUP($D$309,Förderangebote!$A$13:$E$18,3,0)","v":"Hier ist Platz für Ihr 1. Förderangebot "}]
[null,null,"Kind 9",2,{"$f":"VLOOKUP(G9,Förderangebote!E13:E17,1,0)","v":{"$error":"#N/A"}},2,{"$f":"VLOOKUP($D$309,Förderangebote!$A$13:$E$18,3,0)","v":"Hier ist Platz für Ihr 1. Förderangebot "}]
[null,null,"Kind 10",2,{"$f":"VLOOKUP(G10,Förderangebote!E13:E17,1,0)","v":{"$error":"#N/A"}},2,{"$f":"VLOOKUP($D$309,Förderangebote!$A$13:$E$18,3,0)","v":"Hier ist Platz für Ihr 1. Förderangebot "}]
[null,null,"Kind 1",3,{"$f":"VLOOKUP(G1,Förderangebote!D19:D23,1,0)","v":{"$error":"#N/A"}},3,{"$f":"VLOOKUP($D$319,Förderangebote!$A$19:$E$24,3,0)","v":0}]
[null,null,"Kind 2",3,{"$f":"VLOOKUP(G2,Förderangebote!D19:D23,1,0)","v":{"$error":"#N/A"}},3,{"$f":"VLOOKUP($D$319,Förderangebote!$A$19:$E$24,3,0)","v":0}]
[null,null,"Kind 3",3,{"$f":"VLOOKUP(G3,Förderangebote!D19:D23,1,0)","v":{"$error":"#N/A"}},3,{"$f":"VLOOKUP($D$319,Förderangebote!$A$19:$E$24,3,0)","v":0}]
[null,null,"Kind 4",3,{"$f":"VLOOKUP(G4,Förderangebote!D19:D23,1,0)","v":{"$error":"#N/A"}},3,{"$f":"VLOOKUP($D$319,Förderangebote!$A$19:$E$24,3,0)","v":0}]
[null,null,"Kind 5",3,{"$f":"VLOOKUP(G5,Förderangebote!D19:D23,1,0)","v":{"$error":"#N/A"}},3,{"$f":"VLOOKUP($D$319,Förderangebote!$A$19:$E$24,3,0)","v":0}]
[null,null,"Kind 6",3,{"$f":"VLOOKUP(G6,Förderangebote!E19:E23,1,0)","v":{"$error":"#N/A"}},3,{"$f":"VLOOKUP($D$319,Förderangebote!$A$19:$E$24,3,0)","v":0}]
[null,null,"Kind 7",3,{"$f":"VLOOKUP(G7,Förderangebote!E19:E23,1,0)","v":{"$error":"#N/A"}},3,{"$f":"VLOOKUP($D$319,Förderangebote!$A$19:$E$24,3,0)","v":0}]
[null,null,"Kind 8",3,{"$f":"VLOOKUP(G8,Förderangebote!E19:E23,1,0)","v":{"$error":"#N/A"}},3,{"$f":"VLOOKUP($D$319,Förderangebote!$A$19:$E$24,3,0)","v":0}]
[null,null,"Kind 9",3,{"$f":"VLOOKUP(G9,Förderangebote!E19:E23,1,0)","v":{"$error":"#N/A"}},3,{"$f":"VLOOKUP($D$319,Förderangebote!$A$19:$E$24,3,0)","v":0}]
[null,null,"Kind 10",3,{"$f":"VLOOKUP(G10,Förderangebote!E19:E23,1,0)","v":{"$error":"#N/A"}},3,{"$f":"VLOOKUP($D$319,Förderangebote!$A$19:$E$24,3,0)","v":0}]
[null,null,"Kind 1",4,{"$f":"VLOOKUP(G1,Förderangebote!D26:D30,1,0)","v":{"$error":"#N/A"}},4,{"$f":"VLOOKUP($D$329,Förderangebote!$A$26:$E$31,3,0)","v":0}]
[null,null,"Kind 2",4,{"$f":"VLOOKUP(G2,Förderangebote!D26:D30,1,0)","v":{"$error":"#N/A"}},4,{"$f":"VLOOKUP($D$329,Förderangebote!$A$26:$E$31,3,0)","v":0}]
[null,null,"Kind 3",4,{"$f":"VLOOKUP(G3,Förderangebote!D26:D30,1,0)","v":{"$error":"#N/A"}},4,{"$f":"VLOOKUP($D$329,Förderangebote!$A$26:$E$31,3,0)","v":0}]
[null,null,"Kind 4",4,{"$f":"VLOOKUP(G4,Förderangebote!D26:D30,1,0)","v":{"$error":"#N/A"}},4,{"$f":"VLOOKUP($D$329,Förderangebote!$A$26:$E$31,3,0)","v":0}]
[null,null,"Kind 5",4,{"$f":"VLOOKUP(G5,Förderangebote!D26:D30,1,0)","v":{"$error":"#N/A"}},4,{"$f":"VLOOKUP($D$329,Förderangebote!$A$26:$E$31,3,0)","v":0}]
[null,null,"Kind 6",4,{"$f":"VLOOKUP(G6,Förderangebote!E26:E30,1,0)","v":{"$error":"#N/A"}},4,{"$f":"VLOOKUP($D$329,Förderangebote!$A$26:$E$31,3,0)","v":0}]
[null,null,"Kind 7",4,{"$f":"VLOOKUP(G7,Förderangebote!E26:E30,1,0)","v":{"$error":"#N/A"}},4,{"$f":"VLOOKUP($D$329,Förderangebote!$A$26:$E$31,3,0)","v":0}]
[null,null,"Kind 8",4,{"$f":"VLOOKUP(G8,Förderangebote!E26:E30,1,0)","v":{"$error":"#N/A"}},4,{"$f":"VLOOKUP($D$329,Förderangebote!$A$26:$E$31,3,0)","v":0}]
[null,null,"Kind 9",4,{"$f":"VLOOKUP(G9,Förderangebote!E26:E30,1,0)","v":{"$error":"#N/A"}},4,{"$f":"VLOOKUP($D$329,Förderangebote!$A$26:$E$31,3,0)","v":0}]
[null,null,"Kind 10",4,{"$f":"VLOOKUP(G10,Förderangebote!E26:E30,1,0)","v":{"$error":"#N/A"}},4,{"$f":"VLOOKUP($D$329,Förderangebote!$A$26:$E$31,3,0)","v":0}]
[null,null,"Kind 1",5,{"$f":"VLOOKUP(G1,Förderangebote!D32:D36,1,0)","v":{"$error":"#N/A"}},5,{"$f":"VLOOKUP($D$339,Förderangebote!$A$32:$E$37,3,0)","v":0}]
[null,null,"Kind 2",5,{"$f":"VLOOKUP(G2,Förderangebote!D32:D36,1,0)","v":{"$error":"#N/A"}},5,{"$f":"VLOOKUP($D$339,Förderangebote!$A$32:$E$37,3,0)","v":0}]
[null,null,"Kind 3",5,{"$f":"VLOOKUP(G3,Förderangebote!D32:D36,1,0)","v":{"$error":"#N/A"}},5,{"$f":"VLOOKUP($D$339,Förderangebote!$A$32:$E$37,3,0)","v":0}]
[null,null,"Kind 4",5,{"$f":"VLOOKUP(G4,Förderangebote!D32:D36,1,0)","v":{"$error":"#N/A"}},5,{"$f":"VLOOKUP($D$339,Förderangebote!$A$32:$E$37,3,0)","v":0}]
[null,null,"Kind 5",5,{"$f":"VLOOKUP(G5,Förderangebote!D32:D36,1,0)","v":{"$error":"#N/A"}},5,{"$f":"VLOOKUP($D$339,Förderangebote!$A$32:$E$37,3,0)","v":0}]
[null,null,"Kind 6",5,{"$f":"VLOOKUP(G6,Förderangebote!E32:E36,1,0)","v":{"$error":"#N/A"}},5,{"$f":"VLOOKUP($D$339,Förderangebote!$A$32:$E$37,3,0)","v":0}]
[null,null,"Kind 7",5,{"$f":"VLOOKUP(G7,Förderangebote!E32:E36,1,0)","v":{"$error":"#N/A"}},5,{"$f":"VLOOKUP($D$339,Förderangebote!$A$32:$E$37,3,0)","v":0}]
[null,null,"Kind 8",5,{"$f":"VLOOKUP(G8,Förderangebote!E32:E36,1,0)","v":{"$error":"#N/A"}},5,{"$f":"VLOOKUP($D$339,Förderangebote!$A$32:$E$37,3,0)","v":0}]
[null,null,"Kind 9",5,{"$f":"VLOOKUP(G9,Förderangebote!E32:E36,1,0)","v":{"$error":"#N/A"}},5,{"$f":"VLOOKUP($D$339,Förderangebote!$A$32:$E$37,3,0)","v":0}]
[null,null,"Kind 10",5,{"$f":"VLOOKUP(G10,Förderangebote!E32:E36,1,0)","v":{"$error":"#N/A"}},5,{"$f":"VLOOKUP($D$339,Förderangebote!$A$32:$E$37,3,0)","v":0}]
[null,null,"Kind 1",6,{"$f":"VLOOKUP(G1,Förderangebote!D38:D43,1,0)","v":{"$error":"#N/A"}},6,{"$f":"VLOOKUP($D$349,Förderangebote!$A$38:$E$43,3,0)","v":0}]
[null,null,"Kind 2",6,{"$f":"VLOOKUP(G2,Förderangebote!D38:D43,1,0)","v":{"$error":"#N/A"}},6,{"$f":"VLOOKUP($D$349,Förderangebote!$A$38:$E$43,3,0)","v":0}]
[null,null,"Kind 3",6,{"$f":"VLOOKUP(G3,Förderangebote!D38:D43,1,0)","v":{"$error":"#N/A"}},6,{"$f":"VLOOKUP($D$349,Förderangebote!$A$38:$E$43,3,0)","v":0}]
[null,null,"Kind 4",6,{"$f":"VLOOKUP(G4,Förderangebote!D38:D43,1,0)","v":{"$error":"#N/A"}},6,{"$f":"VLOOKUP($D$349,Förderangebote!$A$38:$E$43,3,0)","v":0}]
[null,null,"Kind 5",6,{"$f":"VLOOKUP(G5,Förderangebote!D38:D43,1,0)","v":{"$error":"#N/A"}},6,{"$f":"VLOOKUP($D$349,Förderangebote!$A$38:$E$43,3,0)","v":0}]
[null,null,"Kind 6",6,{"$f":"VLOOKUP(G6,Förderangebote!E38:E43,1,0)","v":{"$error":"#N/A"}},6,{"$f":"VLOOKUP($D$349,Förderangebote!$A$38:$E$43,3,0)","v":0}]
[null,null,"Kind 7",6,{"$f":"VLOOKUP(G7,Förderangebote!E38:E43,1,0)","v":{"$error":"#N/A"}},6,{"$f":"VLOOKUP($D$349,Förderangebote!$A$38:$E$43,3,0)","v":0}]
[null,null,"Kind 8",6,{"$f":"VLOOKUP(G8,Förderangebote!E38:E43,1,0)","v":{"$error":"#N/A"}},6,{"$f":"VLOOKUP($D$349,Förderangebote!$A$38:$E$43,3,0)","v":0}]
[null,null,"Kind 9",6,{"$f":"VLOOKUP(G9,Förderangebote!E38:E43,1,0)","v":{"$error":"#N/A"}},6,{"$f":"VLOOKUP($D$349,Förderangebote!$A$38:$E$43,3,0)","v":0}]
[null,null,"Kind 10",6,{"$f":"VLOOKUP(G10,Förderangebote!E38:E43,1,0)","v":{"$error":"#N/A"}},6,{"$f":"VLOOKUP($D$349,Förderangebote!$A$38:$E$43,3,0)","v":0}]
[null,null,"Kind 1",7,{"$f":"VLOOKUP(G1,Förderangebote!D47:D51,1,0)","v":{"$error":"#N/A"}},7,{"$f":"VLOOKUP($D$359,Förderangebote!$A$47:$E$52,3,0)","v":0}]
[null,null,"Kind 2",7,{"$f":"VLOOKUP(G2,Förderangebote!D47:D51,1,0)","v":{"$error":"#N/A"}},7,{"$f":"VLOOKUP($D$359,Förderangebote!$A$47:$E$52,3,0)","v":0}]
[null,null,"Kind 3",7,{"$f":"VLOOKUP(G3,Förderangebote!D47:D51,1,0)","v":{"$error":"#N/A"}},7,{"$f":"VLOOKUP($D$359,Förderangebote!$A$47:$E$52,3,0)","v":0}]
[null,null,"Kind 4",7,{"$f":"VLOOKUP(G4,Förderangebote!D47:D51,1,0)","v":{"$error":"#N/A"}},7,{"$f":"VLOOKUP($D$359,Förderangebote!$A$47:$E$52,3,0)","v":0}]
[null,null,"Kind 5",7,{"$f":"VLOOKUP(G5,Förderangebote!D47:D51,1,0)","v":{"$error":"#N/A"}},7,{"$f":"VLOOKUP($D$359,Förderangebote!$A$47:$E$52,3,0)","v":0}]
[null,null,"Kind 6",7,{"$f":"VLOOKUP(G6,Förderangebote!E47:E51,1,0)","v":{"$error":"#N/A"}},7,{"$f":"VLOOKUP($D$359,Förderangebote!$A$47:$E$52,3,0)","v":0}]
[null,null,"Kind 7",7,{"$f":"VLOOKUP(G7,Förderangebote!E47:E51,1,0)","v":{"$error":"#N/A"}},7,{"$f":"VLOOKUP($D$359,Förderangebote!$A$47:$E$52,3,0)","v":0}]
[null,null,"Kind 8",7,{"$f":"VLOOKUP(G8,Förderangebote!E47:E51,1,0)","v":{"$error":"#N/A"}},7,{"$f":"VLOOKUP($D$359,Förderangebote!$A$47:$E$52,3,0)","v":0}]
[null,null,"Kind 9",7,{"$f":"VLOOKUP(G9,Förderangebote!E47:E51,1,0)","v":{"$error":"#N/A"}},7,{"$f":"VLOOKUP($D$359,Förderangebote!$A$47:$E$52,3,0)","v":0}]
[null,null,"Kind 10",7,{"$f":"VLOOKUP(G10,Förderangebote!E47:E51,1,0)","v":{"$error":"#N/A"}},7,{"$f":"VLOOKUP($D$359,Förderangebote!$A$47:$E$52,3,0)","v":0}]
[null,null,"Kind 1",8,{"$f":"VLOOKUP(G1,Förderangebote!D53:D57,1,0)","v":{"$error":"#N/A"}},8,{"$f":"VLOOKUP($D$369,Förderangebote!$A$53:$E$58,3,0)","v":0}]
[null,null,"Kind 2",8,{"$f":"VLOOKUP(G2,Förderangebote!D53:D57,1,0)","v":{"$error":"#N/A"}},8,{"$f":"VLOOKUP($D$369,Förderangebote!$A$53:$E$58,3,0)","v":0}]
[null,null,"Kind 3",8,{"$f":"VLOOKUP(G3,Förderangebote!D53:D57,1,0)","v":{"$error":"#N/A"}},8,{"$f":"VLOOKUP($D$369,Förderangebote!$A$53:$E$58,3,0)","v":0}]
[null,null,"Kind 4",8,{"$f":"VLOOKUP(G4,Förderangebote!D53:D57,1,0)","v":{"$error":"#N/A"}},8,{"$f":"VLOOKUP($D$369,Förderangebote!$A$53:$E$58,3,0)","v":0}]
[null,null,"Kind 5",8,{"$f":"VLOOKUP(G5,Förderangebote!D53:D57,1,0)","v":{"$error":"#N/A"}},8,{"$f":"VLOOKUP($D$369,Förderangebote!$A$53:$E$58,3,0)","v":0}]
[null,null,"Kind 6",8,{"$f":"VLOOKUP(G6,Förderangebote!E53:E57,1,0)","v":{"$error":"#N/A"}},8,{"$f":"VLOOKUP($D$369,Förderangebote!$A$53:$E$58,3,0)","v":0}]
[null,null,"Kind 7",8,{"$f":"VLOOKUP(G7,Förderangebote!E53:E57,1,0)","v":{"$error":"#N/A"}},8,{"$f":"VLOOKUP($D$369,Förderangebote!$A$53:$E$58,3,0)","v":0}]
[null,null,"Kind 8",8,{"$f":"VLOOKUP(G8,Förderangebote!E53:E57,1,0)","v":{"$error":"#N/A"}},8,{"$f":"VLOOKUP($D$369,Förderangebote!$A$53:$E$58,3,0)","v":0}]
[null,null,"Kind 9",8,{"$f":"VLOOKUP(G9,Förderangebote!E53:E57,1,0)","v":{"$error":"#N/A"}},8,{"$f":"VLOOKUP($D$369,Förderangebote!$A$53:$E$58,3,0)","v":0}]
[null,null,"Kind 10",8,{"$f":"VLOOKUP(G10,Förderangebote!E53:E57,1,0)","v":{"$error":"#N/A"}},8,{"$f":"VLOOKUP($D$369,Förderangebote!$A$53:$E$58,3,0)","v":0}]
[null,null,"Kind 1",9,{"$f":"VLOOKUP(G1,Förderangebote!D59:D63,1,0)","v":{"$error":"#N/A"}},9,{"$f":"VLOOKUP($D$379,Förderangebote!$A$59:$E$64,3,0)","v":0}]
[null,null,"Kind 2",9,{"$f":"VLOOKUP(G2,Förderangebote!D59:D63,1,0)","v":{"$error":"#N/A"}},9,{"$f":"VLOOKUP($D$379,Förderangebote!$A$59:$E$64,3,0)","v":0}]
[null,null,"Kind 3",9,{"$f":"VLOOKUP(G3,Förderangebote!D59:D63,1,0)","v":{"$error":"#N/A"}},9,{"$f":"VLOOKUP($D$379,Förderangebote!$A$59:$E$64,3,0)","v":0}]
[null,null,"Kind 4",9,{"$f":"VLOOKUP(G4,Förderangebote!D59:D63,1,0)","v":{"$error":"#N/A"}},9,{"$f":"VLOOKUP($D$379,Förderangebote!$A$59:$E$64,3,0)","v":0}]
[null,null,"Kind 5",9,{"$f":"VLOOKUP(G5,Förderangebote!D59:D63,1,0)","v":{"$error":"#N/A"}},9,{"$f":"VLOOKUP($D$379,Förderangebote!$A$59:$E$64,3,0)","v":0}]
[null,null,"Kind 6",9,{"$f":"VLOOKUP(G6,Förderangebote!E59:E63,1,0)","v":{"$error":"#N/A"}},9,{"$f":"VLOOKUP($D$379,Förderangebote!$A$59:$E$64,3,0)","v":0}]
[null,null,"Kind 7",9,{"$f":"VLOOKUP(G7,Förderangebote!E59:E63,1,0)","v":{"$error":"#N/A"}},9,{"$f":"VLOOKUP($D$379,Förderangebote!$A$59:$E$64,3,0)","v":0}]
[null,null,"Kind 8",9,{"$f":"VLOOKUP(G8,Förderangebote!E59:E63,1,0)","v":{"$error":"#N/A"}},9,{"$f":"VLOOKUP($D$379,Förderangebote!$A$59:$E$64,3,0)","v":0}]
[null,null,"Kind 9",9,{"$f":"VLOOKUP(G9,Förderangebote!E59:E63,1,0)","v":{"$error":"#N/A"}},9,{"$f":"VLOOKUP($D$379,Förderangebote!$A$59:$E$64,3,0)","v":0}]
[null,null,"Kind 10",9,{"$f":"VLOOKUP(G10,Förderangebote!E59:E63,1,0)","v":{"$error":"#N/A"}},9,{"$f":"VLOOKUP($D$379,Förderangebote!$A$59:$E$64,3,0)","v":0}]
[null,null,"Kind 1",10,{"$f":"VLOOKUP(G1,Förderangebote!D68:D72,1,0)","v":{"$error":"#N/A"}},10,{"$f":"VLOOKUP($D$389,Förderangebote!$A$68:$E$73,3,0)","v":0}]
[null,null,"Kind 2",10,{"$f":"VLOOKUP(G2,Förderangebote!D68:D72,1,0)","v":{"$error":"#N/A"}},10,{"$f":"VLOOKUP($D$389,Förderangebote!$A$68:$E$73,3,0)","v":0}]
[null,null,"Kind 3",10,{"$f":"VLOOKUP(G3,Förderangebote!D68:D72,1,0)","v":{"$error":"#N/A"}},10,{"$f":"VLOOKUP($D$389,Förderangebote!$A$68:$E$73,3,0)","v":0}]
[null,null,"Kind 4",10,{"$f":"VLOOKUP(G4,Förderangebote!D68:D72,1,0)","v":{"$error":"#N/A"}},10,{"$f":"VLOOKUP($D$389,Förderangebote!$A$68:$E$73,3,0)","v":0}]
[null,null,"Kind 5",10,{"$f":"VLOOKUP(G5,Förderangebote!D68:D72,1,0)","v":{"$error":"#N/A"}},10,{"$f":"VLOOKUP($D$389,Förderangebote!$A$68:$E$73,3,0)","v":0}]
[null,null,"Kind 6",10,{"$f":"VLOOKUP(G6,Förderangebote!E68:E72,1,0)","v":{"$error":"#N/A"}},10,{"$f":"VLOOKUP($D$389,Förderangebote!$A$68:$E$73,3,0)","v":0}]
[null,null,"Kind 7",10,{"$f":"VLOOKUP(G7,Förderangebote!E68:E72,1,0)","v":{"$error":"#N/A"}},10,{"$f":"VLOOKUP($D$389,Förderangebote!$A$68:$E$73,3,0)","v":0}]
[null,null,"Kind 8",10,{"$f":"VLOOKUP(G8,Förderangebote!E68:E72,1,0)","v":{"$error":"#N/A"}},10,{"$f":"VLOOKUP($D$389,Förderangebote!$A$68:$E$73,3,0)","v":0}]
[null,null,"Kind 9",10,{"$f":"VLOOKUP(G9,Förderangebote!E68:E72,1,0)","v":{"$error":"#N/A"}},10,{"$f":"VLOOKUP($D$389,Förderangebote!$A$68:$E$73,3,0)","v":0}]
[null,null,"Kind 10",10,{"$f":"VLOOKUP(G10,Förderangebote!E68:E72,1,0)","v":{"$error":"#N/A"}},10,{"$f":"VLOOKUP($D$389,Förderangebote!$A$68:$E$73,3,0)","v":0}]
[null,null,"Kind 1",11,{"$f":"VLOOKUP(G1,Förderangebote!D74:D78,1,0)","v":{"$error":"#N/A"}},11,{"$f":"VLOOKUP($D$399,Förderangebote!$A$74:$E$79,3,0)","v":0}]
[null,null,"Kind 2",11,{"$f":"VLOOKUP(G2,Förderangebote!D74:D78,1,0)","v":{"$error":"#N/A"}},11,{"$f":"VLOOKUP($D$399,Förderangebote!$A$74:$E$79,3,0)","v":0}]
[null,null,"Kind 3",11,{"$f":"VLOOKUP(G3,Förderangebote!D74:D78,1,0)","v":{"$error":"#N/A"}},11,{"$f":"VLOOKUP($D$399,Förderangebote!$A$74:$E$79,3,0)","v":0}]
[null,null,"Kind 4",11,{"$f":"VLOOKUP(G4,Förderangebote!D74:D78,1,0)","v":{"$error":"#N/A"}},11,{"$f":"VLOOKUP($D$399,Förderangebote!$A$74:$E$79,3,0)","v":0}]
[null,null,"Kind 5",11,{"$f":"VLOOKUP(G5,Förderangebote!D74:D78,1,0)","v":{"$error":"#N/A"}},11,{"$f":"VLOOKUP($D$399,Förderangebote!$A$74:$E$79,3,0)","v":0}]
[null,null,"Kind 6",11,{"$f":"VLOOKUP(G6,Förderangebote!E74:E78,1,0)","v":{"$error":"#N/A"}},11,{"$f":"VLOOKUP($D$399,Förderangebote!$A$74:$E$79,3,0)","v":0}]
[null,null,"Kind 7",11,{"$f":"VLOOKUP(G7,Förderangebote!E74:E78,1,0)","v":{"$error":"#N/A"}},11,{"$f":"VLOOKUP($D$399,Förderangebote!$A$74:$E$79,3,0)","v":0}]
[null,null,"Kind 8",11,{"$f":"VLOOKUP(G8,Förderangebote!E74:E78,1,0)","v":{"$error":"#N/A"}},11,{"$f":"VLOOKUP($D$399,Förderangebote!$A$74:$E$79,3,0)","v":0}]
[null,null,"Kind 9",11,{"$f":"VLOOKUP(G9,Förderangebote!E74:E78,1,0)","v":{"$error":"#N/A"}},11,{"$f":"VLOOKUP($D$399,Förderangebote!$A$74:$E$79,3,0)","v":0}]
[null,null,"Kind 10",11,{"$f":"VLOOKUP(G10,Förderangebote!E74:E78,1,0)","v":{"$error":"#N/A"}},11,{"$f":"VLOOKUP($D$399,Förderangebote!$A$74:$E$79,3,0)","v":0}]
[null,null,"Kind 1",12,{"$f":"VLOOKUP(G1,Förderangebote!D80:D84,1,0)","v":{"$error":"#N/A"}},12,{"$f":"VLOOKUP($D$409,Förderangebote!$A$80:$E$85,3,0)","v":0}]
[null,null,"Kind 2",12,{"$f":"VLOOKUP(G2,Förderangebote!D80:D84,1,0)","v":{"$error":"#N/A"}},12,{"$f":"VLOOKUP($D$409,Förderangebote!$A$80:$E$85,3,0)","v":0}]
[null,null,"Kind 3",12,{"$f":"VLOOKUP(G3,Förderangebote!D80:D84,1,0)","v":{"$error":"#N/A"}},12,{"$f":"VLOOKUP($D$409,Förderangebote!$A$80:$E$85,3,0)","v":0}]
[null,null,"Kind 4",12,{"$f":"VLOOKUP(G4,Förderangebote!D80:D84,1,0)","v":{"$error":"#N/A"}},12,{"$f":"VLOOKUP($D$409,Förderangebote!$A$80:$E$85,3,0)","v":0}]
[null,null,"Kind 5",12,{"$f":"VLOOKUP(G5,Förderangebote!D80:D84,1,0)","v":{"$error":"#N/A"}},12,{"$f":"VLOOKUP($D$409,Förderangebote!$A$80:$E$85,3,0)","v":0}]
[null,null,"Kind 6",12,{"$f":"VLOOKUP(G6,Förderangebote!E80:E84,1,0)","v":{"$error":"#N/A"}},12,{"$f":"VLOOKUP($D$409,Förderangebote!$A$80:$E$85,3,0)","v":0}]
[null,null,"Kind 7",12,{"$f":"VLOOKUP(G7,Förderangebote!E80:E84,1,0)","v":{"$error":"#N/A"}},12,{"$f":"VLOOKUP($D$409,Förderangebote!$A$80:$E$85,3,0)","v":0}]
[null,null,"Kind 8",12,{"$f":"VLOOKUP(G8,Förderangebote!E80:E84,1,0)","v":{"$error":"#N/A"}},12,{"$f":"VLOOKUP($D$409,Förderangebote!$A$80:$E$85,3,0)","v":0}]
[null,null,"Kind 9",12,{"$f":"VLOOKUP(G9,Förderangebote!E80:E84,1,0)","v":{"$error":"#N/A"}},12,{"$f":"VLOOKUP($D$409,Förderangebote!$A$80:$E$85,3,0)","v":0}]
[null,null,"Kind 10",12,{"$f":"VLOOKUP(G10,Förderangebote!E80:E84,1,0)","v":{"$error":"#N/A"}},12,{"$f":"VLOOKUP($D$409,Förderangebote!$A$80:$E$85,3,0)","v":0}]
[null,null,"Kind 1",13,{"$f":"VLOOKUP(G1,Förderangebote!D89:D93,1,0)","v":{"$error":"#N/A"}},13,{"$f":"VLOOKUP($D$419,Förderangebote!$A$89:$E$94,3,0)","v":0}]
[null,null,"Kind 2",13,{"$f":"VLOOKUP(G2,Förderangebote!D89:D93,1,0)","v":{"$error":"#N/A"}},13,{"$f":"VLOOKUP($D$419,Förderangebote!$A$89:$E$94,3,0)","v":0}]
[null,null,"Kind 3",13,{"$f":"VLOOKUP(G3,Förderangebote!D89:D93,1,0)","v":{"$error":"#N/A"}},13,{"$f":"VLOOKUP($D$419,Förderangebote!$A$89:$E$94,3,0)","v":0}]
[null,null,"Kind 4",13,{"$f":"VLOOKUP(G4,Förderangebote!D89:D93,1,0)","v":{"$error":"#N/A"}},13,{"$f":"VLOOKUP($D$419,Förderangebote!$A$89:$E$94,3,0)","v":0}]
[null,null,"Kind 5",13,{"$f":"VLOOKUP(G5,Förderangebote!D89:D93,1,0)","v":{"$error":"#N/A"}},13,{"$f":"VLOOKUP($D$419,Förderangebote!$A$89:$E$94,3,0)","v":0}]
[null,null,"Kind 6",13,{"$f":"VLOOKUP(G6,Förderangebote!E89:E93,1,0)","v":{"$error":"#N/A"}},13,{"$f":"VLOOKUP($D$419,Förderangebote!$A$89:$E$94,3,0)","v":0}]
[null,null,"Kind 7",13,{"$f":"VLOOKUP(G7,Förderangebote!E89:E93,1,0)","v":{"$error":"#N/A"}},13,{"$f":"VLOOKUP($D$419,Förderangebote!$A$89:$E$94,3,0)","v":0}]
[null,null,"Kind 8",13,{"$f":"VLOOKUP(G8,Förderangebote!E89:E93,1,0)","v":{"$error":"#N/A"}},13,{"$f":"VLOOKUP($D$419,Förderangebote!$A$89:$E$94,3,0)","v":0}]
[null,null,"Kind 9",13,{"$f":"VLOOKUP(G9,Förderangebote!E89:E93,1,0)","v":{"$error":"#N/A"}},13,{"$f":"VLOOKUP($D$419,Förderangebote!$A$89:$E$94,3,0)","v":0}]
[null,null,"Kind 10",13,{"$f":"VLOOKUP(G10,Förderangebote!E89:E93,1,0)","v":{"$error":"#N/A"}},13,{"$f":"VLOOKUP($D$419,Förderangebote!$A$89:$E$94,3,0)","v":0}]
[null,null,"Kind 1",14,{"$f":"VLOOKUP(G1,Förderangebote!D95:D99,1,0)","v":{"$error":"#N/A"}},14,{"$f":"VLOOKUP($D$429,Förderangebote!$A$95:$E$100,3,0)","v":0}]
[null,null,"Kind 2",14,{"$f":"VLOOKUP(G2,Förderangebote!D95:D99,1,0)","v":{"$error":"#N/A"}},14,{"$f":"VLOOKUP($D$429,Förderangebote!$A$95:$E$100,3,0)","v":0}]
[null,null,"Kind 3",14,{"$f":"VLOOKUP(G3,Förderangebote!D95:D99,1,0)","v":{"$error":"#N/A"}},14,{"$f":"VLOOKUP($D$429,Förderangebote!$A$95:$E$100,3,0)","v":0}]
[null,null,"Kind 4",14,{"$f":"VLOOKUP(G4,Förderangebote!D95:D99,1,0)","v":{"$error":"#N/A"}},14,{"$f":"VLOOKUP($D$429,Förderangebote!$A$95:$E$100,3,0)","v":0}]
[null,null,"Kind 5",14,{"$f":"VLOOKUP(G5,Förderangebote!D95:D99,1,0)","v":{"$error":"#N/A"}},14,{"$f":"VLOOKUP($D$429,Förderangebote!$A$95:$E$100,3,0)","v":0}]
[null,null,"Kind 6",14,{"$f":"VLOOKUP(G6,Förderangebote!E95:E99,1,0)","v":{"$error":"#N/A"}},14,{"$f":"VLOOKUP($D$429,Förderangebote!$A$95:$E$100,3,0)","v":0}]
[null,null,"Kind 7",14,{"$f":"VLOOKUP(G7,Förderangebote!E95:E99,1,0)","v":{"$error":"#N/A"}},14,{"$f":"VLOOKUP($D$429,Förderangebote!$A$95:$E$100,3,0)","v":0}]
[null,null,"Kind 8",14,{"$f":"VLOOKUP(G8,Förderangebote!E95:E99,1,0)","v":{"$error":"#N/A"}},14,{"$f":"VLOOKUP($D$429,Förderangebote!$A$95:$E$100,3,0)","v":0}]
[null,null,"Kind 9",14,{"$f":"VLOOKUP(G9,Förderangebote!E95:E99,1,0)","v":{"$error":"#N/A"}},14,{"$f":"VLOOKUP($D$429,Förderangebote!$A$95:$E$100,3,0)","v":0}]
[null,null,"Kind 10",14,{"$f":"VLOOKUP(G10,Förderangebote!E95:E99,1,0)","v":{"$error":"#N/A"}},14,{"$f":"VLOOKUP($D$429,Förderangebote!$A$95:$E$100,3,0)","v":0}]
[null,null,"Kind 1",15,{"$f":"VLOOKUP(G1,Förderangebote!D101:D105,1,0)","v":{"$error":"#N/A"}},15,{"$f":"VLOOKUP($D$439,Förderangebote!$A$101:$E$106,3,0)","v":0}]
[null,null,"Kind 2",15,{"$f":"VLOOKUP(G2,Förderangebote!D101:D105,1,0)","v":{"$error":"#N/A"}},15,{"$f":"VLOOKUP($D$439,Förderangebote!$A$101:$E$106,3,0)","v":0}]
[null,null,"Kind 3",15,{"$f":"VLOOKUP(G3,Förderangebote!D101:D105,1,0)","v":{"$error":"#N/A"}},15,{"$f":"VLOOKUP($D$439,Förderangebote!$A$101:$E$106,3,0)","v":0}]
[null,null,"Kind 4",15,{"$f":"VLOOKUP(G4,Förderangebote!D101:D105,1,0)","v":{"$error":"#N/A"}},15,{"$f":"VLOOKUP($D$439,Förderangebote!$A$101:$E$106,3,0)","v":0}]
[null,null,"Kind 5",15,{"$f":"VLOOKUP(G5,Förderangebote!D101:D105,1,0)","v":{"$error":"#N/A"}},15,{"$f":"VLOOKUP($D$439,Förderangebote!$A$101:$E$106,3,0)","v":0}]
[null,null,"Kind 6",15,{"$f":"VLOOKUP(G6,Förderangebote!E101:E105,1,0)","v":{"$error":"#N/A"}},15,{"$f":"VLOOKUP($D$439,Förderangebote!$A$101:$E$106,3,0)","v":0}]
[null,null,"Kind 7",15,{"$f":"VLOOKUP(G7,Förderangebote!E101:E105,1,0)","v":{"$error":"#N/A"}},15,{"$f":"VLOOKUP($D$439,Förderangebote!$A$101:$E$106,3,0)","v":0}]
[null,null,"Kind 8",15,{"$f":"VLOOKUP(G8,Förderangebote!E101:E105,1,0)","v":{"$error":"#N/A"}},15,{"$f":"VLOOKUP($D$439,Förderangebote!$A$101:$E$106,3,0)","v":0}]
[null,null,"Kind 9",15,{"$f":"VLOOKUP(G9,Förderangebote!E101:E105,1,0)","v":{"$error":"#N/A"}},15,{"$f":"VLOOKUP($D$439,Förderangebote!$A$101:$E$106,3,0)","v":0}]
[null,null,"Kind 10",15,{"$f":"VLOOKUP(G10,Förderangebote!E101:E105,1,0)","v":{"$error":"#N/A"}},15,{"$f":"VLOOKUP($D$439,Förderangebote!$A$101:$E$106,3,0)","v":0}]
[null,null,"Kind 1",16,{"$f":"VLOOKUP(G1,Förderangebote!D110:D114,1,0)","v":{"$error":"#N/A"}},16,{"$f":"VLOOKUP($D$449,Förderangebote!$A$110:$E$115,3,0)","v":0}]
[null,null,"Kind 2",16,{"$f":"VLOOKUP(G2,Förderangebote!D110:D114,1,0)","v":{"$error":"#N/A"}},16,{"$f":"VLOOKUP($D$449,Förderangebote!$A$110:$E$115,3,0)","v":0}]
[null,null,"Kind 3",16,{"$f":"VLOOKUP(G3,Förderangebote!D110:D114,1,0)","v":{"$error":"#N/A"}},16,{"$f":"VLOOKUP($D$449,Förderangebote!$A$110:$E$115,3,0)","v":0}]
[null,null,"Kind 4",16,{"$f":"VLOOKUP(G4,Förderangebote!D110:D114,1,0)","v":{"$error":"#N/A"}},16,{"$f":"VLOOKUP($D$449,Förderangebote!$A$110:$E$115,3,0)","v":0}]
[null,null,"Kind 5",16,{"$f":"VLOOKUP(G5,Förderangebote!D110:D114,1,0)","v":{"$error":"#N/A"}},16,{"$f":"VLOOKUP($D$449,Förderangebote!$A$110:$E$115,3,0)","v":0}]
[null,null,"Kind 6",16,{"$f":"VLOOKUP(G6,Förderangebote!E110:E114,1,0)","v":{"$error":"#N/A"}},16,{"$f":"VLOOKUP($D$449,Förderangebote!$A$110:$E$115,3,0)","v":0}]
[null,null,"Kind 7",16,{"$f":"VLOOKUP(G7,Förderangebote!E110:E114,1,0)","v":{"$error":"#N/A"}},16,{"$f":"VLOOKUP($D$449,Förderangebote!$A$110:$E$115,3,0)","v":0}]
[null,null,"Kind 8",16,{"$f":"VLOOKUP(G8,Förderangebote!E110:E114,1,0)","v":{"$error":"#N/A"}},16,{"$f":"VLOOKUP($D$449,Förderangebote!$A$110:$E$115,3,0)","v":0}]
[null,null,"Kind 9",16,{"$f":"VLOOKUP(G9,Förderangebote!E110:E114,1,0)","v":{"$error":"#N/A"}},16,{"$f":"VLOOKUP($D$449,Förderangebote!$A$110:$E$115,3,0)","v":0}]
[null,null,"Kind 10",16,{"$f":"VLOOKUP(G10,Förderangebote!E110:E114,1,0)","v":{"$error":"#N/A"}},16,{"$f":"VLOOKUP($D$449,Förderangebote!$A$110:$E$115,3,0)","v":0}]
[null,null,"Kind 1",17,{"$f":"VLOOKUP(G1,Förderangebote!D116:D120,1,0)","v":{"$error":"#N/A"}},17,{"$f":"VLOOKUP($D$459,Förderangebote!$A$116:$E$121,3,0)","v":0}]
[null,null,"Kind 2",17,{"$f":"VLOOKUP(G2,Förderangebote!D116:D120,1,0)","v":{"$error":"#N/A"}},17,{"$f":"VLOOKUP($D$459,Förderangebote!$A$116:$E$121,3,0)","v":0}]
[null,null,"Kind 3",17,{"$f":"VLOOKUP(G3,Förderangebote!D116:D120,1,0)","v":{"$error":"#N/A"}},17,{"$f":"VLOOKUP($D$459,Förderangebote!$A$116:$E$121,3,0)","v":0}]
[null,null,"Kind 4",17,{"$f":"VLOOKUP(G4,Förderangebote!D116:D120,1,0)","v":{"$error":"#N/A"}},17,{"$f":"VLOOKUP($D$459,Förderangebote!$A$116:$E$121,3,0)","v":0}]
[null,null,"Kind 5",17,{"$f":"VLOOKUP(G5,Förderangebote!D116:D120,1,0)","v":{"$error":"#N/A"}},17,{"$f":"VLOOKUP($D$459,Förderangebote!$A$116:$E$121,3,0)","v":0}]
[null,null,"Kind 6",17,{"$f":"VLOOKUP(G6,Förderangebote!E116:E120,1,0)","v":{"$error":"#N/A"}},17,{"$f":"VLOOKUP($D$459,Förderangebote!$A$116:$E$121,3,0)","v":0}]
[null,null,"Kind 7",17,{"$f":"VLOOKUP(G7,Förderangebote!E116:E120,1,0)","v":{"$error":"#N/A"}},17,{"$f":"VLOOKUP($D$459,Förderangebote!$A$116:$E$121,3,0)","v":0}]
[null,null,"Kind 8",17,{"$f":"VLOOKUP(G8,Förderangebote!E116:E120,1,0)","v":{"$error":"#N/A"}},17,{"$f":"VLOOKUP($D$459,Förderangebote!$A$116:$E$121,3,0)","v":0}]
[null,null,"Kind 9",17,{"$f":"VLOOKUP(G9,Förderangebote!E116:E120,1,0)","v":{"$error":"#N/A"}},17,{"$f":"VLOOKUP($D$459,Förderangebote!$A$116:$E$121,3,0)","v":0}]
[null,null,"Kind 10",17,{"$f":"VLOOKUP(G10,Förderangebote!E116:E120,1,0)","v":{"$error":"#N/A"}},17,{"$f":"VLOOKUP($D$459,Förderangebote!$A$116:$E$121,3,0)","v":0}]
[null,null,"Kind 1",18,{"$f":"VLOOKUP(G1,Förderangebote!D122:D126,1,0)","v":{"$error":"#N/A"}},18,{"$f":"VLOOKUP($D$469,Förderangebote!$A$122:$E$127,3,0)","v":0}]
[null,null,"Kind 2",18,{"$f":"VLOOKUP(G2,Förderangebote!D122:D126,1,0)","v":{"$error":"#N/A"}},18,{"$f":"VLOOKUP($D$469,Förderangebote!$A$122:$E$127,3,0)","v":0}]
[null,null,"Kind 3",18,{"$f":"VLOOKUP(G3,Förderangebote!D122:D126,1,0)","v":{"$error":"#N/A"}},18,{"$f":"VLOOKUP($D$469,Förderangebote!$A$122:$E$127,3,0)","v":0}]
[null,null,"Kind 4",18,{"$f":"VLOOKUP(G4,Förderangebote!D122:D126,1,0)","v":{"$error":"#N/A"}},18,{"$f":"VLOOKUP($D$469,Förderangebote!$A$122:$E$127,3,0)","v":0}]
[null,null,"Kind 5",18,{"$f":"VLOOKUP(G5,Förderangebote!D122:D126,1,0)","v":{"$error":"#N/A"}},18,{"$f":"VLOOKUP($D$469,Förderangebote!$A$122:$E$127,3,0)","v":0}]
[null,null,"Kind 6",18,{"$f":"VLOOKUP(G6,Förderangebote!E122:E126,1,0)","v":{"$error":"#N/A"}},18,{"$f":"VLOOKUP($D$469,Förderangebote!$A$122:$E$127,3,0)","v":0}]
[null,null,"Kind 7",18,{"$f":"VLOOKUP(G7,Förderangebote!E122:E126,1,0)","v":{"$error":"#N/A"}},18,{"$f":"VLOOKUP($D$469,Förderangebote!$A$122:$E$127,3,0)","v":0}]
[null,null,"Kind 8",18,{"$f":"VLOOKUP(G8,Förderangebote!E122:E126,1,0)","v":{"$error":"#N/A"}},18,{"$f":"VLOOKUP($D$469,Förderangebote!$A$122:$E$127,3,0)","v":0}]
[null,null,"Kind 9",18,{"$f":"VLOOKUP(G9,Förderangebote!E122:E126,1,0)","v":{"$error":"#N/A"}},18,{"$f":"VLOOKUP($D$469,Förderangebote!$A$122:$E$127,3,0)","v":0}]
[null,null,"Kind 10",18,{"$f":"VLOOKUP(G10,Förderangebote!E122:E126,1,0)","v":{"$error":"#N/A"}},18,{"$f":"VLOOKUP($D$469,Förderangebote!$A$122:$E$127,3,0)","v":0}]
[null,null,"Kind 1",19,{"$f":"VLOOKUP(G1,Förderangebote!D131:D135,1,0)","v":{"$error":"#N/A"}},19,{"$f":"VLOOKUP($D$479,Förderangebote!$A$131:$E$136,3,0)","v":0}]
[null,null,"Kind 2",19,{"$f":"VLOOKUP(G2,Förderangebote!D131:D135,1,0)","v":{"$error":"#N/A"}},19,{"$f":"VLOOKUP($D$479,Förderangebote!$A$131:$E$136,3,0)","v":0}]
[null,null,"Kind 3",19,{"$f":"VLOOKUP(G3,Förderangebote!D131:D135,1,0)","v":{"$error":"#N/A"}},19,{"$f":"VLOOKUP($D$479,Förderangebote!$A$131:$E$136,3,0)","v":0}]
[null,null,"Kind 4",19,{"$f":"VLOOKUP(G4,Förderangebote!D131:D135,1,0)","v":{"$error":"#N/A"}},19,{"$f":"VLOOKUP($D$479,Förderangebote!$A$131:$E$136,3,0)","v":0}]
[null,null,"Kind 5",19,{"$f":"VLOOKUP(G5,Förderangebote!D131:D135,1,0)","v":{"$error":"#N/A"}},19,{"$f":"VLOOKUP($D$479,Förderangebote!$A$131:$E$136,3,0)","v":0}]
[null,null,"Kind 6",19,{"$f":"VLOOKUP(G6,Förderangebote!E131:E135,1,0)","v":{"$error":"#N/A"}},19,{"$f":"VLOOKUP($D$479,Förderangebote!$A$131:$E$136,3,0)","v":0}]
[null,null,"Kind 7",19,{"$f":"VLOOKUP(G7,Förderangebote!E131:E135,1,0)","v":{"$error":"#N/A"}},19,{"$f":"VLOOKUP($D$479,Förderangebote!$A$131:$E$136,3,0)","v":0}]
[null,null,"Kind 8",19,{"$f":"VLOOKUP(G8,Förderangebote!E131:E135,1,0)","v":{"$error":"#N/A"}},19,{"$f":"VLOOKUP($D$479,Förderangebote!$A$131:$E$136,3,0)","v":0}]
[null,null,"Kind 9",19,{"$f":"VLOOKUP(G9,Förderangebote!E131:E135,1,0)","v":{"$error":"#N/A"}},19,{"$f":"VLOOKUP($D$479,Förderangebote!$A$131:$E$136,3,0)","v":0}]
[null,null,"Kind 10",19,{"$f":"VLOOKUP(G10,Förderangebote!E131:E135,1,0)","v":{"$error":"#N/A"}},19,{"$f":"VLOOKUP($D$479,Förderangebote!$A$131:$E$136,3,0)","v":0}]
[null,null,"Kind 1",20,{"$f":"VLOOKUP(G1,Förderangebote!D137:D141,1,0)","v":{"$error":"#N/A"}},20,{"$f":"VLOOKUP($D$489,Förderangebote!$A$137:$E$142,3,0)","v":0}]
[null,null,"Kind 2",20,{"$f":"VLOOKUP(G2,Förderangebote!D137:D141,1,0)","v":{"$error":"#N/A"}},20,{"$f":"VLOOKUP($D$489,Förderangebote!$A$137:$E$142,3,0)","v":0}]
[null,null,"Kind 3",20,{"$f":"VLOOKUP(G3,Förderangebote!D137:D141,1,0)","v":{"$error":"#N/A"}},20,{"$f":"VLOOKUP($D$489,Förderangebote!$A$137:$E$142,3,0)","v":0}]
[null,null,"Kind 4",20,{"$f":"VLOOKUP(G4,Förderangebote!D137:D141,1,0)","v":{"$error":"#N/A"}},20,{"$f":"VLOOKUP($D$489,Förderangebote!$A$137:$E$142,3,0)","v":0}]
[null,null,"Kind 5",20,{"$f":"VLOOKUP(G5,Förderangebote!D137:D141,1,0)","v":{"$error":"#N/A"}},20,{"$f":"VLOOKUP($D$489,Förderangebote!$A$137:$E$142,3,0)","v":0}]
[null,null,"Kind 6",20,{"$f":"VLOOKUP(G6,Förderangebote!E137:E141,1,0)","v":{"$error":"#N/A"}},20,{"$f":"VLOOKUP($D$489,Förderangebote!$A$137:$E$142,3,0)","v":0}]
[null,null,"Kind 7",20,{"$f":"VLOOKUP(G7,Förderangebote!E137:E141,1,0)","v":{"$error":"#N/A"}},20,{"$f":"VLOOKUP($D$489,Förderangebote!$A$137:$E$142,3,0)","v":0}]
[null,null,"Kind 8",20,{"$f":"VLOOKUP(G8,Förderangebote!E137:E141,1,0)","v":{"$error":"#N/A"}},20,{"$f":"VLOOKUP($D$489,Förderangebote!$A$137:$E$142,3,0)","v":0}]
[null,null,"Kind 9",20,{"$f":"VLOOKUP(G9,Förderangebote!E137:E141,1,0)","v":{"$error":"#N/A"}},20,{"$f":"VLOOKUP($D$489,Förderangebote!$A$137:$E$142,3,0)","v":0}]
[null,null,"Kind 10",20,{"$f":"VLOOKUP(G10,Förderangebote!E137:E141,1,0)","v":{"$error":"#N/A"}},20,{"$f":"VLOOKUP($D$489,Förderangebote!$A$137:$E$142,3,0)","v":0}]
[null,null,"Kind 1",21,{"$f":"VLOOKUP(G1,Förderangebote!D143:D147,1,0)","v":{"$error":"#N/A"}},21,{"$f":"VLOOKUP($D$499,Förderangebote!$A$143:$E$148,3,0)","v":0}]
[null,null,"Kind 2",21,{"$f":"VLOOKUP(G2,Förderangebote!D143:D147,1,0)","v":{"$error":"#N/A"}},21,{"$f":"VLOOKUP($D$499,Förderangebote!$A$143:$E$148,3,0)","v":0}]
[null,null,"Kind 3",21,{"$f":"VLOOKUP(G3,Förderangebote!D143:D147,1,0)","v":{"$error":"#N/A"}},21,{"$f":"VLOOKUP($D$499,Förderangebote!$A$143:$E$148,3,0)","v":0}]
[null,null,"Kind 4",21,{"$f":"VLOOKUP(G4,Förderangebote!D143:D147,1,0)","v":{"$error":"#N/A"}},21,{"$f":"VLOOKUP($D$499,Förderangebote!$A$143:$E$148,3,0)","v":0}]
[null,null,"Kind 5",21,{"$f":"VLOOKUP(G5,Förderangebote!D143:D147,1,0)","v":{"$error":"#N/A"}},21,{"$f":"VLOOKUP($D$499,Förderangebote!$A$143:$E$148,3,0)","v":0}]
[null,null,"Kind 6",21,{"$f":"VLOOKUP(G6,Förderangebote!E143:E147,1,0)","v":{"$error":"#N/A"}},21,{"$f":"VLOOKUP($D$499,Förderangebote!$A$143:$E$148,3,0)","v":0}]
[null,null,"Kind 7",21,{"$f":"VLOOKUP(G7,Förderangebote!E143:E147,1,0)","v":{"$error":"#N/A"}},21,{"$f":"VLOOKUP($D$499,Förderangebote!$A$143:$E$148,3,0)","v":0}]
[null,null,"Kind 8",21,{"$f":"VLOOKUP(G8,Förderangebote!E143:E147,1,0)","v":{"$error":"#N/A"}},21,{"$f":"VLOOKUP($D$499,Förderangebote!$A$143:$E$148,3,0)","v":0}]
[null,null,"Kind 9",21,{"$f":"VLOOKUP(G9,Förderangebote!E143:E147,1,0)","v":{"$error":"#N/A"}},21,{"$f":"VLOOKUP($D$499,Förderangebote!$A$143:$E$148,3,0)","v":0}]
[null,null,"Kind 10",21,{"$f":"VLOOKUP(G10,Förderangebote!E143:E147,1,0)","v":{"$error":"#N/A"}},21,{"$f":"VLOOKUP($D$499,Förderangebote!$A$143:$E$148,3,0)","v":0}]
[null,null,"Kind 1",22,{"$f":"VLOOKUP(G1,Förderangebote!D152:D156,1,0)","v":{"$error":"#N/A"}},22,{"$f":"VLOOKUP($D$509,Förderangebote!$A$152:$E$157,3,0)","v":0}]
[null,null,"Kind 2",22,{"$f":"VLOOKUP(G2,Förderangebote!D152:D156,1,0)","v":{"$error":"#N/A"}},22,{"$f":"VLOOKUP($D$509,Förderangebote!$A$152:$E$157,3,0)","v":0}]
[null,null,"Kind 3",22,{"$f":"VLOOKUP(G3,Förderangebote!D152:D156,1,0)","v":{"$error":"#N/A"}},22,{"$f":"VLOOKUP($D$509,Förderangebote!$A$152:$E$157,3,0)","v":0}]
[null,null,"Kind 4",22,{"$f":"VLOOKUP(G4,Förderangebote!D152:D156,1,0)","v":{"$error":"#N/A"}},22,{"$f":"VLOOKUP($D$509,Förderangebote!$A$152:$E$157,3,0)","v":0}]
[null,null,"Kind 5",22,{"$f":"VLOOKUP(G5,Förderangebote!D152:D156,1,0)","v":{"$error":"#N/A"}},22,{"$f":"VLOOKUP($D$509,Förderangebote!$A$152:$E$157,3,0)","v":0}]
[null,null,"Kind 6",22,{"$f":"VLOOKUP(G6,Förderangebote!E152:E156,1,0)","v":{"$error":"#N/A"}},22,{"$f":"VLOOKUP($D$509,Förderangebote!$A$152:$E$157,3,0)","v":0}]
[null,null,"Kind 7",22,{"$f":"VLOOKUP(G7,Förderangebote!E152:E156,1,0)","v":{"$error":"#N/A"}},22,{"$f":"VLOOKUP($D$509,Förderangebote!$A$152:$E$157,3,0)","v":0}]
[null,null,"Kind 8",22,{"$f":"VLOOKUP(G8,Förderangebote!E152:E156,1,0)","v":{"$error":"#N/A"}},22,{"$f":"VLOOKUP($D$509,Förderangebote!$A$152:$E$157,3,0)","v":0}]
[null,null,"Kind 9",22,{"$f":"VLOOKUP(G9,Förderangebote!E152:E156,1,0)","v":{"$error":"#N/A"}},22,{"$f":"VLOOKUP($D$509,Förderangebote!$A$152:$E$157,3,0)","v":0}]
[null,null,"Kind 10",22,{"$f":"VLOOKUP(G10,Förderangebote!E152:E156,1,0)","v":{"$error":"#N/A"}},22,{"$f":"VLOOKUP($D$509,Förderangebote!$A$152:$E$157,3,0)","v":0}]
[null,null,"Kind 1",23,{"$f":"VLOOKUP(G1,Förderangebote!D158:D162,1,0)","v":{"$error":"#N/A"}},23,{"$f":"VLOOKUP($D$519,Förderangebote!$A$158:$E$163,3,0)","v":0}]
[null,null,"Kind 2",23,{"$f":"VLOOKUP(G2,Förderangebote!D158:D162,1,0)","v":{"$error":"#N/A"}},23,{"$f":"VLOOKUP($D$519,Förderangebote!$A$158:$E$163,3,0)","v":0}]
[null,null,"Kind 3",23,{"$f":"VLOOKUP(G3,Förderangebote!D158:D162,1,0)","v":{"$error":"#N/A"}},23,{"$f":"VLOOKUP($D$519,Förderangebote!$A$158:$E$163,3,0)","v":0}]
[null,null,"Kind 4",23,{"$f":"VLOOKUP(G4,Förderangebote!D158:D162,1,0)","v":{"$error":"#N/A"}},23,{"$f":"VLOOKUP($D$519,Förderangebote!$A$158:$E$163,3,0)","v":0}]
[null,null,"Kind 5",23,{"$f":"VLOOKUP(G5,Förderangebote!D158:D162,1,0)","v":{"$error":"#N/A"}},23,{"$f":"VLOOKUP($D$519,Förderangebote!$A$158:$E$163,3,0)","v":0}]
[null,null,"Kind 6",23,{"$f":"VLOOKUP(G6,Förderangebote!E158:E162,1,0)","v":{"$error":"#N/A"}},23,{"$f":"VLOOKUP($D$519,Förderangebote!$A$158:$E$163,3,0)","v":0}]
[null,null,"Kind 7",23,{"$f":"VLOOKUP(G7,Förderangebote!E158:E162,1,0)","v":{"$error":"#N/A"}},23,{"$f":"VLOOKUP($D$519,Förderangebote!$A$158:$E$163,3,0)","v":0}]
[null,null,"Kind 8",23,{"$f":"VLOOKUP(G8,Förderangebote!E158:E162,1,0)","v":{"$error":"#N/A"}},23,{"$f":"VLOOKUP($D$519,Förderangebote!$A$158:$E$163,3,0)","v":0}]
[null,null,"Kind 9",23,{"$f":"VLOOKUP(G9,Förderangebote!E158:E162,1,0)","v":{"$error":"#N/A"}},23,{"$f":"VLOOKUP($D$519,Förderangebote!$A$158:$E$163,3,0)","v":0}]
[null,null,"Kind 10",23,{"$f":"VLOOKUP(G10,Förderangebote!E158:E162,1,0)","v":{"$error":"#N/A"}},23,{"$f":"VLOOKUP($D$519,Förderangebote!$A$158:$E$163,3,0)","v":0}]
[null,null,"Kind 1",24,{"$f":"VLOOKUP(G1,Förderangebote!D164:D168,1,0)","v":{"$error":"#N/A"}},24,{"$f":"VLOOKUP($D$529,Förderangebote!$A$164:$E$169,3,0)","v":0}]
[null,null,"Kind 2",24,{"$f":"VLOOKUP(G2,Förderangebote!D164:D168,1,0)","v":{"$error":"#N/A"}},24,{"$f":"VLOOKUP($D$529,Förderangebote!$A$164:$E$169,3,0)","v":0}]
[null,null,"Kind 3",24,{"$f":"VLOOKUP(G3,Förderangebote!D164:D168,1,0)","v":{"$error":"#N/A"}},24,{"$f":"VLOOKUP($D$529,Förderangebote!$A$164:$E$169,3,0)","v":0}]
[null,null,"Kind 4",24,{"$f":"VLOOKUP(G4,Förderangebote!D164:D168,1,0)","v":{"$error":"#N/A"}},24,{"$f":"VLOOKUP($D$529,Förderangebote!$A$164:$E$169,3,0)","v":0}]
[null,null,"Kind 5",24,{"$f":"VLOOKUP(G5,Förderangebote!D164:D168,1,0)","v":{"$error":"#N/A"}},24,{"$f":"VLOOKUP($D$529,Förderangebote!$A$164:$E$169,3,0)","v":0}]
[null,null,"Kind 6",24,{"$f":"VLOOKUP(G6,Förderangebote!E164:E168,1,0)","v":{"$error":"#N/A"}},24,{"$f":"VLOOKUP($D$529,Förderangebote!$A$164:$E$169,3,0)","v":0}]
[null,null,"Kind 7",24,{"$f":"VLOOKUP(G7,Förderangebote!E164:E168,1,0)","v":{"$error":"#N/A"}},24,{"$f":"VLOOKUP($D$529,Förderangebote!$A$164:$E$169,3,0)","v":0}]
[null,null,"Kind 8",24,{"$f":"VLOOKUP(G8,Förderangebote!E164:E168,1,0)","v":{"$error":"#N/A"}},24,{"$f":"VLOOKUP($D$529,Förderangebote!$A$164:$E$169,3,0)","v":0}]
[null,null,"Kind 9",24,{"$f":"VLOOKUP(G9,Förderangebote!E164:E168,1,0)","v":{"$error":"#N/A"}},24,{"$f":"VLOOKUP($D$529,Förderangebote!$A$164:$E$169,3,0)","v":0}]
[null,null,"Kind 10",24,{"$f":"VLOOKUP(G10,Förderangebote!E164:E168,1,0)","v":{"$error":"#N/A"}},24,{"$f":"VLOOKUP($D$529,Förderangebote!$A$164:$E$169,3,0)","v":0}]
[null,null,"Kind 1",25,{"$f":"VLOOKUP(G1,Förderangebote!D173:D177,1,0)","v":{"$error":"#N/A"}},25,{"$f":"VLOOKUP($D$539,Förderangebote!$A$173:$E$178,3,0)","v":0}]
[null,null,"Kind 2",25,{"$f":"VLOOKUP(G2,Förderangebote!D173:D177,1,0)","v":{"$error":"#N/A"}},25,{"$f":"VLOOKUP($D$539,Förderangebote!$A$173:$E$178,3,0)","v":0}]
[null,null,"Kind 3",25,{"$f":"VLOOKUP(G3,Förderangebote!D173:D177,1,0)","v":{"$error":"#N/A"}},25,{"$f":"VLOOKUP($D$539,Förderangebote!$A$173:$E$178,3,0)","v":0}]
[null,null,"Kind 4",25,{"$f":"VLOOKUP(G4,Förderangebote!D173:D177,1,0)","v":{"$error":"#N/A"}},25,{"$f":"VLOOKUP($D$539,Förderangebote!$A$173:$E$178,3,0)","v":0}]
[null,null,"Kind 5",25,{"$f":"VLOOKUP(G5,Förderangebote!D173:D177,1,0)","v":{"$error":"#N/A"}},25,{"$f":"VLOOKUP($D$539,Förderangebote!$A$173:$E$178,3,0)","v":0}]
[null,null,"Kind 6",25,{"$f":"VLOOKUP(G6,Förderangebote!E173:E177,1,0)","v":{"$error":"#N/A"}},25,{"$f":"VLOOKUP($D$539,Förderangebote!$A$173:$E$178,3,0)","v":0}]
[null,null,"Kind 7",25,{"$f":"VLOOKUP(G7,Förderangebote!E173:E177,1,0)","v":{"$error":"#N/A"}},25,{"$f":"VLOOKUP($D$539,Förderangebote!$A$173:$E$178,3,0)","v":0}]
[null,null,"Kind 8",25,{"$f":"VLOOKUP(G8,Förderangebote!E173:E177,1,0)","v":{"$error":"#N/A"}},25,{"$f":"VLOOKUP($D$539,Förderangebote!$A$173:$E$178,3,0)","v":0}]
[null,null,"Kind 9",25,{"$f":"VLOOKUP(G9,Förderangebote!E173:E177,1,0)","v":{"$error":"#N/A"}},25,{"$f":"VLOOKUP($D$539,Förderangebote!$A$173:$E$178,3,0)","v":0}]
[null,null,"Kind 10",25,{"$f":"VLOOKUP(G10,Förderangebote!E173:E177,1,0)","v":{"$error":"#N/A"}},25,{"$f":"VLOOKUP($D$539,Förderangebote!$A$173:$E$178,3,0)","v":0}]
[null,null,"Kind 1",26,{"$f":"VLOOKUP(G1,Förderangebote!D179:D183,1,0)","v":{"$error":"#N/A"}},26,{"$f":"VLOOKUP($D$549,Förderangebote!$A$179:$E$184,3,0)","v":0}]
[null,null,"Kind 2",26,{"$f":"VLOOKUP(G2,Förderangebote!D179:D183,1,0)","v":{"$error":"#N/A"}},26,{"$f":"VLOOKUP($D$549,Förderangebote!$A$179:$E$184,3,0)","v":0}]
[null,null,"Kind 3",26,{"$f":"VLOOKUP(G3,Förderangebote!D179:D183,1,0)","v":{"$error":"#N/A"}},26,{"$f":"VLOOKUP($D$549,Förderangebote!$A$179:$E$184,3,0)","v":0}]
[null,null,"Kind 4",26,{"$f":"VLOOKUP(G4,Förderangebote!D179:D183,1,0)","v":{"$error":"#N/A"}},26,{"$f":"VLOOKUP($D$549,Förderangebote!$A$179:$E$184,3,0)","v":0}]
[null,null,"Kind 5",26,{"$f":"VLOOKUP(G5,Förderangebote!D179:D183,1,0)","v":{"$error":"#N/A"}},26,{"$f":"VLOOKUP($D$549,Förderangebote!$A$179:$E$184,3,0)","v":0}]
[null,null,"Kind 6",26,{"$f":"VLOOKUP(G6,Förderangebote!E179:E183,1,0)","v":{"$error":"#N/A"}},26,{"$f":"VLOOKUP($D$549,Förderangebote!$A$179:$E$184,3,0)","v":0}]
[null,null,"Kind 7",26,{"$f":"VLOOKUP(G7,Förderangebote!E179:E183,1,0)","v":{"$error":"#N/A"}},26,{"$f":"VLOOKUP($D$549,Förderangebote!$A$179:$E$184,3,0)","v":0}]
[null,null,"Kind 8",26,{"$f":"VLOOKUP(G8,Förderangebote!E179:E183,1,0)","v":{"$error":"#N/A"}},26,{"$f":"VLOOKUP($D$549,Förderangebote!$A$179:$E$184,3,0)","v":0}]
[null,null,"Kind 9",26,{"$f":"VLOOKUP(G9,Förderangebote!E179:E183,1,0)","v":{"$error":"#N/A"}},26,{"$f":"VLOOKUP($D$549,Förderangebote!$A$179:$E$184,3,0)","v":0}]
[null,null,"Kind 10",26,{"$f":"VLOOKUP(G10,Förderangebote!E179:E183,1,0)","v":{"$error":"#N/A"}},26,{"$f":"VLOOKUP($D$549,Förderangebote!$A$179:$E$184,3,0)","v":0}]
[null,null,"Kind 1",27,{"$f":"VLOOKUP(G1,Förderangebote!D185:D189,1,0)","v":{"$error":"#N/A"}},27,{"$f":"VLOOKUP($D$559,Förderangebote!$A$185:$E$190,3,0)","v":0}]
[null,null,"Kind 2",27,{"$f":"VLOOKUP(G2,Förderangebote!D185:D189,1,0)","v":{"$error":"#N/A"}},27,{"$f":"VLOOKUP($D$559,Förderangebote!$A$185:$E$190,3,0)","v":0}]
[null,null,"Kind 3",27,{"$f":"VLOOKUP(G3,Förderangebote!D185:D189,1,0)","v":{"$error":"#N/A"}},27,{"$f":"VLOOKUP($D$559,Förderangebote!$A$185:$E$190,3,0)","v":0}]
[null,null,"Kind 4",27,{"$f":"VLOOKUP(G4,Förderangebote!D185:D189,1,0)","v":{"$error":"#N/A"}},27,{"$f":"VLOOKUP($D$559,Förderangebote!$A$185:$E$190,3,0)","v":0}]
[null,null,"Kind 5",27,{"$f":"VLOOKUP(G5,Förderangebote!D185:D189,1,0)","v":{"$error":"#N/A"}},27,{"$f":"VLOOKUP($D$559,Förderangebote!$A$185:$E$190,3,0)","v":0}]
[null,null,"Kind 6",27,{"$f":"VLOOKUP(G6,Förderangebote!E185:E189,1,0)","v":{"$error":"#N/A"}},27,{"$f":"VLOOKUP($D$559,Förderangebote!$A$185:$E$190,3,0)","v":0}]
[null,null,"Kind 7",27,{"$f":"VLOOKUP(G7,Förderangebote!E185:E189,1,0)","v":{"$error":"#N/A"}},27,{"$f":"VLOOKUP($D$559,Förderangebote!$A$185:$E$190,3,0)","v":0}]
[null,null,"Kind 8",27,{"$f":"VLOOKUP(G8,Förderangebote!E185:E189,1,0)","v":{"$error":"#N/A"}},27,{"$f":"VLOOKUP($D$559,Förderangebote!$A$185:$E$190,3,0)","v":0}]
[null,null,"Kind 9",27,{"$f":"VLOOKUP(G9,Förderangebote!E185:E189,1,0)","v":{"$error":"#N/A"}},27,{"$f":"VLOOKUP($D$559,Förderangebote!$A$185:$E$190,3,0)","v":0}]
[null,null,"Kind 10",27,{"$f":"VLOOKUP(G10,Förderangebote!E185:E189,1,0)","v":{"$error":"#N/A"}},27,{"$f":"VLOOKUP($D$559,Förderangebote!$A$185:$E$190,3,0)","v":0}]
[null,null,"Kind 1",28,{"$f":"VLOOKUP(G1,Förderangebote!D194:D198,1,0)","v":{"$error":"#N/A"}},28,{"$f":"VLOOKUP($D$569,Förderangebote!$A$194:$E$199,3,0)","v":0}]
[null,null,"Kind 2",28,{"$f":"VLOOKUP(G2,Förderangebote!D194:D198,1,0)","v":{"$error":"#N/A"}},28,{"$f":"VLOOKUP($D$569,Förderangebote!$A$194:$E$199,3,0)","v":0}]
[null,null,"Kind 3",28,{"$f":"VLOOKUP(G3,Förderangebote!D194:D198,1,0)","v":{"$error":"#N/A"}},28,{"$f":"VLOOKUP($D$569,Förderangebote!$A$194:$E$199,3,0)","v":0}]
[null,null,"Kind 4",28,{"$f":"VLOOKUP(G4,Förderangebote!D194:D198,1,0)","v":{"$error":"#N/A"}},28,{"$f":"VLOOKUP($D$569,Förderangebote!$A$194:$E$199,3,0)","v":0}]
[null,null,"Kind 5",28,{"$f":"VLOOKUP(G5,Förderangebote!D194:D198,1,0)","v":{"$error":"#N/A"}},28,{"$f":"VLOOKUP($D$569,Förderangebote!$A$194:$E$199,3,0)","v":0}]
[null,null,"Kind 6",28,{"$f":"VLOOKUP(G6,Förderangebote!E194:E198,1,0)","v":{"$error":"#N/A"}},28,{"$f":"VLOOKUP($D$569,Förderangebote!$A$194:$E$199,3,0)","v":0}]
[null,null,"Kind 7",28,{"$f":"VLOOKUP(G7,Förderangebote!E194:E198,1,0)","v":{"$error":"#N/A"}},28,{"$f":"VLOOKUP($D$569,Förderangebote!$A$194:$E$199,3,0)","v":0}]
[null,null,"Kind 8",28,{"$f":"VLOOKUP(G8,Förderangebote!E194:E198,1,0)","v":{"$error":"#N/A"}},28,{"$f":"VLOOKUP($D$569,Förderangebote!$A$194:$E$199,3,0)","v":0}]
[null,null,"Kind 9",28,{"$f":"VLOOKUP(G9,Förderangebote!E194:E198,1,0)","v":{"$error":"#N/A"}},28,{"$f":"VLOOKUP($D$569,Förderangebote!$A$194:$E$199,3,0)","v":0}]
[null,null,"Kind 10",28,{"$f":"VLOOKUP(G10,Förderangebote!E194:E198,1,0)","v":{"$error":"#N/A"}},28,{"$f":"VLOOKUP($D$569,Förderangebote!$A$194:$E$199,3,0)","v":0}]
[null,null,"Kind 1",29,{"$f":"VLOOKUP(G1,Förderangebote!D200:D204,1,0)","v":{"$error":"#N/A"}},29,{"$f":"VLOOKUP($D$579,Förderangebote!$A$200:$E$205,3,0)","v":0}]
[null,null,"Kind 2",29,{"$f":"VLOOKUP(G2,Förderangebote!D200:D204,1,0)","v":{"$error":"#N/A"}},29,{"$f":"VLOOKUP($D$579,Förderangebote!$A$200:$E$205,3,0)","v":0}]
[null,null,"Kind 3",29,{"$f":"VLOOKUP(G3,Förderangebote!D200:D204,1,0)","v":{"$error":"#N/A"}},29,{"$f":"VLOOKUP($D$579,Förderangebote!$A$200:$E$205,3,0)","v":0}]
[null,null,"Kind 4",29,{"$f":"VLOOKUP(G4,Förderangebote!D200:D204,1,0)","v":{"$error":"#N/A"}},29,{"$f":"VLOOKUP($D$579,Förderangebote!$A$200:$E$205,3,0)","v":0}]
[null,null,"Kind 5",29,{"$f":"VLOOKUP(G5,Förderangebote!D200:D204,1,0)","v":{"$error":"#N/A"}},29,{"$f":"VLOOKUP($D$579,Förderangebote!$A$200:$E$205,3,0)","v":0}]
[null,null,"Kind 6",29,{"$f":"VLOOKUP(G6,Förderangebote!E200:E204,1,0)","v":{"$error":"#N/A"}},29,{"$f":"VLOOKUP($D$579,Förderangebote!$A$200:$E$205,3,0)","v":0}]
[null,null,"Kind 7",29,{"$f":"VLOOKUP(G7,Förderangebote!E200:E204,1,0)","v":{"$error":"#N/A"}},29,{"$f":"VLOOKUP($D$579,Förderangebote!$A$200:$E$205,3,0)","v":0}]
[null,null,"Kind 8",29,{"$f":"VLOOKUP(G8,Förderangebote!E200:E204,1,0)","v":{"$error":"#N/A"}},29,{"$f":"VLOOKUP($D$579,Förderangebote!$A$200:$E$205,3,0)","v":0}]
[null,null,"Kind 9",29,{"$f":"VLOOKUP(G9,Förderangebote!E200:E204,1,0)","v":{"$error":"#N/A"}},29,{"$f":"VLOOKUP($D$579,Förderangebote!$A$200:$E$205,3,0)","v":0}]
[null,null,"Kind 10",29,{"$f":"VLOOKUP(G10,Förderangebote!E200:E204,1,0)","v":{"$error":"#N/A"}},29,{"$f":"VLOOKUP($D$579,Förderangebote!$A$200:$E$205,3,0)","v":0}]
[null,null,"Kind 1",30,{"$f":"VLOOKUP(G1,Förderangebote!D206:D210,1,0)","v":{"$error":"#N/A"}},30,{"$f":"VLOOKUP($D$589,Förderangebote!$A$206:$E$211,3,0)","v":0}]
[null,null,"Kind 2",30,{"$f":"VLOOKUP(G2,Förderangebote!D206:D210,1,0)","v":{"$error":"#N/A"}},30,{"$f":"VLOOKUP($D$589,Förderangebote!$A$206:$E$211,3,0)","v":0}]
[null,null,"Kind 3",30,{"$f":"VLOOKUP(G3,Förderangebote!D206:D210,1,0)","v":{"$error":"#N/A"}},30,{"$f":"VLOOKUP($D$589,Förderangebote!$A$206:$E$211,3,0)","v":0}]
[null,null,"Kind 4",30,{"$f":"VLOOKUP(G4,Förderangebote!D206:D210,1,0)","v":{"$error":"#N/A"}},30,{"$f":"VLOOKUP($D$589,Förderangebote!$A$206:$E$211,3,0)","v":0}]
[null,null,"Kind 5",30,{"$f":"VLOOKUP(G5,Förderangebote!D206:D210,1,0)","v":{"$error":"#N/A"}},30,{"$f":"VLOOKUP($D$589,Förderangebote!$A$206:$E$211,3,0)","v":0}]
[null,null,"Kind 6",30,{"$f":"VLOOKUP(G6,Förderangebote!E206:E210,1,0)","v":{"$error":"#N/A"}},30,{"$f":"VLOOKUP($D$589,Förderangebote!$A$206:$E$211,3,0)","v":0}]
[null,null,"Kind 7",30,{"$f":"VLOOKUP(G7,Förderangebote!E206:E210,1,0)","v":{"$error":"#N/A"}},30,{"$f":"VLOOKUP($D$589,Förderangebote!$A$206:$E$211,3,0)","v":0}]
[null,null,"Kind 8",30,{"$f":"VLOOKUP(G8,Förderangebote!E206:E210,1,0)","v":{"$error":"#N/A"}},30,{"$f":"VLOOKUP($D$589,Förderangebote!$A$206:$E$211,3,0)","v":0}]
[null,null,"Kind 9",30,{"$f":"VLOOKUP(G9,Förderangebote!E206:E210,1,0)","v":{"$error":"#N/A"}},30,{"$f":"VLOOKUP($D$589,Förderangebote!$A$206:$E$211,3,0)","v":0}]
[null,null,"Kind 10",30,{"$f":"VLOOKUP(G10,Förderangebote!E206:E210,1,0)","v":{"$error":"#N/A"}},30,{"$f":"VLOOKUP($D$589,Förderangebote!$A$206:$E$211,3,0)","v":0}]